Capital or Revenue,Directorate,Transaction Number,Date,Service Area,Expenses Type,Amount,Supplier Name,,
Revenue,Community Wellbeing & Social Care,5105679273,18.01.2013,DAT Adults,Med Fees & Staff Welfare,120.00,REDACTED PERSONAL DATA,,
Revenue,Community Wellbeing & Social Care,5105674533,02.01.2013,Homelessness,Accomm Costs - Lease,695.89,REDACTED PERSONAL DATA,,
Revenue,Community Wellbeing & Social Care,5105674534,02.01.2013,Homelessness,Accomm Costs - Lease,695.89,REDACTED PERSONAL DATA,,
Revenue,Community Wellbeing & Social Care,5105674535,02.01.2013,Homelessness,Accomm Costs - Lease,695.89,REDACTED PERSONAL DATA,,
Revenue,Community Wellbeing & Social Care,5105674536,02.01.2013,Homelessness,Accomm Costs - Lease,695.89,REDACTED PERSONAL DATA,,
Revenue,Community Wellbeing & Social Care,5105674537,02.01.2013,Homelessness,Accomm Costs - Lease,695.89,REDACTED PERSONAL DATA,,
Revenue,"Chief Executive, Schools & Learning",5105676756,04.01.2013,Family Learning,Hire of facilities,33.00,REDACTED PERSONAL DATA,,
Revenue,"Chief Executive, Schools & Learning",5105677172,09.01.2013,Moderation,Bought in Professional Svs - Curriculum,280.00,REDACTED PERSONAL DATA,,
Revenue,"Chief Executive, Schools & Learning",5105680986,30.01.2013,Schools Reorganisation,Professional Services,16.80,REDACTED PERSONAL DATA,,
Revenue,"Chief Executive, Schools & Learning",5105676769,04.01.2013,Personal/Comm.Dev Learning,Payment to Private Contractors,250.00,*B JACOBS T/A COMPUTER TUTOR,,
Revenue,Economy & Environment,5105680108,23.01.2013,Ratings / Property Savings,External Design & Supervision,100.00,REDACTED PERSONAL DATA,,
Revenue,Economy & Environment,5105680109,23.01.2013,Ratings / Property Savings,External Design & Supervision,100.00,REDACTED PERSONAL DATA,,
Revenue,Economy & Environment,5105680110,23.01.2013,Ratings / Property Savings,External Design & Supervision,100.00,REDACTED PERSONAL DATA,,
Revenue,Economy & Environment,5105680111,23.01.2013,Ratings / Property Savings,External Design & Supervision,200.00,REDACTED PERSONAL DATA,,
Revenue,Economy & Environment,5105680195,23.01.2013,Ratings / Property Savings,External Design & Supervision,100.00,REDACTED PERSONAL DATA,,
Capital,Resources,5105676636,04.01.2013,Capital Receipts,External Design & Supervision,100.00,REDACTED PERSONAL DATA,,
Capital,Resources,5105676637,04.01.2013,Capital Receipts,Capital Contractor Payments,135.00,REDACTED PERSONAL DATA,,
Capital,Resources,5105676354,04.01.2013,Capital Receipts,Capital Contractor Payments,85.00,REDACTED PERSONAL DATA,,
Revenue,"Chief Executive, Schools & Learning",5105676957,11.01.2013,Schools Reorganisation,Security of Buildings,300.00,REDACTED PERSONAL DATA,,
Revenue,"Chief Executive, Schools & Learning",5105676957,11.01.2013,Schools Reorganisation,Security of Buildings,300.00,REDACTED PERSONAL DATA,,
Revenue,"Chief Executive, Schools & Learning",5105676957,11.01.2013,Schools Reorganisation,Security of Buildings,120.00,REDACTED PERSONAL DATA,,
Revenue,"Chief Executive, Schools & Learning",5105676957,11.01.2013,Bembridge PS Disposal,Security of Buildings,120.00,REDACTED PERSONAL DATA,,
Revenue,"Chief Executive, Schools & Learning",5105676957,11.01.2013,E.Cowes PS Disposal,Security of Buildings,120.00,REDACTED PERSONAL DATA,,
Revenue,"Chief Executive, Schools & Learning",5105676957,11.01.2013,E.Cowes PS Disposal,Security of Buildings,25.00,REDACTED PERSONAL DATA,,
Revenue,"Chief Executive, Schools & Learning",5105676957,11.01.2013,Hunnyhill PS Disposal,Security of Buildings,120.00,REDACTED PERSONAL DATA,,
Revenue,"Chief Executive, Schools & Learning",5105676957,11.01.2013,Hunnyhill PS Disposal,Security of Buildings,25.00,REDACTED PERSONAL DATA,,
Revenue,"Chief Executive, Schools & Learning",5105676957,11.01.2013,Swanmore MS Disposal,Security of Buildings,25.00,REDACTED PERSONAL DATA,,
Revenue,"Chief Executive, Schools & Learning",5105676957,11.01.2013,Swanmore MS Disposal,Security of Buildings,300.00,REDACTED PERSONAL DATA,,
Revenue,Community Wellbeing & Social Care,5105678068,16.01.2013,DAT Adults,Med Fees & Staff Welfare,120.00,REDACTED PERSONAL DATA,,
Revenue,Community Wellbeing & Social Care,5105676595,04.01.2013,DAT Adults,Med Fees & Staff Welfare,140.00,REDACTED PERSONAL DATA,,
Revenue,Community Wellbeing & Social Care,5105676594,04.01.2013,DAT Adults,Charges from Independent Providers,35.00,REDACTED PERSONAL DATA,,
Revenue,Community Wellbeing & Social Care,5105677237,09.01.2013,DAT Adults,Charges from Independent Providers,40.00,REDACTED PERSONAL DATA,,
Revenue,Community Wellbeing & Social Care,5105680821,25.01.2013,DAT Adults,Charges from Independent Providers,210.00,REDACTED PERSONAL DATA,,
Revenue,Economy & Environment,5105676630,04.01.2013,HM Inspection,Vehicle Maintenance Costs,40.00,*ISLANDWIDE WINDSCREENS,,
Revenue,Community Wellbeing & Social Care,5105681000,30.01.2013,DAT Adults,Training,135.00,REDACTED PERSONAL DATA,,
Revenue,Community Wellbeing & Social Care,5105680991,30.01.2013,DAT Adults,Charges from Independent Providers,210.00,REDACTED PERSONAL DATA,,
Revenue,Community Wellbeing & Social Care,5105680987,30.01.2013,DAT Adults,Charges from Independent Providers,40.00,REDACTED PERSONAL DATA,,
Revenue,Community Wellbeing & Social Care,5105681032,30.01.2013,DAT Adults,Charges from Independent Providers,40.00,REDACTED PERSONAL DATA,,
Revenue,Community Wellbeing & Social Care,5105680027,23.01.2013,DAT Adults,Charges from Independent Providers,35.00,REDACTED PERSONAL DATA,,
Revenue,Community Wellbeing & Social Care,5105680028,23.01.2013,DAT Adults,Charges from Independent Providers,105.00,REDACTED PERSONAL DATA,,
Revenue,"Chief Executive, Schools & Learning",5105677163,09.01.2013,Tuition Centres,Bought in Professional Svs - Curriculum,210.00,REDACTED PERSONAL DATA,,
Revenue,Community Wellbeing & Social Care,5105676739,04.01.2013,Short Breaks,Paymts to Voly and Other Associations,15.00,REDACTED PERSONAL DATA,,
Revenue,Community Wellbeing & Social Care,5105678025,23.01.2013,Short Breaks,Regular Respite Care,390.00,REDACTED PERSONAL DATA,,
Revenue,Community Wellbeing & Social Care,5105677728,16.01.2013,Agency Domicilary Care,Paymts to Voly and Other Associations,60.00,REDACTED PERSONAL DATA,,
Revenue,Resources,5105676892,16.01.2013,ICT Contracts,Computer Maintenance,200.00,REDACTED PERSONAL DATA,,
Revenue,Resources,5105677729,16.01.2013,ICT Contracts,Computer Maintenance,200.00,REDACTED PERSONAL DATA,,
Revenue,Community Wellbeing & Social Care,5105679671,23.01.2013,Adoption,Professional Services,270.00,REDACTED PERSONAL DATA,,
Revenue,Community Wellbeing & Social Care,5105680978,30.01.2013,Local Safeguarding Childrens Board,Professional Services,"5,560.00",REDACTED PERSONAL DATA,,
Revenue,Community Wellbeing & Social Care,5105677125,11.01.2013,Short Breaks,Paymts to Voly and Other Associations,300.00,REDACTED PERSONAL DATA,,
Revenue,Community Wellbeing & Social Care,5105677125,11.01.2013,Short Breaks,Paymts to Voly and Other Associations,260.00,REDACTED PERSONAL DATA,,
Revenue,"Chief Executive, Schools & Learning",5105680485,25.01.2013,Tuition Centres,Client Expenses,300.00,*LUCY MUNDY T/A ISLAND EQUUS,,
Revenue,Community Wellbeing & Social Care,5105680824,25.01.2013,LAC Units 1-4,Support Children,130.00,*LUCY MUNDY T/A ISLAND EQUUS,,
Revenue,Community Wellbeing & Social Care,5105680824,25.01.2013,LAC Units 1-4,Support Children,162.50,*LUCY MUNDY T/A ISLAND EQUUS,,
Revenue,Community Wellbeing & Social Care,5105676890,09.01.2013,Support for LAC,Support Children,130.00,*LUCY MUNDY T/A ISLAND EQUUS,,
Revenue,Community Wellbeing & Social Care,5105676891,09.01.2013,Support for LAC,Support Children,900.00,*LUCY MUNDY T/A ISLAND EQUUS,,
Revenue,Community Wellbeing & Social Care,5105678116,16.01.2013,Support for LAC,Support Children,227.50,*LUCY MUNDY T/A ISLAND EQUUS,,
Revenue,Community Wellbeing & Social Care,5105679529,23.01.2013,Support for LAC,Support Children,750.00,*LUCY MUNDY T/A ISLAND EQUUS,,
Revenue,Community Wellbeing & Social Care,5105682305,31.01.2013,Support for LAC,Support Children,200.00,*LUCY MUNDY T/A ISLAND EQUUS,,
Revenue,Community Wellbeing & Social Care,5105682305,31.01.2013,Support for LAC,Support Children,225.00,*LUCY MUNDY T/A ISLAND EQUUS,,
Revenue,Community Wellbeing & Social Care,5105676889,09.01.2013,Targeted Youth Support,Professional Services,180.00,*LUCY MUNDY T/A ISLAND EQUUS,,
Revenue,"Chief Executive, Schools & Learning",5105680474,25.01.2013,SEN Inter-Auth Recoupment,Pay to Other Local Authorities,400.00,*LUCY MUNDY T/A ISLAND EQUUS,,
Revenue,"Chief Executive, Schools & Learning",5105676634,04.01.2013,Education Participation,Cleaning Contracts,8.00,REDACTED PERSONAL DATA,,
Revenue,"Chief Executive, Schools & Learning",5105680138,23.01.2013,Education Participation,Cleaning Contracts,8.00,REDACTED PERSONAL DATA,,
Revenue,Economy & Environment,5105677195,09.01.2013,WW Landscape Partnership,Payment to Private Contractors,100.00,REDACTED PERSONAL DATA,,
Revenue,Economy & Environment,5105677195,09.01.2013,WW Landscape Partnership,Payment to Private Contractors,100.00,REDACTED PERSONAL DATA,,
Revenue,Economy & Environment,5105677142,09.01.2013,WW Landscape Partnership,Payment to Private Contractors,50.00,REDACTED PERSONAL DATA,,
Revenue,"Chief Executive, Schools & Learning",5105677005,09.01.2013,WFD Early Years,Training,822.02,REDACTED PERSONAL DATA,,
Revenue,Community Wellbeing & Social Care,5105677395,11.01.2013,North & East Provision,General Materials,"1,080.00",*RYDE EXTREME PERFORMERS,,
Revenue,Community Wellbeing & Social Care,5105677216,09.01.2013,DAT Adults,Med Fees & Staff Welfare,120.00,REDACTED PERSONAL DATA,,
Revenue,Community Wellbeing & Social Care,5105678064,16.01.2013,DAT Adults,Med Fees & Staff Welfare,120.00,REDACTED PERSONAL DATA,,
Revenue,"Chief Executive, Schools & Learning",5105676909,09.01.2013,Moderation,Bought in Professional Svs - Curriculum,212.15,REDACTED PERSONAL DATA,,
Revenue,Community Wellbeing & Social Care,5105676978,09.01.2013,DAT Adults,Med Fees & Staff Welfare,120.00,REDACTED PERSONAL DATA,,
Revenue,"Chief Executive, Schools & Learning",5105681994,31.01.2013,WFD Schools,Training,650.00,REDACTED PERSONAL DATA,,
Revenue,"Chief Executive, Schools & Learning",5105681994,31.01.2013,WFD Schools,Travel Expenses,70.00,REDACTED PERSONAL DATA,,
Revenue,"Chief Executive, Schools & Learning",5105681994,31.01.2013,WFD Schools,Travel Expenses,210.00,REDACTED PERSONAL DATA,,
Revenue,Resources,5105676782,09.01.2013,Elections,Building & Room Rent,110.00,1ST GODSHILL AND ROOKLEY SC,,
Revenue,Community Wellbeing & Social Care,5105674586,02.01.2013,Homelessness,Accomm Costs - Lease,866.67,2K PROPERTY,,
Revenue,Resources,5105677223,09.01.2013,Elections,Building & Room Rent,100.00,2ND COWES SEA SCOUTS,,
Revenue,Community Wellbeing & Social Care,5105679899,23.01.2013,Adelaide Resource Centre,Catering Purchases,303.27,3663 (BFS GROUP LTD),,
Revenue,Community Wellbeing & Social Care,5105679901,23.01.2013,Adelaide Resource Centre,Catering Purchases,76.40,3663 (BFS GROUP LTD),,
Revenue,Community Wellbeing & Social Care,5105679901,23.01.2013,Adelaide Resource Centre,Catering Purchases,4.62,3663 (BFS GROUP LTD),,
Revenue,Community Wellbeing & Social Care,5105679899,23.01.2013,Adelaide Resource Centre,Catering Purchases,10.84,3663 (BFS GROUP LTD),,
Revenue,Community Wellbeing & Social Care,5105676714,04.01.2013,Adelaide Resource Centre,Catering Purchases,224.42,3663 (BFS GROUP LTD),,
Revenue,Community Wellbeing & Social Care,5105676712,04.01.2013,Adelaide Resource Centre,Catering Purchases,114.04,3663 (BFS GROUP LTD),,
Revenue,Community Wellbeing & Social Care,5105676712,04.01.2013,Adelaide Resource Centre,Catering Purchases,4.62,3663 (BFS GROUP LTD),,
Revenue,Community Wellbeing & Social Care,5105677155,09.01.2013,Adelaide Resource Centre,Catering Purchases,-12.75,3663 (BFS GROUP LTD),,
Revenue,Community Wellbeing & Social Care,5105677339,18.01.2013,Adelaide Resource Centre,Catering Purchases,400.86,3663 (BFS GROUP LTD),,
Revenue,Community Wellbeing & Social Care,5105677338,18.01.2013,Adelaide Resource Centre,Catering Purchases,163.51,3663 (BFS GROUP LTD),,
Revenue,Community Wellbeing & Social Care,5105677338,18.01.2013,Adelaide Resource Centre,Catering Purchases,4.62,3663 (BFS GROUP LTD),,
Revenue,Community Wellbeing & Social Care,5105677339,18.01.2013,Adelaide Resource Centre,Catering Purchases,5.10,3663 (BFS GROUP LTD),,
Revenue,Community Wellbeing & Social Care,5105678026,23.01.2013,Adelaide Resource Centre,Catering Purchases,98.52,3663 (BFS GROUP LTD),,
Revenue,Community Wellbeing & Social Care,5105678031,11.01.2013,Adelaide Resource Centre,Catering Purchases,195.00,3663 (BFS GROUP LTD),,
Revenue,Community Wellbeing & Social Care,5105678063,18.01.2013,Adelaide Resource Centre,Catering Purchases,213.91,3663 (BFS GROUP LTD),,
Revenue,Community Wellbeing & Social Care,5105678065,16.01.2013,Adelaide Resource Centre,Catering Purchases,133.03,3663 (BFS GROUP LTD),,
Revenue,Community Wellbeing & Social Care,5105678065,16.01.2013,Adelaide Resource Centre,Catering Purchases,4.62,3663 (BFS GROUP LTD),,
Revenue,Community Wellbeing & Social Care,5105678063,18.01.2013,Adelaide Resource Centre,Catering Purchases,83.59,3663 (BFS GROUP LTD),,
Revenue,Community Wellbeing & Social Care,5105678026,23.01.2013,Adelaide Resource Centre,Catering Purchases,4.62,3663 (BFS GROUP LTD),,
Revenue,Community Wellbeing & Social Care,5105682235,31.01.2013,Adelaide Resource Centre,Catering Purchases,141.43,3663 (BFS GROUP LTD),,
Revenue,Community Wellbeing & Social Care,5105680890,30.01.2013,Adelaide Resource Centre,Catering Purchases,79.01,3663 (BFS GROUP LTD),,
Revenue,Community Wellbeing & Social Care,5105680891,30.01.2013,Adelaide Resource Centre,Catering Purchases,120.50,3663 (BFS GROUP LTD),,
Revenue,Community Wellbeing & Social Care,5105680890,30.01.2013,Adelaide Resource Centre,Catering Purchases,12.26,3663 (BFS GROUP LTD),,
Revenue,Community Wellbeing & Social Care,5105679903,23.01.2013,Gouldings Resource Centre,Catering Purchases,380.83,3663 (BFS GROUP LTD),,
Revenue,Community Wellbeing & Social Care,5105679903,23.01.2013,Gouldings Resource Centre,Catering Purchases,33.77,3663 (BFS GROUP LTD),,
Revenue,Community Wellbeing & Social Care,5105678140,16.01.2013,Gouldings Resource Centre,Catering Purchases,523.08,3663 (BFS GROUP LTD),,
Revenue,Community Wellbeing & Social Care,5105678140,16.01.2013,Gouldings Resource Centre,Catering Purchases,102.35,3663 (BFS GROUP LTD),,
Revenue,Community Wellbeing & Social Care,5105679224,18.01.2013,Gouldings Resource Centre,Catering Purchases,39.90,3663 (BFS GROUP LTD),,
Revenue,Community Wellbeing & Social Care,5105681003,30.01.2013,Gouldings Resource Centre,Catering Purchases,386.44,3663 (BFS GROUP LTD),,
Revenue,Community Wellbeing & Social Care,5105681003,30.01.2013,Gouldings Resource Centre,Catering Purchases,23.79,3663 (BFS GROUP LTD),,
Revenue,Community Wellbeing & Social Care,5105677440,11.01.2013,Westminster House,Catering Purchases,95.11,3663 (BFS GROUP LTD),,
Revenue,Community Wellbeing & Social Care,5105678142,16.01.2013,Westminster House,Catering Purchases,153.40,3663 (BFS GROUP LTD),,
Revenue,Community Wellbeing & Social Care,5105678141,16.01.2013,Westminster House,Catering Purchases,118.80,3663 (BFS GROUP LTD),,
Revenue,Community Wellbeing & Social Care,5105680892,30.01.2013,Westminster House,Catering Purchases,135.66,3663 (BFS GROUP LTD),,
Revenue,Community Wellbeing & Social Care,5105680893,30.01.2013,Westminster House,Catering Purchases,72.13,3663 (BFS GROUP LTD),,
Revenue,Community Wellbeing & Social Care,5105680894,30.01.2013,Westminster House,Catering Purchases,57.11,3663 (BFS GROUP LTD),,
Revenue,Economy & Environment,5105682233,31.01.2013,Ryde Sports Centre,Catering Purchases,105.67,3663 (BFS GROUP LTD),,
Revenue,Economy & Environment,5105676628,04.01.2013,Medina Leisure Centre,Catering Purchases,-150.00,3663 (BFS GROUP LTD),,
Revenue,Economy & Environment,5105676626,04.01.2013,Medina Leisure Centre,Catering Purchases,385.00,3663 (BFS GROUP LTD),,
Revenue,Economy & Environment,5105677465,11.01.2013,Westridge Squash Courts,Catering Purchases,254.68,3663 (BFS GROUP LTD),,
Revenue,Community Wellbeing & Social Care,5105679885,23.01.2013,North & East Provision,Catering Purchases,-8.70,3663 (BFS GROUP LTD),,
Revenue,Community Wellbeing & Social Care,5105678125,16.01.2013,North & East Provision,Catering Purchases,83.35,3663 (BFS GROUP LTD),,
Revenue,Community Wellbeing & Social Care,5105678126,16.01.2013,North & East Provision,Catering Purchases,64.32,3663 (BFS GROUP LTD),,
Revenue,Community Wellbeing & Social Care,5105678126,16.01.2013,North & East Provision,Catering Purchases,18.60,3663 (BFS GROUP LTD),,
Revenue,Community Wellbeing & Social Care,5105678193,16.01.2013,Central & West Provision,Catering Purchases,204.05,3663 (BFS GROUP LTD),,
Revenue,Community Wellbeing & Social Care,5105678193,16.01.2013,Central & West Provision,Catering Purchases,48.86,3663 (BFS GROUP LTD),,
Revenue,Economy & Environment,5105676713,04.01.2013,Medina Vending Machines,Order Settlement,587.20,3663 (BFS GROUP LTD),,
Revenue,Economy & Environment,5105682016,31.01.2013,Medina Vending Machines,Order Settlement,456.01,3663 (BFS GROUP LTD),,
Revenue,Economy & Environment,5105677103,09.01.2013,Medina Vending Machines,Order Settlement,548.95,3663 (BFS GROUP LTD),,
Revenue,Economy & Environment,5105678052,16.01.2013,Medina Vending Machines,Order Settlement,780.53,3663 (BFS GROUP LTD),,
Revenue,Economy & Environment,5105680185,23.01.2013,Medina Vending Machines,Order Settlement,898.23,3663 (BFS GROUP LTD),,
Revenue,Economy & Environment,5105676786,09.01.2013,Heights Cafe Stock,Order Settlement,44.57,3663 (BFS GROUP LTD),,
Revenue,Economy & Environment,5105676786,09.01.2013,Heights Cafe Stock,Order Settlement,25.27,3663 (BFS GROUP LTD),,
Revenue,Economy & Environment,5105677212,09.01.2013,Heights Cafe Stock,Order Settlement,56.01,3663 (BFS GROUP LTD),,
Revenue,Economy & Environment,5105677212,09.01.2013,Heights Cafe Stock,Order Settlement,15.61,3663 (BFS GROUP LTD),,
Revenue,Economy & Environment,5105678534,18.01.2013,Heights Cafe Stock,Order Settlement,164.77,3663 (BFS GROUP LTD),,
Revenue,Economy & Environment,5105678534,18.01.2013,Heights Cafe Stock,Order Settlement,10.79,3663 (BFS GROUP LTD),,
Revenue,Economy & Environment,5105680895,30.01.2013,Heights Cafe Stock,Order Settlement,245.13,3663 (BFS GROUP LTD),,
Revenue,Economy & Environment,5105680895,30.01.2013,Heights Cafe Stock,Order Settlement,31.75,3663 (BFS GROUP LTD),,
Revenue,Economy & Environment,5105677200,09.01.2013,Heights Vending Stock,Order Settlement,198.42,3663 (BFS GROUP LTD),,
Revenue,Economy & Environment,5105676820,09.01.2013,Heights Vending Stock,Order Settlement,152.38,3663 (BFS GROUP LTD),,
Revenue,Economy & Environment,5105678528,18.01.2013,Heights Vending Stock,Order Settlement,201.02,3663 (BFS GROUP LTD),,
Revenue,Economy & Environment,5105680896,30.01.2013,Heights Vending Stock,Order Settlement,556.29,3663 (BFS GROUP LTD),,
Revenue,Economy & Environment,5105680808,25.01.2013,Heights Vending Stock,Order Settlement,436.37,3663 (BFS GROUP LTD),,
Revenue,Economy & Environment,5105680896,30.01.2013,Heights Vending Stock,Order Settlement,13.99,3663 (BFS GROUP LTD),,
Revenue,Economy & Environment,5105676788,09.01.2013,Highways PFI Project,Consultants Fees,450.00,4 PROJECTS LIMITED,,
Revenue,Economy & Environment,5105677158,09.01.2013,Medina Cafe Stock,Order Settlement,86.00,A & B OIL,,
Revenue,Resources,5105677149,09.01.2013,"County Hall,Newport",Property Svs - Building maintenance,66.41,A & M APPLIANCE CARE,,
Revenue,Community Wellbeing & Social Care,5105677472,11.01.2013,Adelaide Resource Centre,Consumable Cleaning Materials,242.00,A & M APPLIANCE CARE,,
Revenue,Community Wellbeing & Social Care,5105677460,11.01.2013,Gouldings Resource Centre,Consumable Cleaning Materials,186.00,A & M APPLIANCE CARE,,
Revenue,Community Wellbeing & Social Care,5105679904,23.01.2013,Gouldings Resource Centre,Consumable Cleaning Materials,105.00,A & M APPLIANCE CARE,,
Revenue,Community Wellbeing & Social Care,5105680077,23.01.2013,Gouldings Resource Centre,Operational Equipment,55.00,A & M APPLIANCE CARE,,
Revenue,Community Wellbeing & Social Care,5105680078,23.01.2013,Gouldings Resource Centre,Maintenance of Operational Equipment,55.00,A & M APPLIANCE CARE,,
Revenue,Community Wellbeing & Social Care,5105677151,09.01.2013,Westminster House,Maintenance of Operational Equipment,69.50,A & M APPLIANCE CARE,,
Revenue,"Chief Executive, Schools & Learning",5105678183,16.01.2013,Branstone Farm,General Materials,200.00,REDACTED PERSONAL DATA,,
Revenue,Community Wellbeing & Social Care,5105674545,02.01.2013,Homelessness,Accomm Costs - Lease,780.00,REDACTED PERSONAL DATA,,
Revenue,Community Wellbeing & Social Care,5105676421,04.01.2013,Fostering services,Boarding Out Allowances,146.09,REDACTED PERSONAL DATA,,
Revenue,Community Wellbeing & Social Care,5105676421,04.01.2013,Fostering services,Boarding Out Allowances,181.79,REDACTED PERSONAL DATA,,
Revenue,Community Wellbeing & Social Care,5105676421,04.01.2013,Fostering services,Boarding Out Allowances,10.00,REDACTED PERSONAL DATA,,
Revenue,Community Wellbeing & Social Care,5105677525,11.01.2013,Fostering services,Boarding Out Allowances,146.09,REDACTED PERSONAL DATA,,
Revenue,Community Wellbeing & Social Care,5105677525,11.01.2013,Fostering services,Boarding Out Allowances,181.79,REDACTED PERSONAL DATA,,
Revenue,Community Wellbeing & Social Care,5105677525,11.01.2013,Fostering services,Boarding Out Allowances,10.00,REDACTED PERSONAL DATA,,
Revenue,Community Wellbeing & Social Care,5105678891,18.01.2013,Fostering services,Boarding Out Allowances,146.09,REDACTED PERSONAL DATA,,
Revenue,Community Wellbeing & Social Care,5105678891,18.01.2013,Fostering services,Boarding Out Allowances,181.79,REDACTED PERSONAL DATA,,
Revenue,Community Wellbeing & Social Care,5105678891,18.01.2013,Fostering services,Boarding Out Allowances,10.00,REDACTED PERSONAL DATA,,
Revenue,Community Wellbeing & Social Care,5105680248,23.01.2013,Fostering services,Boarding Out Allowances,146.09,REDACTED PERSONAL DATA,,
Revenue,Community Wellbeing & Social Care,5105680248,23.01.2013,Fostering services,Boarding Out Allowances,181.79,REDACTED PERSONAL DATA,,
Revenue,Community Wellbeing & Social Care,5105680248,23.01.2013,Fostering services,Boarding Out Allowances,10.00,REDACTED PERSONAL DATA,,
Revenue,Community Wellbeing & Social Care,5105682070,31.01.2013,Fostering services,Boarding Out Allowances,146.09,REDACTED PERSONAL DATA,,
Revenue,Community Wellbeing & Social Care,5105682070,31.01.2013,Fostering services,Boarding Out Allowances,181.79,REDACTED PERSONAL DATA,,
Revenue,Community Wellbeing & Social Care,5105682070,31.01.2013,Fostering services,Boarding Out Allowances,10.00,REDACTED PERSONAL DATA,,
Revenue,Community Wellbeing & Social Care,5105676515,04.01.2013,Leaving Care Costs,Support Children,120.89,REDACTED PERSONAL DATA,,
Revenue,Community Wellbeing & Social Care,5105677617,11.01.2013,Leaving Care Costs,Support Children,120.89,REDACTED PERSONAL DATA,,
Revenue,Community Wellbeing & Social Care,5105678982,18.01.2013,Leaving Care Costs,Support Children,120.89,REDACTED PERSONAL DATA,,
Revenue,Community Wellbeing & Social Care,5105680340,25.01.2013,Leaving Care Costs,Support Children,120.89,REDACTED PERSONAL DATA,,
Revenue,Community Wellbeing & Social Care,5105682164,31.01.2013,Leaving Care Costs,Support Children,120.89,REDACTED PERSONAL DATA,,
Revenue,Community Wellbeing & Social Care,5105676515,04.01.2013,Leaving Care Costs,Accomm Costs Service Users,57.50,REDACTED PERSONAL DATA,,
Revenue,Community Wellbeing & Social Care,5105677617,11.01.2013,Leaving Care Costs,Accomm Costs Service Users,57.50,REDACTED PERSONAL DATA,,
Revenue,Community Wellbeing & Social Care,5105678982,18.01.2013,Leaving Care Costs,Accomm Costs Service Users,57.50,REDACTED PERSONAL DATA,,
Revenue,Community Wellbeing & Social Care,5105680340,25.01.2013,Leaving Care Costs,Accomm Costs Service Users,57.50,REDACTED PERSONAL DATA,,
Revenue,Community Wellbeing & Social Care,5105682164,31.01.2013,Leaving Care Costs,Accomm Costs Service Users,57.50,REDACTED PERSONAL DATA,,
Revenue,Community Wellbeing & Social Care,5105674576,02.01.2013,Homelessness,Accomm Costs - Lease,510.25,REDACTED PERSONAL DATA,,
Revenue,Community Wellbeing & Social Care,5105674577,02.01.2013,Homelessness,Accomm Costs - Lease,510.25,REDACTED PERSONAL DATA,,
Revenue,Community Wellbeing & Social Care,5105674578,02.01.2013,Homelessness,Accomm Costs - Lease,510.25,REDACTED PERSONAL DATA,,
Revenue,Community Wellbeing & Social Care,5105674579,02.01.2013,Homelessness,Accomm Costs - Lease,510.25,REDACTED PERSONAL DATA,,
Revenue,Community Wellbeing & Social Care,5105674580,02.01.2013,Homelessness,Accomm Costs - Lease,510.25,REDACTED PERSONAL DATA,,
Revenue,Community Wellbeing & Social Care,5105674581,02.01.2013,Homelessness,Accomm Costs - Lease,510.25,REDACTED PERSONAL DATA,,
Revenue,Community Wellbeing & Social Care,5105676392,04.01.2013,Adoption Costs,Support Children,186.49,REDACTED PERSONAL DATA,,
Revenue,Community Wellbeing & Social Care,5105677496,11.01.2013,Adoption Costs,Support Children,186.49,REDACTED PERSONAL DATA,,
Revenue,Community Wellbeing & Social Care,5105680219,23.01.2013,Adoption Costs,Support Children,186.49,REDACTED PERSONAL DATA,,
Revenue,Community Wellbeing & Social Care,5105678862,18.01.2013,Adoption Costs,Support Children,186.49,REDACTED PERSONAL DATA,,
Revenue,Community Wellbeing & Social Care,5105682041,31.01.2013,Adoption Costs,Support Children,186.49,REDACTED PERSONAL DATA,,
Revenue,Community Wellbeing & Social Care,5105676464,04.01.2013,Fostering services,Boarding Out Allowances,181.79,REDACTED PERSONAL DATA,,
Revenue,Community Wellbeing & Social Care,5105677567,11.01.2013,Fostering services,Boarding Out Allowances,181.79,REDACTED PERSONAL DATA,,
Revenue,Community Wellbeing & Social Care,5105678933,18.01.2013,Fostering services,Boarding Out Allowances,181.79,REDACTED PERSONAL DATA,,
Revenue,Community Wellbeing & Social Care,5105680291,25.01.2013,Fostering services,Boarding Out Allowances,221.13,REDACTED PERSONAL DATA,,
Revenue,Community Wellbeing & Social Care,5105682115,31.01.2013,Fostering services,Boarding Out Allowances,221.13,REDACTED PERSONAL DATA,,
Revenue,Community Wellbeing & Social Care,5105674583,02.01.2013,Homelessness,Accomm Costs - Lease,780.00,REDACTED PERSONAL DATA,,
Revenue,Community Wellbeing & Social Care,5105677384,09.01.2013,Beaulieu-Community Home,Grounds Maintenance,300.00,REDACTED PERSONAL DATA,,
Revenue,Economy & Environment,5105682001,31.01.2013,Play Areas H&S,Payment to Private Contractors,408.00,REDACTED PERSONAL DATA,,
Revenue,Economy & Environment,5105682012,31.01.2013,Play Areas H&S,Payment to Private Contractors,408.00,REDACTED PERSONAL DATA,,
Revenue,Community Wellbeing & Social Care,5105674541,02.01.2013,Homelessness,Accomm Costs - Lease,649.83,REDACTED PERSONAL DATA,,
Revenue,Community Wellbeing & Social Care,5105674542,02.01.2013,Homelessness,Accomm Costs - Lease,789.01,REDACTED PERSONAL DATA,,
Revenue,Community Wellbeing & Social Care,5105674543,02.01.2013,Homelessness,Accomm Costs - Lease,835.08,REDACTED PERSONAL DATA,,
Revenue,Community Wellbeing & Social Care,5105676387,04.01.2013,Adoption Costs,Support Children,87.15,REDACTED PERSONAL DATA,,
Revenue,Community Wellbeing & Social Care,5105677491,11.01.2013,Adoption Costs,Support Children,87.15,REDACTED PERSONAL DATA,,
Revenue,Community Wellbeing & Social Care,5105680214,23.01.2013,Adoption Costs,Support Children,87.15,REDACTED PERSONAL DATA,,
Revenue,Community Wellbeing & Social Care,5105678857,18.01.2013,Adoption Costs,Support Children,87.15,REDACTED PERSONAL DATA,,
Revenue,Community Wellbeing & Social Care,5105682036,31.01.2013,Adoption Costs,Support Children,87.15,REDACTED PERSONAL DATA,,
Revenue,Community Wellbeing & Social Care,5105676645,04.01.2013,Beaulieu-Community Home,Minor Works,45.00,A-1 GARAGE DOOR SPECIALISTS(IOW),,
Revenue,Economy & Environment,5105677049,09.01.2013,Trans. Stocks - St. Lighting,Order Settlement,"2,090.00",ABACUS LIGHTING LTD,,
Revenue,Community Wellbeing & Social Care,5105679393,18.01.2013,SP Older Persons,Payment to Private Contractors,"1,492.80",ABBEYFIELD WEST WIGHT SOCIETY,,
Revenue,Community Wellbeing & Social Care,5105675713,02.01.2013,EF Residential Care,Charges from Independent Providers,"1,622.60",ACACIA CARE HOME,,
Revenue,Community Wellbeing & Social Care,5105675714,02.01.2013,EF Residential Care,Charges from Independent Providers,"1,622.60",ACACIA CARE HOME,,
Revenue,Community Wellbeing & Social Care,5105681205,30.01.2013,EF Residential Care,Charges from Independent Providers,"1,622.60",ACACIA CARE HOME,,
Revenue,Community Wellbeing & Social Care,5105681205,30.01.2013,EF Residential Care,Charges from Independent Providers,"1,622.60",ACACIA CARE HOME,,
Revenue,Community Wellbeing & Social Care,5105675712,02.01.2013,EMI Residential Care,Charges from Independent Providers,"1,699.88",ACACIA CARE HOME,,
Revenue,Community Wellbeing & Social Care,5105681205,30.01.2013,EMI Residential Care,Charges from Independent Providers,"1,699.88",ACACIA CARE HOME,,
Revenue,Community Wellbeing & Social Care,5105678614,16.01.2013,EF Homecare,Charges from Independent Providers,770.00,ACORN CARE SERVICE LTD,,
Revenue,Community Wellbeing & Social Care,5105678615,16.01.2013,EF Homecare,Charges from Independent Providers,238.00,ACORN CARE SERVICE LTD,,
Revenue,Community Wellbeing & Social Care,5105678616,16.01.2013,EF Homecare,Charges from Independent Providers,66.50,ACORN CARE SERVICE LTD,,
Revenue,Community Wellbeing & Social Care,5105678617,16.01.2013,EF Homecare,Charges from Independent Providers,346.50,ACORN CARE SERVICE LTD,,
Revenue,Community Wellbeing & Social Care,5105678618,16.01.2013,EF Homecare,Charges from Independent Providers,98.00,ACORN CARE SERVICE LTD,,
Revenue,Community Wellbeing & Social Care,5105678619,16.01.2013,EF Homecare,Charges from Independent Providers,42.00,ACORN CARE SERVICE LTD,,
Revenue,Community Wellbeing & Social Care,5105678620,16.01.2013,EF Homecare,Charges from Independent Providers,203.00,ACORN CARE SERVICE LTD,,
Revenue,Community Wellbeing & Social Care,5105678621,16.01.2013,EF Homecare,Charges from Independent Providers,196.00,ACORN CARE SERVICE LTD,,
Revenue,Community Wellbeing & Social Care,5105678622,16.01.2013,EF Homecare,Charges from Independent Providers,196.00,ACORN CARE SERVICE LTD,,
Revenue,Community Wellbeing & Social Care,5105678623,16.01.2013,EF Homecare,Charges from Independent Providers,224.00,ACORN CARE SERVICE LTD,,
Revenue,Community Wellbeing & Social Care,5105678624,16.01.2013,EF Homecare,Charges from Independent Providers,84.00,ACORN CARE SERVICE LTD,,
Revenue,Community Wellbeing & Social Care,5105678625,16.01.2013,EF Homecare,Charges from Independent Providers,546.00,ACORN CARE SERVICE LTD,,
Revenue,Community Wellbeing & Social Care,5105678626,16.01.2013,EF Homecare,Charges from Independent Providers,129.50,ACORN CARE SERVICE LTD,,
Revenue,Community Wellbeing & Social Care,5105678627,16.01.2013,EF Homecare,Charges from Independent Providers,336.00,ACORN CARE SERVICE LTD,,
Revenue,Community Wellbeing & Social Care,5105678628,16.01.2013,EF Homecare,Charges from Independent Providers,392.00,ACORN CARE SERVICE LTD,,
Revenue,Community Wellbeing & Social Care,5105678629,16.01.2013,EF Homecare,Charges from Independent Providers,"1,673.00",ACORN CARE SERVICE LTD,,
Revenue,Community Wellbeing & Social Care,5105678601,16.01.2013,EF Homecare,Charges from Independent Providers,483.00,ACORN CARE SERVICE LTD,,
Revenue,Community Wellbeing & Social Care,5105678602,16.01.2013,EF Homecare,Charges from Independent Providers,756.00,ACORN CARE SERVICE LTD,,
Revenue,Community Wellbeing & Social Care,5105678603,16.01.2013,EF Homecare,Charges from Independent Providers,"2,100.00",ACORN CARE SERVICE LTD,,
Revenue,Community Wellbeing & Social Care,5105678605,16.01.2013,EF Homecare,Charges from Independent Providers,280.00,ACORN CARE SERVICE LTD,,
Revenue,Community Wellbeing & Social Care,5105678606,16.01.2013,EF Homecare,Charges from Independent Providers,182.00,ACORN CARE SERVICE LTD,,
Revenue,Community Wellbeing & Social Care,5105678607,16.01.2013,EF Homecare,Charges from Independent Providers,28.00,ACORN CARE SERVICE LTD,,
Revenue,Community Wellbeing & Social Care,5105678608,16.01.2013,EF Homecare,Charges from Independent Providers,686.16,ACORN CARE SERVICE LTD,,
Revenue,Community Wellbeing & Social Care,5105678609,16.01.2013,EF Homecare,Charges from Independent Providers,784.00,ACORN CARE SERVICE LTD,,
Revenue,Community Wellbeing & Social Care,5105678610,16.01.2013,EF Homecare,Charges from Independent Providers,"1,039.50",ACORN CARE SERVICE LTD,,
Revenue,Community Wellbeing & Social Care,5105678611,16.01.2013,EF Homecare,Charges from Independent Providers,"1,050.00",ACORN CARE SERVICE LTD,,
Revenue,Community Wellbeing & Social Care,5105678600,16.01.2013,EF Homecare,Charges from Independent Providers,322.00,ACORN CARE SERVICE LTD,,
Revenue,Community Wellbeing & Social Care,5105678630,16.01.2013,EF Homecare,Charges from Independent Providers,168.00,ACORN CARE SERVICE LTD,,
Revenue,Community Wellbeing & Social Care,5105678631,16.01.2013,EF Homecare,Charges from Independent Providers,56.00,ACORN CARE SERVICE LTD,,
Revenue,Community Wellbeing & Social Care,5105678632,16.01.2013,EF Homecare,Charges from Independent Providers,259.00,ACORN CARE SERVICE LTD,,
Revenue,Community Wellbeing & Social Care,5105678633,16.01.2013,EF Homecare,Charges from Independent Providers,76.24,ACORN CARE SERVICE LTD,,
Revenue,Community Wellbeing & Social Care,5105678634,16.01.2013,EF Homecare,Charges from Independent Providers,294.00,ACORN CARE SERVICE LTD,,
Revenue,Community Wellbeing & Social Care,5105678635,16.01.2013,EF Homecare,Charges from Independent Providers,84.00,ACORN CARE SERVICE LTD,,
Revenue,Community Wellbeing & Social Care,5105678636,16.01.2013,EF Homecare,Charges from Independent Providers,28.00,ACORN CARE SERVICE LTD,,
Revenue,Community Wellbeing & Social Care,5105678637,16.01.2013,EF Homecare,Charges from Independent Providers,224.00,ACORN CARE SERVICE LTD,,
Revenue,Community Wellbeing & Social Care,5105678638,16.01.2013,EF Homecare,Charges from Independent Providers,112.00,ACORN CARE SERVICE LTD,,
Revenue,Community Wellbeing & Social Care,5105678639,16.01.2013,EF Homecare,Charges from Independent Providers,196.00,ACORN CARE SERVICE LTD,,
Revenue,Community Wellbeing & Social Care,5105678612,16.01.2013,EF Homecare,Charges from Independent Providers,336.00,ACORN CARE SERVICE LTD,,
Revenue,Community Wellbeing & Social Care,5105678613,16.01.2013,EF Homecare,Charges from Independent Providers,843.50,ACORN CARE SERVICE LTD,,
Revenue,Community Wellbeing & Social Care,5105679031,18.01.2013,EF Homecare,Charges from Independent Providers,"1,057.00",ACORN CARE SERVICE LTD,,
Revenue,Community Wellbeing & Social Care,5105678604,16.01.2013,PD Homecare,Charges from Independent Providers,563.50,ACORN CARE SERVICE LTD,,
Revenue,Economy & Environment,5105680871,25.01.2013,Lynbottom Landfill Site,Professional Services,500.00,ACS TESTING LTD,,
Revenue,Economy & Environment,5105676326,02.01.2013,The Heights,Payment to Private Contractors,"-1,200.00",ACTIVE FACES WELLBEING LIMITED,,
Revenue,Economy & Environment,5105669361,02.01.2013,The Heights,Payment to Private Contractors,"1,200.00",ACTIVE FACES WELLBEING LIMITED,,
Revenue,Economy & Environment,5105678503,16.01.2013,Diversity & Workforce,Training,"2,905.39",ACTIVE LEARNING AND DEVELOPMENT LTD,,
Revenue,Economy & Environment,5105682303,31.01.2013,Chief Fire Officer,Vehicle Maintenance Costs,152.78,ADAMS MOREY LTD,,
Revenue,Economy & Environment,5105680444,25.01.2013,Technical Support,Vehicle Maintenance Costs,54.73,ADAMS MOREY LTD,,
Revenue,Economy & Environment,5105680446,25.01.2013,Technical Support,Vehicle Maintenance Costs,55.67,ADAMS MOREY LTD,,
Revenue,Economy & Environment,5105680449,25.01.2013,Technical Support,Vehicle Maintenance Costs,116.51,ADAMS MOREY LTD,,
Revenue,Economy & Environment,5105680441,25.01.2013,Technical Support,Vehicle Maintenance Costs,71.33,ADAMS MOREY LTD,,
Revenue,Economy & Environment,5105679921,23.01.2013,Technical Support,Vehicle Maintenance Costs,14.50,ADAMS MOREY LTD,,
Revenue,Economy & Environment,5105676720,04.01.2013,Technical Support,Vehicle Maintenance Costs,29.50,ADAMS MOREY LTD,,
Revenue,Economy & Environment,5105677683,16.01.2013,Technical Support,Vehicle Maintenance Costs,40.00,ADAMS MOREY LTD,,
Revenue,Economy & Environment,5105677717,16.01.2013,Technical Support,Vehicle Maintenance Costs,7.36,ADAMS MOREY LTD,,
Revenue,Economy & Environment,5105677717,16.01.2013,Technical Support,Vehicle Maintenance Costs,15.68,ADAMS MOREY LTD,,
Revenue,Economy & Environment,5105677717,16.01.2013,Technical Support,Vehicle Maintenance Costs,12.84,ADAMS MOREY LTD,,
Revenue,Economy & Environment,5105677178,09.01.2013,Technical Support,Vehicle Maintenance Costs,14.50,ADAMS MOREY LTD,,
Revenue,Economy & Environment,5105678421,16.01.2013,Technical Support,Vehicle Maintenance Costs,49.00,ADAMS MOREY LTD,,
Revenue,Economy & Environment,5105677722,18.01.2013,Technical Support,Vehicle Maintenance Costs,29.50,ADAMS MOREY LTD,,
Revenue,Economy & Environment,5105679607,23.01.2013,Technical Support,Vehicle Maintenance Costs,14.50,ADAMS MOREY LTD,,
Revenue,Economy & Environment,5105679609,23.01.2013,Technical Support,Vehicle Maintenance Costs,150.65,ADAMS MOREY LTD,,
Revenue,Economy & Environment,5105682303,31.01.2013,Technical Support,Vehicle Maintenance Costs,13.76,ADAMS MOREY LTD,,
Revenue,Economy & Environment,5105682303,31.01.2013,Technical Support,Vehicle Maintenance Costs,7.80,ADAMS MOREY LTD,,
Revenue,Economy & Environment,5105680925,30.01.2013,Technical Support,Vehicle Maintenance Costs,14.50,ADAMS MOREY LTD,,
Revenue,Economy & Environment,5105682303,31.01.2013,Technical Support,Vehicle Maintenance Costs,0.36,ADAMS MOREY LTD,,
Revenue,Community Wellbeing & Social Care,5105677389,09.01.2013,LD Other Care,Training,"1,472.40",ADRC SOUTHAMPTON LTD,,
Revenue,Community Wellbeing & Social Care,5105680897,30.01.2013,LD Other Care,Training,867.45,ADRC SOUTHAMPTON LTD,,
Revenue,Resources,5105677435,11.01.2013,Transformation Costs,Operational Equipment,"2,037.44",ADT FIRE AND SECURITY PLC,,
Revenue,Economy & Environment,5105677112,09.01.2013,Medina Leisure Centre,Payment to Private Contractors,311.92,ADT FIRE AND SECURITY PLC,,
Revenue,Community Wellbeing & Social Care,5105680175,23.01.2013,Youth- Cowes,Security of Buildings,90.46,ADT FIRE AND SECURITY PLC,,
Revenue,Community Wellbeing & Social Care,5105681963,30.01.2013,Local Safeguarding Childrens Board,Training,55.00,AFT (SUSSEX),,
Revenue,Economy & Environment,5105680416,25.01.2013,Struct Maint Other Roads,Minor Works,"1,233.76",AGGREGATE INDUSTRIES,,
Revenue,Economy & Environment,5105676554,04.01.2013,Struct Maint Other Roads,Highways Minor Works,104.56,AGGREGATE INDUSTRIES,,
Revenue,Economy & Environment,5105678100,16.01.2013,Struct Maint Other Roads,Highways Minor Works,121.86,AGGREGATE INDUSTRIES,,
Revenue,Economy & Environment,5105678101,16.01.2013,Struct Maint Other Roads,Highways Minor Works,355.29,AGGREGATE INDUSTRIES,,
Revenue,Economy & Environment,5105679698,23.01.2013,Struct Maint Other Roads,Highways Minor Works,127.37,AGGREGATE INDUSTRIES,,
Revenue,Economy & Environment,5105679699,23.01.2013,Struct Maint Other Roads,Highways Minor Works,62.74,AGGREGATE INDUSTRIES,,
Revenue,Economy & Environment,5105679339,18.01.2013,Struct Maint Other Roads,Highways Minor Works,270.40,AGGREGATE INDUSTRIES,,
Revenue,Economy & Environment,5105679342,18.01.2013,Struct Maint Other Roads,Highways Minor Works,252.64,AGGREGATE INDUSTRIES,,
Revenue,Economy & Environment,5105679343,18.01.2013,Struct Maint Other Roads,Highways Minor Works,121.40,AGGREGATE INDUSTRIES,,
Revenue,Economy & Environment,5105679344,18.01.2013,Struct Maint Other Roads,Highways Minor Works,459.27,AGGREGATE INDUSTRIES,,
Revenue,Economy & Environment,5105679983,23.01.2013,Struct Maint Other Roads,Highways Minor Works,636.56,AGGREGATE INDUSTRIES,,
Revenue,Economy & Environment,5105679701,23.01.2013,Struct Maint Other Roads,Highways Minor Works,325.07,AGGREGATE INDUSTRIES,,
Revenue,Economy & Environment,5105679702,23.01.2013,Struct Maint Other Roads,Highways Minor Works,382.10,AGGREGATE INDUSTRIES,,
Revenue,Economy & Environment,5105679703,23.01.2013,Struct Maint Other Roads,Highways Minor Works,246.04,AGGREGATE INDUSTRIES,,
Revenue,Economy & Environment,5105682190,31.01.2013,Struct Maint Other Roads,Highways Minor Works,60.97,AGGREGATE INDUSTRIES,,
Revenue,Economy & Environment,5105682191,31.01.2013,Struct Maint Other Roads,Highways Minor Works,250.08,AGGREGATE INDUSTRIES,,
Revenue,Economy & Environment,5105680417,25.01.2013,Struct Maint Principal Roads,Highways Minor Works,163.34,AGGREGATE INDUSTRIES,,
Revenue,Economy & Environment,5105676837,09.01.2013,Struct Maint Principal Roads,Highways Minor Works,"1,841.12",AGGREGATE INDUSTRIES,,
Revenue,Economy & Environment,5105679700,23.01.2013,Struct Maint Principal Roads,Highways Minor Works,"6,657.85",AGGREGATE INDUSTRIES,,
Revenue,Economy & Environment,5105679981,23.01.2013,Safety Maint Other Roads,Highways Minor Works,69.19,AGGREGATE INDUSTRIES,,
Revenue,Economy & Environment,5105679340,18.01.2013,Public Realm contract gaps,Highways Minor Works,23.96,AGGREGATE INDUSTRIES,,
Revenue,Economy & Environment,5105679982,23.01.2013,Public Realm contract gaps,Highways Minor Works,4.69,AGGREGATE INDUSTRIES,,
Capital,Economy & Environment,5105679338,18.01.2013,Other Highways maintenance,Capital Contractor Payments,"16,500.00",AGGREGATE INDUSTRIES,,
Capital,Economy & Environment,5105679341,18.01.2013,Other Highways maintenance,Capital Contractor Payments,"60,371.49",AGGREGATE INDUSTRIES,,
Capital,Economy & Environment,5105679345,18.01.2013,Other Highways maintenance,Capital Contractor Payments,"18,927.91",AGGREGATE INDUSTRIES,,
Revenue,Economy & Environment,5105679306,18.01.2013,Public Realm contract gaps,Highways Minor Works,49.95,AGGREGATE INDUSTRIES,,
Revenue,Economy & Environment,5105679307,18.01.2013,Public Realm contract gaps,Highways Minor Works,80.05,AGGREGATE INDUSTRIES,,
Revenue,Economy & Environment,5105679308,18.01.2013,Public Realm contract gaps,Highways Minor Works,246.68,AGGREGATE INDUSTRIES,,
Revenue,Economy & Environment,5105679309,18.01.2013,Public Realm contract gaps,Highways Minor Works,336.80,AGGREGATE INDUSTRIES,,
Revenue,Economy & Environment,5105679682,23.01.2013,Public Realm contract gaps,Highways Minor Works,38.44,AGGREGATE INDUSTRIES,,
Revenue,Economy & Environment,5105679683,23.01.2013,Public Realm contract gaps,Highways Minor Works,297.60,AGGREGATE INDUSTRIES,,
Revenue,Economy & Environment,5105679684,23.01.2013,Public Realm contract gaps,Highways Minor Works,128.41,AGGREGATE INDUSTRIES,,
Revenue,Economy & Environment,5105679969,23.01.2013,Public Realm contract gaps,Highways Minor Works,131.04,AGGREGATE INDUSTRIES,,
Revenue,Economy & Environment,5105676535,04.01.2013,Public Realm contract gaps,Highways Minor Works,113.70,AGGREGATE INDUSTRIES,,
Revenue,Economy & Environment,5105676536,04.01.2013,Public Realm contract gaps,Highways Minor Works,158.45,AGGREGATE INDUSTRIES,,
Revenue,Economy & Environment,5105676537,04.01.2013,Public Realm contract gaps,Highways Minor Works,202.87,AGGREGATE INDUSTRIES,,
Revenue,Economy & Environment,5105682184,31.01.2013,Public Realm contract gaps,Highways Minor Works,90.64,AGGREGATE INDUSTRIES,,
Revenue,Economy & Environment,5105682185,31.01.2013,Public Realm contract gaps,Highways Minor Works,265.53,AGGREGATE INDUSTRIES,,
Revenue,Economy & Environment,5105682186,31.01.2013,Public Realm contract gaps,Highways Minor Works,41.77,AGGREGATE INDUSTRIES,,
Revenue,Economy & Environment,5105679556,23.01.2013,Technical Support,Vehicle Maintenance Costs,7.50,AIR LOGISTICS NETWORKS LTD,,
Revenue,Economy & Environment,5105678433,16.01.2013,Env.Health Geographical Team,Professional Services,50.83,AIR LOGISTICS NETWORKS LTD,,
Revenue,Economy & Environment,5105673394,02.01.2013,Env.Health Geographical Team,Professional Services,40.00,AIR LOGISTICS NETWORKS LTD,,
Revenue,Economy & Environment,5105673394,02.01.2013,Env.Health Geographical Team,Courier Costs,17.50,AIR LOGISTICS NETWORKS LTD,,
Revenue,Community Wellbeing & Social Care,5105677715,16.01.2013,Short Term Units,Agency staff,"1,480.00",AIR SOCIAL CARE,,
Revenue,Community Wellbeing & Social Care,5105677968,11.01.2013,Short Term Units,Agency staff,"1,480.00",AIR SOCIAL CARE,,
Revenue,Community Wellbeing & Social Care,5105678040,16.01.2013,LAC Units 1-4,Agency staff,"1,480.00",AIR SOCIAL CARE,,
Revenue,Community Wellbeing & Social Care,5105678041,16.01.2013,LAC Units 1-4,Agency staff,"1,517.00",AIR SOCIAL CARE,,
Revenue,Community Wellbeing & Social Care,5105680450,25.01.2013,Reviewing Officer,Agency staff,"1,665.00",AIR SOCIAL CARE,,
Revenue,Community Wellbeing & Social Care,5105671954,11.01.2013,Reviewing Officer,Agency staff,"1,665.00",AIR SOCIAL CARE,,
Revenue,Community Wellbeing & Social Care,5105682289,31.01.2013,Reviewing Officer,Agency staff,"1,665.00",AIR SOCIAL CARE,,
Revenue,Community Wellbeing & Social Care,5105677713,23.01.2013,Reviewing Officer,Agency staff,"1,665.00",AIR SOCIAL CARE,,
Revenue,Community Wellbeing & Social Care,5105677970,11.01.2013,Reviewing Officer,Agency staff,675.00,AIR SOCIAL CARE,,
Revenue,Community Wellbeing & Social Care,5105671954,11.01.2013,Reviewing Officer,Travel Expenses,35.55,AIR SOCIAL CARE,,
Revenue,Community Wellbeing & Social Care,5105682289,31.01.2013,Reviewing Officer,Travel Expenses,104.32,AIR SOCIAL CARE,,
Revenue,Community Wellbeing & Social Care,5105680450,25.01.2013,Reviewing Officer,Travel Expenses,104.32,AIR SOCIAL CARE,,
Revenue,Community Wellbeing & Social Care,5105677713,23.01.2013,Reviewing Officer,Travel Expenses,220.47,AIR SOCIAL CARE,,
Revenue,Community Wellbeing & Social Care,5105677050,09.01.2013,17 Fairlee Road,Fixtures and Fittings,85.00,ALAN SHEPARD (IOW),,
Revenue,Community Wellbeing & Social Care,5105682291,31.01.2013,Support for LAC,Professional Services,245.00,ALAN SHEPARD (IOW),,
Revenue,Community Wellbeing & Social Care,5105681030,30.01.2013,Support for LAC,Support Children,65.00,ALAN SHEPARD (IOW),,
Revenue,Corporate,5105676790,09.01.2013,BSIP savings,Capital Contractor Payments,375.00,ALAN SHEPARD (IOW),,
Revenue,Corporate,5105677468,11.01.2013,BSIP savings,Other Capital Expenditure,305.00,ALAN SHEPARD (IOW),,
Revenue,Corporate,5105677468,11.01.2013,BSIP savings,Other Capital Expenditure,225.00,ALAN SHEPARD (IOW),,
Revenue,Corporate,5105680072,23.01.2013,BSIP savings,Other Capital Expenditure,"1,770.00",ALAN SHEPARD (IOW),,
Revenue,Corporate,5105677737,11.01.2013,BSIP savings,Other Capital Expenditure,385.00,ALAN SHEPARD (IOW),,
Revenue,Corporate,5105677737,11.01.2013,BSIP savings,Other Capital Expenditure,75.00,ALAN SHEPARD (IOW),,
Revenue,Corporate,5105677737,11.01.2013,BSIP savings,Other Capital Expenditure,270.00,ALAN SHEPARD (IOW),,
Revenue,Corporate,5105680809,30.01.2013,BSIP savings,Other Capital Expenditure,"1,015.00",ALAN SHEPARD (IOW),,
Revenue,Resources,5105678042,16.01.2013,Risk,Professional Subscriptions,145.00,ALARM,,
Revenue,Economy & Environment,5105678028,16.01.2013,Insurance,Professional Subscriptions,145.00,ALARM,,
Revenue,Economy & Environment,5105678128,16.01.2013,Development Control,Advertising & Publicity,690.48,ALEXANDER ADVERTISING (INT) LTD,,
Revenue,Economy & Environment,5105677340,18.01.2013,Development Control,Advertising & Publicity,584.64,ALEXANDER ADVERTISING (INT) LTD,,
Revenue,Economy & Environment,5105677760,11.01.2013,Development Control,Advertising & Publicity,342.72,ALEXANDER ADVERTISING (INT) LTD,,
Revenue,Economy & Environment,5105679502,18.01.2013,Development Control,Advertising & Publicity,408.24,ALEXANDER ADVERTISING (INT) LTD,,
Revenue,Economy & Environment,5105679235,18.01.2013,Development Control,Advertising & Publicity,-342.72,ALEXANDER ADVERTISING (INT) LTD,,
Revenue,Economy & Environment,5105679236,18.01.2013,Development Control,Advertising & Publicity,342.72,ALEXANDER ADVERTISING (INT) LTD,,
Revenue,Economy & Environment,5105680498,25.01.2013,Development Control,Advertising & Publicity,410.81,ALEXANDER ADVERTISING (INT) LTD,,
Revenue,Community Wellbeing & Social Care,5105676791,09.01.2013,Support for LAC,Support Children,32.00,ALL SAINTS C E PRIMARY SCHOOL,,
Revenue,Community Wellbeing & Social Care,5105676792,09.01.2013,Support for LAC,Support Children,17.00,ALL SAINTS C E PRIMARY SCHOOL,,
Revenue,Resources,5105679839,23.01.2013,Elections,Building & Room Rent,110.00,ALL SAINTS CHURCH HALL,,
Revenue,Community Wellbeing & Social Care,5105682236,31.01.2013,Agency Domicilary Care,Professional Services,30.00,ALPHA (IOW) LTD,,
Revenue,Community Wellbeing & Social Care,5105679677,23.01.2013,Yth -UK Youth Parliament,Taxis - Contract Hire,10.60,ALPHA (IOW) LTD,,
Revenue,"Chief Executive, Schools & Learning",5105679952,23.01.2013,SEN Transport,Taxis - Contract Hire,500.00,ALPHA (IOW) LTD,,
Revenue,"Chief Executive, Schools & Learning",5105679952,23.01.2013,SEN Transport,Taxis - Contract Hire,100.00,ALPHA (IOW) LTD,,
Revenue,"Chief Executive, Schools & Learning",5105679952,23.01.2013,SEN Transport,Taxis - Contract Hire,230.00,ALPHA (IOW) LTD,,
Revenue,"Chief Executive, Schools & Learning",5105679952,23.01.2013,SEN Transport,Taxis - Contract Hire,307.80,ALPHA (IOW) LTD,,
Revenue,"Chief Executive, Schools & Learning",5105679952,23.01.2013,SEN Transport,Taxis - Contract Hire,380.00,ALPHA (IOW) LTD,,
Revenue,"Chief Executive, Schools & Learning",5105679952,23.01.2013,SEN Transport,Taxis - Contract Hire,300.00,ALPHA (IOW) LTD,,
Revenue,"Chief Executive, Schools & Learning",5105679952,23.01.2013,SEN Transport,Taxis - Contract Hire,82.10,ALPHA (IOW) LTD,,
Revenue,"Chief Executive, Schools & Learning",5105679952,23.01.2013,SEN Transport,Taxis - Contract Hire,256.50,ALPHA (IOW) LTD,,
Revenue,"Chief Executive, Schools & Learning",5105676663,04.01.2013,SEN Transport,Taxis - Contract Hire,256.50,ALPHA (IOW) LTD,,
Revenue,"Chief Executive, Schools & Learning",5105676663,04.01.2013,SEN Transport,Taxis - Contract Hire,350.00,ALPHA (IOW) LTD,,
Revenue,"Chief Executive, Schools & Learning",5105676663,04.01.2013,SEN Transport,Taxis - Contract Hire,80.00,ALPHA (IOW) LTD,,
Revenue,"Chief Executive, Schools & Learning",5105676663,04.01.2013,SEN Transport,Taxis - Contract Hire,500.00,ALPHA (IOW) LTD,,
Revenue,"Chief Executive, Schools & Learning",5105676663,04.01.2013,SEN Transport,Taxis - Contract Hire,100.00,ALPHA (IOW) LTD,,
Revenue,"Chief Executive, Schools & Learning",5105676663,04.01.2013,SEN Transport,Taxis - Contract Hire,230.00,ALPHA (IOW) LTD,,
Revenue,"Chief Executive, Schools & Learning",5105676663,04.01.2013,SEN Transport,Taxis - Contract Hire,307.80,ALPHA (IOW) LTD,,
Revenue,"Chief Executive, Schools & Learning",5105676663,04.01.2013,SEN Transport,Taxis - Contract Hire,380.00,ALPHA (IOW) LTD,,
Revenue,"Chief Executive, Schools & Learning",5105676663,04.01.2013,SEN Transport,Taxis - Contract Hire,300.00,ALPHA (IOW) LTD,,
Revenue,"Chief Executive, Schools & Learning",5105676663,04.01.2013,SEN Transport,Taxis - Contract Hire,82.10,ALPHA (IOW) LTD,,
Revenue,"Chief Executive, Schools & Learning",5105677266,09.01.2013,SEN Transport,Taxis - Contract Hire,500.00,ALPHA (IOW) LTD,,
Revenue,"Chief Executive, Schools & Learning",5105677266,09.01.2013,SEN Transport,Taxis - Contract Hire,100.00,ALPHA (IOW) LTD,,
Revenue,"Chief Executive, Schools & Learning",5105677266,09.01.2013,SEN Transport,Taxis - Contract Hire,200.00,ALPHA (IOW) LTD,,
Revenue,"Chief Executive, Schools & Learning",5105677266,09.01.2013,SEN Transport,Taxis - Contract Hire,307.80,ALPHA (IOW) LTD,,
Revenue,"Chief Executive, Schools & Learning",5105677266,09.01.2013,SEN Transport,Taxis - Contract Hire,380.00,ALPHA (IOW) LTD,,
Revenue,"Chief Executive, Schools & Learning",5105677266,09.01.2013,SEN Transport,Taxis - Contract Hire,300.00,ALPHA (IOW) LTD,,
Revenue,"Chief Executive, Schools & Learning",5105677266,09.01.2013,SEN Transport,Taxis - Contract Hire,82.10,ALPHA (IOW) LTD,,
Revenue,"Chief Executive, Schools & Learning",5105677266,09.01.2013,SEN Transport,Taxis - Contract Hire,256.50,ALPHA (IOW) LTD,,
Revenue,"Chief Executive, Schools & Learning",5105677266,09.01.2013,SEN Transport,Taxis - Contract Hire,350.00,ALPHA (IOW) LTD,,
Revenue,"Chief Executive, Schools & Learning",5105677196,09.01.2013,SEN Transport,Taxis - Contract Hire,400.00,ALPHA (IOW) LTD,,
Revenue,"Chief Executive, Schools & Learning",5105677196,09.01.2013,SEN Transport,Taxis - Contract Hire,100.00,ALPHA (IOW) LTD,,
Revenue,"Chief Executive, Schools & Learning",5105677196,09.01.2013,SEN Transport,Taxis - Contract Hire,160.00,ALPHA (IOW) LTD,,
Revenue,"Chief Executive, Schools & Learning",5105677196,09.01.2013,SEN Transport,Taxis - Contract Hire,307.80,ALPHA (IOW) LTD,,
Revenue,"Chief Executive, Schools & Learning",5105677196,09.01.2013,SEN Transport,Taxis - Contract Hire,380.00,ALPHA (IOW) LTD,,
Revenue,"Chief Executive, Schools & Learning",5105677196,09.01.2013,SEN Transport,Taxis - Contract Hire,300.00,ALPHA (IOW) LTD,,
Revenue,"Chief Executive, Schools & Learning",5105677196,09.01.2013,SEN Transport,Taxis - Contract Hire,65.68,ALPHA (IOW) LTD,,
Revenue,"Chief Executive, Schools & Learning",5105677196,09.01.2013,SEN Transport,Taxis - Contract Hire,230.85,ALPHA (IOW) LTD,,
Revenue,"Chief Executive, Schools & Learning",5105677196,09.01.2013,SEN Transport,Taxis - Contract Hire,350.00,ALPHA (IOW) LTD,,
Revenue,"Chief Executive, Schools & Learning",5105677196,09.01.2013,SEN Transport,Taxis - Contract Hire,64.00,ALPHA (IOW) LTD,,
Revenue,"Chief Executive, Schools & Learning",5105677266,09.01.2013,SEN Transport,Taxis - Contract Hire,96.00,ALPHA (IOW) LTD,,
Revenue,"Chief Executive, Schools & Learning",5105679952,23.01.2013,SEN Transport,Taxis - Contract Hire,350.00,ALPHA (IOW) LTD,,
Revenue,"Chief Executive, Schools & Learning",5105679952,23.01.2013,SEN Transport,Taxis - Contract Hire,80.00,ALPHA (IOW) LTD,,
Revenue,"Chief Executive, Schools & Learning",5105681860,31.01.2013,SEN Transport,Taxis - Contract Hire,64.00,ALPHA (IOW) LTD,,
Revenue,"Chief Executive, Schools & Learning",5105681860,31.01.2013,SEN Transport,Taxis - Contract Hire,400.00,ALPHA (IOW) LTD,,
Revenue,"Chief Executive, Schools & Learning",5105681860,31.01.2013,SEN Transport,Taxis - Contract Hire,80.00,ALPHA (IOW) LTD,,
Revenue,"Chief Executive, Schools & Learning",5105681860,31.01.2013,SEN Transport,Taxis - Contract Hire,184.00,ALPHA (IOW) LTD,,
Revenue,"Chief Executive, Schools & Learning",5105681860,31.01.2013,SEN Transport,Taxis - Contract Hire,123.12,ALPHA (IOW) LTD,,
Revenue,"Chief Executive, Schools & Learning",5105681860,31.01.2013,SEN Transport,Taxis - Contract Hire,152.00,ALPHA (IOW) LTD,,
Revenue,"Chief Executive, Schools & Learning",5105681860,31.01.2013,SEN Transport,Taxis - Contract Hire,120.00,ALPHA (IOW) LTD,,
Revenue,"Chief Executive, Schools & Learning",5105681860,31.01.2013,SEN Transport,Taxis - Contract Hire,65.68,ALPHA (IOW) LTD,,
Revenue,"Chief Executive, Schools & Learning",5105681860,31.01.2013,SEN Transport,Taxis - Contract Hire,205.20,ALPHA (IOW) LTD,,
Revenue,"Chief Executive, Schools & Learning",5105681860,31.01.2013,SEN Transport,Taxis - Contract Hire,280.00,ALPHA (IOW) LTD,,
Revenue,"Chief Executive, Schools & Learning",5105676663,04.01.2013,Home to School Transport,Taxis - Contract Hire,125.00,ALPHA (IOW) LTD,,
Revenue,"Chief Executive, Schools & Learning",5105676663,04.01.2013,Home to School Transport,Taxis - Contract Hire,153.90,ALPHA (IOW) LTD,,
Revenue,"Chief Executive, Schools & Learning",5105676663,04.01.2013,Home to School Transport,Taxis - Contract Hire,100.00,ALPHA (IOW) LTD,,
Revenue,"Chief Executive, Schools & Learning",5105676663,04.01.2013,Home to School Transport,Taxis - Contract Hire,380.00,ALPHA (IOW) LTD,,
Revenue,"Chief Executive, Schools & Learning",5105676663,04.01.2013,Home to School Transport,Taxis - Contract Hire,320.00,ALPHA (IOW) LTD,,
Revenue,"Chief Executive, Schools & Learning",5105676663,04.01.2013,Home to School Transport,Taxis - Contract Hire,430.00,ALPHA (IOW) LTD,,
Revenue,"Chief Executive, Schools & Learning",5105676663,04.01.2013,Home to School Transport,Taxis - Contract Hire,150.00,ALPHA (IOW) LTD,,
Revenue,"Chief Executive, Schools & Learning",5105676663,04.01.2013,Home to School Transport,Taxis - Contract Hire,182.10,ALPHA (IOW) LTD,,
Revenue,"Chief Executive, Schools & Learning",5105676663,04.01.2013,Home to School Transport,Taxis - Contract Hire,82.10,ALPHA (IOW) LTD,,
Revenue,"Chief Executive, Schools & Learning",5105677196,09.01.2013,Home to School Transport,Taxis - Contract Hire,100.00,ALPHA (IOW) LTD,,
Revenue,"Chief Executive, Schools & Learning",5105677196,09.01.2013,Home to School Transport,Taxis - Contract Hire,344.00,ALPHA (IOW) LTD,,
Revenue,"Chief Executive, Schools & Learning",5105677196,09.01.2013,Home to School Transport,Taxis - Contract Hire,296.00,ALPHA (IOW) LTD,,
Revenue,"Chief Executive, Schools & Learning",5105677196,09.01.2013,Home to School Transport,Taxis - Contract Hire,430.00,ALPHA (IOW) LTD,,
Revenue,"Chief Executive, Schools & Learning",5105677196,09.01.2013,Home to School Transport,Taxis - Contract Hire,150.00,ALPHA (IOW) LTD,,
Revenue,"Chief Executive, Schools & Learning",5105677196,09.01.2013,Home to School Transport,Taxis - Contract Hire,182.10,ALPHA (IOW) LTD,,
Revenue,"Chief Executive, Schools & Learning",5105677196,09.01.2013,Home to School Transport,Taxis - Contract Hire,82.10,ALPHA (IOW) LTD,,
Revenue,"Chief Executive, Schools & Learning",5105677196,09.01.2013,Home to School Transport,Taxis - Contract Hire,100.00,ALPHA (IOW) LTD,,
Revenue,"Chief Executive, Schools & Learning",5105677266,09.01.2013,Home to School Transport,Taxis - Contract Hire,100.00,ALPHA (IOW) LTD,,
Revenue,"Chief Executive, Schools & Learning",5105677266,09.01.2013,Home to School Transport,Taxis - Contract Hire,380.00,ALPHA (IOW) LTD,,
Revenue,"Chief Executive, Schools & Learning",5105677266,09.01.2013,Home to School Transport,Taxis - Contract Hire,320.00,ALPHA (IOW) LTD,,
Revenue,"Chief Executive, Schools & Learning",5105677266,09.01.2013,Home to School Transport,Taxis - Contract Hire,530.00,ALPHA (IOW) LTD,,
Revenue,"Chief Executive, Schools & Learning",5105677266,09.01.2013,Home to School Transport,Taxis - Contract Hire,150.00,ALPHA (IOW) LTD,,
Revenue,"Chief Executive, Schools & Learning",5105677266,09.01.2013,Home to School Transport,Taxis - Contract Hire,291.10,ALPHA (IOW) LTD,,
Revenue,"Chief Executive, Schools & Learning",5105677266,09.01.2013,Home to School Transport,Taxis - Contract Hire,82.10,ALPHA (IOW) LTD,,
Revenue,"Chief Executive, Schools & Learning",5105677266,09.01.2013,Home to School Transport,Taxis - Contract Hire,125.00,ALPHA (IOW) LTD,,
Revenue,"Chief Executive, Schools & Learning",5105677266,09.01.2013,Home to School Transport,Taxis - Contract Hire,153.90,ALPHA (IOW) LTD,,
Revenue,"Chief Executive, Schools & Learning",5105677196,09.01.2013,Home to School Transport,Taxis - Contract Hire,123.12,ALPHA (IOW) LTD,,
Revenue,"Chief Executive, Schools & Learning",5105679952,23.01.2013,Home to School Transport,Taxis - Contract Hire,100.00,ALPHA (IOW) LTD,,
Revenue,"Chief Executive, Schools & Learning",5105679952,23.01.2013,Home to School Transport,Taxis - Contract Hire,380.00,ALPHA (IOW) LTD,,
Revenue,"Chief Executive, Schools & Learning",5105679952,23.01.2013,Home to School Transport,Taxis - Contract Hire,320.00,ALPHA (IOW) LTD,,
Revenue,"Chief Executive, Schools & Learning",5105679952,23.01.2013,Home to School Transport,Taxis - Contract Hire,430.00,ALPHA (IOW) LTD,,
Revenue,"Chief Executive, Schools & Learning",5105679952,23.01.2013,Home to School Transport,Taxis - Contract Hire,150.00,ALPHA (IOW) LTD,,
Revenue,"Chief Executive, Schools & Learning",5105679952,23.01.2013,Home to School Transport,Taxis - Contract Hire,152.10,ALPHA (IOW) LTD,,
Revenue,"Chief Executive, Schools & Learning",5105679952,23.01.2013,Home to School Transport,Taxis - Contract Hire,82.10,ALPHA (IOW) LTD,,
Revenue,"Chief Executive, Schools & Learning",5105679952,23.01.2013,Home to School Transport,Taxis - Contract Hire,153.90,ALPHA (IOW) LTD,,
Revenue,"Chief Executive, Schools & Learning",5105681860,31.01.2013,Home to School Transport,Taxis - Contract Hire,80.00,ALPHA (IOW) LTD,,
Revenue,"Chief Executive, Schools & Learning",5105681860,31.01.2013,Home to School Transport,Taxis - Contract Hire,304.00,ALPHA (IOW) LTD,,
Revenue,"Chief Executive, Schools & Learning",5105681860,31.01.2013,Home to School Transport,Taxis - Contract Hire,256.00,ALPHA (IOW) LTD,,
Revenue,"Chief Executive, Schools & Learning",5105681860,31.01.2013,Home to School Transport,Taxis - Contract Hire,348.00,ALPHA (IOW) LTD,,
Revenue,"Chief Executive, Schools & Learning",5105681860,31.01.2013,Home to School Transport,Taxis - Contract Hire,120.00,ALPHA (IOW) LTD,,
Revenue,"Chief Executive, Schools & Learning",5105681860,31.01.2013,Home to School Transport,Taxis - Contract Hire,145.68,ALPHA (IOW) LTD,,
Revenue,"Chief Executive, Schools & Learning",5105681860,31.01.2013,Home to School Transport,Taxis - Contract Hire,65.68,ALPHA (IOW) LTD,,
Revenue,"Chief Executive, Schools & Learning",5105681860,31.01.2013,Home to School Transport,Taxis - Contract Hire,123.12,ALPHA (IOW) LTD,,
Revenue,Community Wellbeing & Social Care,5105675047,02.01.2013,LD Residential Care,Charges from Independent Providers,"3,409.00",ALPHAGRANGE LTD,,
Revenue,Community Wellbeing & Social Care,5105681104,30.01.2013,LD Residential Care,Charges from Independent Providers,"3,409.00",ALPHAGRANGE LTD,,
Revenue,"Chief Executive, Schools & Learning",5105679266,18.01.2013,SEN Transport,Taxis - Contract Hire,472.50,AMAR CABS OF NEWPORT,,
Revenue,"Chief Executive, Schools & Learning",5105680906,30.01.2013,Tuition Centres,Taxis - Contract Hire,713.00,AMAR EXCLUSIVES,,
Revenue,Community Wellbeing & Social Care,5105680003,23.01.2013,Child Protection Co-Ordinator,Agency staff,"7,140.00",AMICUS INTERIM LTD,,
Revenue,Community Wellbeing & Social Care,5105678129,16.01.2013,OA Residential Care,Charges from Independent Providers,344.70,ANA TREATMENT CENTRES LTD,,
Revenue,Community Wellbeing & Social Care,5105678129,16.01.2013,DAT Adults,Charges from Independent Providers,91.00,ANA TREATMENT CENTRES LTD,,
Revenue,Resources,5105676593,04.01.2013,ICT Technical Support,Agency staff,150.00,ANCHOR RECRUITMENT,,
Revenue,Community Wellbeing & Social Care,5105675060,02.01.2013,EF Residential Care,Charges from Independent Providers,"1,998.08",ANCONA CARE HOME,,
Revenue,Community Wellbeing & Social Care,5105675059,02.01.2013,EF Residential Care,Charges from Independent Providers,"1,622.60",ANCONA CARE HOME,,
Revenue,Community Wellbeing & Social Care,5105675058,02.01.2013,EF Residential Care,Charges from Independent Providers,"1,622.60",ANCONA CARE HOME,,
Revenue,Community Wellbeing & Social Care,5105681106,30.01.2013,EF Residential Care,Charges from Independent Providers,"1,622.60",ANCONA CARE HOME,,
Revenue,Community Wellbeing & Social Care,5105681106,30.01.2013,EF Residential Care,Charges from Independent Providers,"1,998.08",ANCONA CARE HOME,,
Revenue,Community Wellbeing & Social Care,5105675057,02.01.2013,EMI Residential Care,Charges from Independent Providers,"1,998.08",ANCONA CARE HOME,,
Revenue,Community Wellbeing & Social Care,5105681106,30.01.2013,EMI Residential Care,Charges from Independent Providers,"1,998.08",ANCONA CARE HOME,,
Revenue,Community Wellbeing & Social Care,5105676336,02.01.2013,Youth Offending Team,Office Equipment,149.17,ANDREWS AIR CONDITIONING,,
Capital,Economy & Environment,5105677160,09.01.2013,Fire Capital,"Plant, Equipment & Furniture","115,723.00",ANGLOCO LTD,,
Revenue,"Chief Executive, Schools & Learning",5105677150,09.01.2013,Print Unit,Printing Costs,79.86,ANTALIS MCNAUGHTON,,
Revenue,"Chief Executive, Schools & Learning",5105677150,09.01.2013,Print Unit,Printing Costs,94.87,ANTALIS MCNAUGHTON,,
Revenue,"Chief Executive, Schools & Learning",5105679521,23.01.2013,Print Unit,Printing Costs,59.91,ANTALIS MCNAUGHTON,,
Revenue,"Chief Executive, Schools & Learning",5105680005,23.01.2013,Print Unit,Printing Costs,142.30,ANTALIS MCNAUGHTON,,
Revenue,"Chief Executive, Schools & Learning",5105679521,23.01.2013,Print Unit,Printing Costs,142.30,ANTALIS MCNAUGHTON,,
Revenue,"Chief Executive, Schools & Learning",5105680480,25.01.2013,Print Unit,Printing Costs,133.11,ANTALIS MCNAUGHTON,,
Revenue,"Chief Executive, Schools & Learning",5105681012,30.01.2013,Print Unit,Printing Costs,79.86,ANTALIS MCNAUGHTON,,
Revenue,"Chief Executive, Schools & Learning",5105681012,30.01.2013,Print Unit,Printing Costs,49.32,ANTALIS MCNAUGHTON,,
Revenue,"Chief Executive, Schools & Learning",5105681012,30.01.2013,Print Unit,Printing Costs,57.20,ANTALIS MCNAUGHTON,,
Revenue,Economy & Environment,5105679225,23.01.2013,Licensing Services,Veterinary Fees,568.01,ANTON VETS,,
Revenue,Community Wellbeing & Social Care,5105677971,16.01.2013,Support for LAC,Public Transport Fares,768.00,ANYWHERE TAXIS,,
Revenue,Community Wellbeing & Social Care,5105678002,16.01.2013,Support for LAC,Public Transport Fares,648.00,ANYWHERE TAXIS,,
Revenue,Community Wellbeing & Social Care,5105678130,16.01.2013,LAC Units 1-4,Travel Expenses,3.70,AQUA CARS LTD,,
Revenue,Community Wellbeing & Social Care,5105678014,16.01.2013,LAC Units 1-4,Travel Expenses,4.40,AQUA CARS LTD,,
Revenue,Community Wellbeing & Social Care,5105676871,09.01.2013,Adelaide Resource Centre,Agency staff,270.14,ARABELLA HEALTH STAFFING LIMITED,,
Revenue,Community Wellbeing & Social Care,5105676872,09.01.2013,Adelaide Resource Centre,Agency staff,139.73,ARABELLA HEALTH STAFFING LIMITED,,
Revenue,Community Wellbeing & Social Care,5105676872,09.01.2013,Adelaide Resource Centre,Agency staff,7.78,ARABELLA HEALTH STAFFING LIMITED,,
Revenue,Community Wellbeing & Social Care,5105676871,09.01.2013,Adelaide Resource Centre,Agency staff,7.78,ARABELLA HEALTH STAFFING LIMITED,,
Revenue,Economy & Environment,5105679523,23.01.2013,IOW Walking Festival,Advertising & Publicity,650.00,ARCHANT DIALOGUE LIMITED,,
Revenue,Resources,5105676340,04.01.2013,County Hall Central Mail Room,Clothing & Laundry,29.84,ARCO LTD,,
Revenue,Economy & Environment,5105677161,09.01.2013,The Heights,Clothing & Laundry,11.80,ARCO LTD,,
Revenue,Economy & Environment,5105679276,17.01.2013,The Heights,Clothing & Laundry,-11.80,ARCO LTD,,
Revenue,Economy & Environment,5105676793,09.01.2013,The Heights,Clothing & Laundry,305.49,ARCO LTD,,
Revenue,Economy & Environment,5105679277,18.01.2013,The Heights,Professional Services,11.80,ARCO LTD,,
Revenue,Economy & Environment,5105676939,09.01.2013,HM Inspection,Operational Equipment,15.24,ARCO LTD,,
Revenue,Economy & Environment,5105676939,09.01.2013,HM Inspection,Operational Equipment,49.85,ARCO LTD,,
Revenue,Economy & Environment,5105676939,09.01.2013,HM Inspection,Operational Equipment,1.60,ARCO LTD,,
Revenue,Economy & Environment,5105676939,09.01.2013,HM Inspection,Operational Equipment,49.85,ARCO LTD,,
Revenue,Economy & Environment,5105676939,09.01.2013,HM Inspection,Operational Equipment,9.94,ARCO LTD,,
Revenue,Economy & Environment,5105676939,09.01.2013,HM Inspection,Operational Equipment,9.00,ARCO LTD,,
Revenue,Economy & Environment,5105676939,09.01.2013,HM Inspection,Operational Equipment,18.00,ARCO LTD,,
Revenue,Economy & Environment,5105676939,09.01.2013,HM Inspection,Operational Equipment,5.85,ARCO LTD,,
Revenue,Economy & Environment,5105680889,25.01.2013,Lynbottom Landfill Site,Operational Equipment,40.00,ARCO LTD,,
Revenue,Economy & Environment,5105680836,25.01.2013,Lynbottom Landfill Site,Operational Equipment,40.00,ARCO LTD,,
Revenue,Economy & Environment,5105680881,25.01.2013,Lynbottom Landfill Site,Operational Equipment,-40.00,ARCO LTD,,
Revenue,Economy & Environment,5105679956,23.01.2013,Environment officers,Operational Equipment,84.07,ARCO LTD,,
Revenue,Economy & Environment,5105680898,30.01.2013,Environment officers,Clothing & Laundry,26.22,ARCO LTD,,
Capital,Resources,5105679879,30.01.2013,Capital Receipts,External Design & Supervision,400.00,ARID DESIGN LTD,,
Capital,Resources,5105679882,30.01.2013,Capital Receipts,External Design & Supervision,400.00,ARID DESIGN LTD,,
Capital,Resources,5105677286,11.01.2013,Capital Receipts,External Design & Supervision,"1,000.00",ARID DESIGN LTD,,
Capital,Resources,5105680926,30.01.2013,Capital Receipts,External Design & Supervision,"2,695.00",ARID DESIGN LTD,,
Revenue,Community Wellbeing & Social Care,5105677763,11.01.2013,Integrated Community Equipment Service,Maintenance of Operational Equipment,226.00,ARJO MED AB LTD,,
Revenue,Community Wellbeing & Social Care,5105677763,11.01.2013,Integrated Community Equipment Service,Maintenance of Operational Equipment,226.00,ARJO MED AB LTD,,
Revenue,Community Wellbeing & Social Care,5105678143,16.01.2013,Beaulieu-Community Home,Minor Works,64.00,ARJO MED AB LTD,,
Revenue,Economy & Environment,5105678416,18.01.2013,ROW Strategy,Advertising & Publicity,20.00,ARRETON COMMUNITY HALL FUND,,
Revenue,Resources,5105676897,09.01.2013,DRM,Stationery,38.00,ARTFRAMES,,
Revenue,"Chief Executive, Schools & Learning",5105676633,04.01.2013,WFD Schools,Training,641.33,ASPIRO EDUCATION LIMITED,,
Revenue,Community Wellbeing & Social Care,5105676940,09.01.2013,Local Safeguarding Childrens Board,Professional Services,95.00,ASSC. OF INDEP.  LSCB CHAIRS LTD,,
Revenue,Community Wellbeing & Social Care,5105676940,09.01.2013,Local Safeguarding Childrens Board,Accomm Costs - B&B,153.00,ASSC. OF INDEP.  LSCB CHAIRS LTD,,
Revenue,Community Wellbeing & Social Care,5105679522,23.01.2013,Fostering services,Training,93.75,ASSESSMENT & QUALIFICATION ALLIANCE,,
Revenue,Community Wellbeing & Social Care,5105682003,31.01.2013,Dinosaur Isle Museum,Marketing Costs,90.00,ASSOC OF INDEPENDENT MUSEUMS LTD,,
Revenue,Resources,5105680094,23.01.2013,Electoral Registration Office,Training,115.00,ASSOC. OF ELECTORAL ADMINISTRATORS,,
Revenue,Economy & Environment,5105676574,04.01.2013,Technical Support,Vehicle Maintenance Costs,124.00,ATS EUROMASTER LTD,,
Revenue,Resources,5105678133,16.01.2013,Housing Benefit,Stationery,179.08,AUTOMAIL ENVELOPES LTD,,
Revenue,Community Wellbeing & Social Care,5105674720,02.01.2013,EF Residential Care,Charges from Independent Providers,"1,699.88",AUTUMN HOUSE CARE LTD,,
Revenue,Community Wellbeing & Social Care,5105674728,02.01.2013,EF Residential Care,Charges from Independent Providers,"1,998.08",AUTUMN HOUSE CARE LTD,,
Revenue,Community Wellbeing & Social Care,5105681073,30.01.2013,EF Residential Care,Charges from Independent Providers,"1,699.88",AUTUMN HOUSE CARE LTD,,
Revenue,Community Wellbeing & Social Care,5105681073,30.01.2013,EF Residential Care,Charges from Independent Providers,"1,998.08",AUTUMN HOUSE CARE LTD,,
Revenue,Community Wellbeing & Social Care,5105674729,02.01.2013,EMI Residential Care,Charges from Independent Providers,"1,998.08",AUTUMN HOUSE CARE LTD,,
Revenue,Community Wellbeing & Social Care,5105674730,02.01.2013,EMI Residential Care,Charges from Independent Providers,"1,699.88",AUTUMN HOUSE CARE LTD,,
Revenue,Community Wellbeing & Social Care,5105674731,02.01.2013,EMI Residential Care,Charges from Independent Providers,"1,998.08",AUTUMN HOUSE CARE LTD,,
Revenue,Community Wellbeing & Social Care,5105674732,02.01.2013,EMI Residential Care,Charges from Independent Providers,"1,998.08",AUTUMN HOUSE CARE LTD,,
Revenue,Community Wellbeing & Social Care,5105674733,02.01.2013,EMI Residential Care,Charges from Independent Providers,"1,699.88",AUTUMN HOUSE CARE LTD,,
Revenue,Community Wellbeing & Social Care,5105674718,02.01.2013,EMI Residential Care,Charges from Independent Providers,"1,699.88",AUTUMN HOUSE CARE LTD,,
Revenue,Community Wellbeing & Social Care,5105674719,02.01.2013,EMI Residential Care,Charges from Independent Providers,"1,998.08",AUTUMN HOUSE CARE LTD,,
Revenue,Community Wellbeing & Social Care,5105674721,02.01.2013,EMI Residential Care,Charges from Independent Providers,"1,998.08",AUTUMN HOUSE CARE LTD,,
Revenue,Community Wellbeing & Social Care,5105674722,02.01.2013,EMI Residential Care,Charges from Independent Providers,"1,998.08",AUTUMN HOUSE CARE LTD,,
Revenue,Community Wellbeing & Social Care,5105674723,02.01.2013,EMI Residential Care,Charges from Independent Providers,"1,998.08",AUTUMN HOUSE CARE LTD,,
Revenue,Community Wellbeing & Social Care,5105678840,18.01.2013,EMI Residential Care,Charges from Independent Providers,"1,699.88",AUTUMN HOUSE CARE LTD,,
Revenue,Community Wellbeing & Social Care,5105680945,30.01.2013,EMI Residential Care,Charges from Independent Providers,"2,069.44",AUTUMN HOUSE CARE LTD,,
Revenue,Community Wellbeing & Social Care,5105681073,30.01.2013,EMI Residential Care,Charges from Independent Providers,"1,699.88",AUTUMN HOUSE CARE LTD,,
Revenue,Community Wellbeing & Social Care,5105681073,30.01.2013,EMI Residential Care,Charges from Independent Providers,"1,998.08",AUTUMN HOUSE CARE LTD,,
Revenue,Community Wellbeing & Social Care,5105681073,30.01.2013,EMI Residential Care,Charges from Independent Providers,"1,998.08",AUTUMN HOUSE CARE LTD,,
Revenue,Community Wellbeing & Social Care,5105681073,30.01.2013,EMI Residential Care,Charges from Independent Providers,"1,699.88",AUTUMN HOUSE CARE LTD,,
Revenue,Community Wellbeing & Social Care,5105681073,30.01.2013,EMI Residential Care,Charges from Independent Providers,"1,699.88",AUTUMN HOUSE CARE LTD,,
Revenue,Community Wellbeing & Social Care,5105681073,30.01.2013,EMI Residential Care,Charges from Independent Providers,"1,998.08",AUTUMN HOUSE CARE LTD,,
Revenue,Community Wellbeing & Social Care,5105681073,30.01.2013,EMI Residential Care,Charges from Independent Providers,"1,998.08",AUTUMN HOUSE CARE LTD,,
Revenue,Community Wellbeing & Social Care,5105681073,30.01.2013,EMI Residential Care,Charges from Independent Providers,"1,998.08",AUTUMN HOUSE CARE LTD,,
Revenue,Community Wellbeing & Social Care,5105681073,30.01.2013,EMI Residential Care,Charges from Independent Providers,"1,998.08",AUTUMN HOUSE CARE LTD,,
Revenue,Community Wellbeing & Social Care,5105681073,30.01.2013,EMI Residential Care,Charges from Independent Providers,"1,699.88",AUTUMN HOUSE CARE LTD,,
Revenue,Community Wellbeing & Social Care,5105679020,18.01.2013,EMI Residential Care,Regular Respite Care,"2,054.37",AUTUMN HOUSE CARE LTD,,
Revenue,Community Wellbeing & Social Care,5105674724,02.01.2013,PD Residential Care,Charges from Independent Providers,"1,998.08",AUTUMN HOUSE CARE LTD,,
Revenue,Community Wellbeing & Social Care,5105681073,30.01.2013,PD Residential Care,Charges from Independent Providers,"1,998.08",AUTUMN HOUSE CARE LTD,,
Revenue,Community Wellbeing & Social Care,5105674725,02.01.2013,DM Residential care,Charges from Independent Providers,"1,998.08",AUTUMN HOUSE CARE LTD,,
Revenue,Community Wellbeing & Social Care,5105674726,02.01.2013,DM Residential care,Charges from Independent Providers,"1,998.08",AUTUMN HOUSE CARE LTD,,
Revenue,Community Wellbeing & Social Care,5105674727,02.01.2013,DM Residential care,Charges from Independent Providers,"1,998.08",AUTUMN HOUSE CARE LTD,,
Revenue,Community Wellbeing & Social Care,5105681073,30.01.2013,DM Residential care,Charges from Independent Providers,"1,998.08",AUTUMN HOUSE CARE LTD,,
Revenue,Community Wellbeing & Social Care,5105681073,30.01.2013,DM Residential care,Charges from Independent Providers,"1,998.08",AUTUMN HOUSE CARE LTD,,
Revenue,Community Wellbeing & Social Care,5105681073,30.01.2013,DM Residential care,Charges from Independent Providers,"1,998.08",AUTUMN HOUSE CARE LTD,,
Revenue,Community Wellbeing & Social Care,5105681073,30.01.2013,REDACTED PERSONAL DATA,Order Settlement,"1,998.08",AUTUMN HOUSE CARE LTD,,
Revenue,Community Wellbeing & Social Care,5105674734,02.01.2013,REDACTED PERSONAL DATA,Order Settlement,"1,998.08",AUTUMN HOUSE CARE LTD,,
Revenue,Community Wellbeing & Social Care,5105681073,30.01.2013,REDACTED PERSONAL DATA,Order Settlement,"1,998.08",AUTUMN HOUSE CARE LTD,,
Revenue,Resources,5105678022,11.01.2013,Payroll,Consultants Fees,310.50,AVALON VALE UK LTD,,
Revenue,Economy & Environment,5105676922,09.01.2013,Westridge Squash Courts,Consumable Cleaning Materials,235.80,AZTEC CHEMICALS LTD,,
Revenue,Community Wellbeing & Social Care,5105676412,04.01.2013,Fostering services,Boarding Out Allowances,221.13,REDACTED PERSONAL DATA,,
Revenue,Community Wellbeing & Social Care,5105676412,04.01.2013,Fostering services,Boarding Out Allowances,10.00,REDACTED PERSONAL DATA,,
Revenue,Community Wellbeing & Social Care,5105677516,11.01.2013,Fostering services,Boarding Out Allowances,221.13,REDACTED PERSONAL DATA,,
Revenue,Community Wellbeing & Social Care,5105677516,11.01.2013,Fostering services,Boarding Out Allowances,10.00,REDACTED PERSONAL DATA,,
Revenue,Community Wellbeing & Social Care,5105678882,18.01.2013,Fostering services,Boarding Out Allowances,221.13,REDACTED PERSONAL DATA,,
Revenue,Community Wellbeing & Social Care,5105678882,18.01.2013,Fostering services,Boarding Out Allowances,10.00,REDACTED PERSONAL DATA,,
Revenue,Community Wellbeing & Social Care,5105682061,31.01.2013,Fostering services,Boarding Out Allowances,221.13,REDACTED PERSONAL DATA,,
Revenue,Community Wellbeing & Social Care,5105682061,31.01.2013,Fostering services,Boarding Out Allowances,10.00,REDACTED PERSONAL DATA,,
Revenue,Community Wellbeing & Social Care,5105680239,23.01.2013,Fostering services,Boarding Out Allowances,221.13,REDACTED PERSONAL DATA,,
Revenue,Community Wellbeing & Social Care,5105680239,23.01.2013,Fostering services,Boarding Out Allowances,10.00,REDACTED PERSONAL DATA,,
Revenue,Community Wellbeing & Social Care,5105674890,02.01.2013,LD Residential Care,Charges from Independent Providers,"1,757.00",REDACTED PERSONAL DATA,,
Revenue,Community Wellbeing & Social Care,5105674891,02.01.2013,LD Residential Care,Charges from Independent Providers,"2,545.76",REDACTED PERSONAL DATA,,
Revenue,Community Wellbeing & Social Care,5105674889,02.01.2013,LD Residential Care,Charges from Independent Providers,"1,757.00",REDACTED PERSONAL DATA,,
Revenue,Community Wellbeing & Social Care,5105681090,30.01.2013,LD Residential Care,Charges from Independent Providers,"1,757.00",REDACTED PERSONAL DATA,,
Revenue,Community Wellbeing & Social Care,5105681090,30.01.2013,LD Residential Care,Charges from Independent Providers,"1,757.00",REDACTED PERSONAL DATA,,
Revenue,Community Wellbeing & Social Care,5105681090,30.01.2013,LD Residential Care,Charges from Independent Providers,"2,545.76",REDACTED PERSONAL DATA,,
Revenue,Community Wellbeing & Social Care,5105674538,02.01.2013,Homelessness,Accomm Costs - Lease,815.49,REDACTED PERSONAL DATA,,
Revenue,Resources,5105680771,25.01.2013,Staff Benefits,Payment to Private Contractors,243.00,REDACTED PERSONAL DATA,,
Revenue,Resources,5105680769,25.01.2013,Staff Benefits,Payment to Private Contractors,243.00,REDACTED PERSONAL DATA,,
Revenue,Resources,5105680770,25.01.2013,Staff Benefits,Payment to Private Contractors,100.00,REDACTED PERSONAL DATA,,
Revenue,Community Wellbeing & Social Care,5105674549,02.01.2013,Homelessness,Accomm Costs - Lease,866.67,REDACTED PERSONAL DATA,,
Revenue,Community Wellbeing & Social Care,5105674550,02.01.2013,Homelessness,Accomm Costs - Lease,888.33,REDACTED PERSONAL DATA,,
Revenue,Community Wellbeing & Social Care,5105674551,02.01.2013,Homelessness,Accomm Costs - Lease,799.50,REDACTED PERSONAL DATA,,
Revenue,Community Wellbeing & Social Care,5105674547,02.01.2013,Homelessness,Accomm Costs - Lease,799.50,REDACTED PERSONAL DATA,,
Revenue,Community Wellbeing & Social Care,5105674548,02.01.2013,Homelessness,Accomm Costs - Lease,866.67,REDACTED PERSONAL DATA,,
Revenue,Community Wellbeing & Social Care,5105677442,11.01.2013,Adoption Costs,Training,99.00,BAAF REGISTERED CHARITY,,
Revenue,Resources,5105677144,09.01.2013,"Bugle House,Newport",Building & Room Rent,"1,285.35",BAE SYSTEMS PENSION FUNDS TRUST.LTD,,
Revenue,"Chief Executive, Schools & Learning",5105678417,16.01.2013,Statutory Assessment,Professional Subscriptions,"1,500.00",BAKER SMALL LEGAL SERVICES LTD,,
Revenue,Community Wellbeing & Social Care,5105680899,30.01.2013,MH Day Services,Premises Insurance,89.00,BALENS LTD,,
Revenue,Economy & Environment,5105679869,23.01.2013,Technical Support,Clothing & Laundry,196.12,BALLYCLARE LTD,,
Revenue,Economy & Environment,5105679870,23.01.2013,Technical Support,Clothing & Laundry,"6,456.72",BALLYCLARE LTD,,
Revenue,Economy & Environment,5105678543,16.01.2013,Events Team,Stationery,29.59,BANNER BUSINESS SUPPLIES LTD,,
Revenue,Economy & Environment,5105678543,16.01.2013,Events Team,Stationery,11.96,BANNER BUSINESS SUPPLIES LTD,,
Revenue,Economy & Environment,5105678543,16.01.2013,Events Team,Stationery,7.89,BANNER BUSINESS SUPPLIES LTD,,
Revenue,Resources,5105676753,04.01.2013,Head of Democratic Services,Stationery,5.48,BANNER BUSINESS SUPPLIES LTD,,
Revenue,Resources,5105676753,04.01.2013,Head of Democratic Services,Stationery,49.32,BANNER BUSINESS SUPPLIES LTD,,
Revenue,Resources,5105680468,25.01.2013,Head of Democratic Services,Stationery,0.39,BANNER BUSINESS SUPPLIES LTD,,
Revenue,Resources,5105680468,25.01.2013,Head of Democratic Services,Stationery,0.82,BANNER BUSINESS SUPPLIES LTD,,
Revenue,Resources,5105680468,25.01.2013,Head of Democratic Services,Stationery,23.13,BANNER BUSINESS SUPPLIES LTD,,
Revenue,"Chief Executive, Schools & Learning",5105676753,04.01.2013,Cabinet Support,Stationery,24.66,BANNER BUSINESS SUPPLIES LTD,,
Revenue,Resources,5105676753,04.01.2013,Human Resources,Stationery,12.33,BANNER BUSINESS SUPPLIES LTD,,
Revenue,Resources,5105677106,09.01.2013,Human Resources,Stationery,3.22,BANNER BUSINESS SUPPLIES LTD,,
Revenue,Resources,5105677129,09.01.2013,Legal Services,Stationery,4.88,BANNER BUSINESS SUPPLIES LTD,,
Revenue,Resources,5105677106,09.01.2013,Legal Services,Stationery,49.32,BANNER BUSINESS SUPPLIES LTD,,
Revenue,Resources,5105678543,16.01.2013,Legal Services,Stationery,49.32,BANNER BUSINESS SUPPLIES LTD,,
Revenue,Resources,5105678543,16.01.2013,Legal Services,Stationery,3.72,BANNER BUSINESS SUPPLIES LTD,,
Revenue,Resources,5105680468,25.01.2013,Legal Services,Stationery,49.32,BANNER BUSINESS SUPPLIES LTD,,
Revenue,Resources,5105680468,25.01.2013,Legal Services,Stationery,1.14,BANNER BUSINESS SUPPLIES LTD,,
Revenue,Resources,5105680468,25.01.2013,Legal Services,Stationery,1.13,BANNER BUSINESS SUPPLIES LTD,,
Revenue,Resources,5105680468,25.01.2013,Legal Services,Stationery,6.00,BANNER BUSINESS SUPPLIES LTD,,
Revenue,Resources,5105680468,25.01.2013,Legal Services,Stationery,31.99,BANNER BUSINESS SUPPLIES LTD,,
Revenue,Resources,5105680468,25.01.2013,Legal Services,Stationery,13.41,BANNER BUSINESS SUPPLIES LTD,,
Revenue,Resources,5105680468,25.01.2013,Legal Services,Stationery,13.41,BANNER BUSINESS SUPPLIES LTD,,
Revenue,Resources,5105680468,25.01.2013,Legal Services,Stationery,13.41,BANNER BUSINESS SUPPLIES LTD,,
Revenue,Resources,5105680468,25.01.2013,Legal Services,Stationery,40.45,BANNER BUSINESS SUPPLIES LTD,,
Revenue,Resources,5105680468,25.01.2013,Legal Services,Stationery,20.45,BANNER BUSINESS SUPPLIES LTD,,
Revenue,Resources,5105678507,16.01.2013,Registration Of BDMs,Stationery,0.44,BANNER BUSINESS SUPPLIES LTD,,
Revenue,Resources,5105678507,16.01.2013,Registration Of BDMs,Comp Software & Consumables,88.59,BANNER BUSINESS SUPPLIES LTD,,
Revenue,Resources,5105676753,04.01.2013,Director of Resources,Stationery,3.22,BANNER BUSINESS SUPPLIES LTD,,
Revenue,Resources,5105680468,25.01.2013,Director of Resources,Stationery,49.32,BANNER BUSINESS SUPPLIES LTD,,
Revenue,Resources,5105680468,25.01.2013,Director of Resources,Comp Software & Consumables,20.03,BANNER BUSINESS SUPPLIES LTD,,
Revenue,Resources,5105677106,09.01.2013,Accountancy Team,Stationery,36.99,BANNER BUSINESS SUPPLIES LTD,,
Revenue,Economy & Environment,5105676753,04.01.2013,Insurance,Stationery,0.19,BANNER BUSINESS SUPPLIES LTD,,
Revenue,Economy & Environment,5105680468,25.01.2013,Corridor Photocopies,Stationery,49.32,BANNER BUSINESS SUPPLIES LTD,,
Revenue,Resources,5105676956,09.01.2013,Operational Support,Computer Purchase & Rental,7.74,BANNER BUSINESS SUPPLIES LTD,,
Revenue,Resources,5105676956,09.01.2013,Operational Support,Stationery,6.20,BANNER BUSINESS SUPPLIES LTD,,
Revenue,Resources,5105682237,31.01.2013,Operational Support,Stationery,4.82,BANNER BUSINESS SUPPLIES LTD,,
Revenue,Resources,5105682237,31.01.2013,Operational Support,Stationery,2.39,BANNER BUSINESS SUPPLIES LTD,,
Revenue,Resources,5105682237,31.01.2013,Operational Support,Stationery,0.95,BANNER BUSINESS SUPPLIES LTD,,
Revenue,Resources,5105682237,31.01.2013,Operational Support,Stationery,3.00,BANNER BUSINESS SUPPLIES LTD,,
Revenue,Resources,5105682237,31.01.2013,Operational Support,Stationery,3.20,BANNER BUSINESS SUPPLIES LTD,,
Revenue,Resources,5105682237,31.01.2013,Operational Support,Stationery,4.20,BANNER BUSINESS SUPPLIES LTD,,
Revenue,Resources,5105682237,31.01.2013,Operational Support,Stationery,2.28,BANNER BUSINESS SUPPLIES LTD,,
Revenue,Resources,5105682237,31.01.2013,Operational Support,Stationery,2.34,BANNER BUSINESS SUPPLIES LTD,,
Revenue,Resources,5105682237,31.01.2013,Operational Support,Stationery,0.46,BANNER BUSINESS SUPPLIES LTD,,
Revenue,Resources,5105682237,31.01.2013,Operational Support,Stationery,6.19,BANNER BUSINESS SUPPLIES LTD,,
Revenue,Resources,5105682237,31.01.2013,Operational Support,Stationery,5.19,BANNER BUSINESS SUPPLIES LTD,,
Revenue,Resources,5105682237,31.01.2013,Operational Support,Stationery,18.41,BANNER BUSINESS SUPPLIES LTD,,
Revenue,Resources,5105680924,31.01.2013,Operational Support,Stationery,434.35,BANNER BUSINESS SUPPLIES LTD,,
Revenue,Resources,5105681013,30.01.2013,Operational Support,Stationery,434.35,BANNER BUSINESS SUPPLIES LTD,,
Revenue,Resources,5105682000,31.01.2013,Operational Support,Stationery,434.35,BANNER BUSINESS SUPPLIES LTD,,
Revenue,Resources,5105676956,09.01.2013,Parking Services,Stationery,7.75,BANNER BUSINESS SUPPLIES LTD,,
Revenue,Resources,5105680007,23.01.2013,Parking Services,Stationery,31.52,BANNER BUSINESS SUPPLIES LTD,,
Revenue,Resources,5105682237,31.01.2013,Parking Services,Stationery,0.46,BANNER BUSINESS SUPPLIES LTD,,
Revenue,Resources,5105677106,09.01.2013,Help Centres SSC,Property Svs - Planned maintenance,0.38,BANNER BUSINESS SUPPLIES LTD,,
Revenue,Resources,5105677106,09.01.2013,Help Centres SSC,Stationery,33.29,BANNER BUSINESS SUPPLIES LTD,,
Revenue,Resources,5105678136,16.01.2013,Help Centres SSC,Stationery,1.85,BANNER BUSINESS SUPPLIES LTD,,
Revenue,Resources,5105677106,09.01.2013,Help Centres SSC,Comp Software & Consumables,30.56,BANNER BUSINESS SUPPLIES LTD,,
Revenue,Resources,5105680007,23.01.2013,Blue Badge Admin,Stationery,13.16,BANNER BUSINESS SUPPLIES LTD,,
Revenue,Resources,5105676773,09.01.2013,Shared Services Manager,Stationery,13.68,BANNER BUSINESS SUPPLIES LTD,,
Revenue,Resources,5105676773,09.01.2013,Shared Services Manager,Stationery,5.15,BANNER BUSINESS SUPPLIES LTD,,
Revenue,Resources,5105681999,31.01.2013,Shared Services Manager,Stationery,3.20,BANNER BUSINESS SUPPLIES LTD,,
Revenue,Resources,5105681999,31.01.2013,Shared Services Manager,Stationery,64.45,BANNER BUSINESS SUPPLIES LTD,,
Revenue,Resources,5105681999,31.01.2013,Shared Services Manager,Stationery,1.62,BANNER BUSINESS SUPPLIES LTD,,
Revenue,Resources,5105681999,31.01.2013,Shared Services Manager,Stationery,1.74,BANNER BUSINESS SUPPLIES LTD,,
Revenue,Resources,5105681999,31.01.2013,Shared Services Manager,Stationery,1.09,BANNER BUSINESS SUPPLIES LTD,,
Revenue,Resources,5105681999,31.01.2013,Shared Services Manager,Stationery,1.74,BANNER BUSINESS SUPPLIES LTD,,
Revenue,Resources,5105681999,31.01.2013,Shared Services Manager,Stationery,15.36,BANNER BUSINESS SUPPLIES LTD,,
Revenue,Resources,5105681999,31.01.2013,Shared Services Manager,Stationery,11.91,BANNER BUSINESS SUPPLIES LTD,,
Revenue,Resources,5105676773,09.01.2013,Shared Services Manager,Comp Software & Consumables,275.18,BANNER BUSINESS SUPPLIES LTD,,
Revenue,Resources,5105677109,09.01.2013,ICT CCR,Stationery,10.25,BANNER BUSINESS SUPPLIES LTD,,
Revenue,Resources,5105677109,09.01.2013,ICT CCR,Stationery,44.80,BANNER BUSINESS SUPPLIES LTD,,
Revenue,Community Wellbeing & Social Care,5105682007,31.01.2013,Housing - Admin,Computer Purchase & Rental,3.93,BANNER BUSINESS SUPPLIES LTD,,
Revenue,Community Wellbeing & Social Care,5105676977,09.01.2013,Housing - Admin,Stationery,20.24,BANNER BUSINESS SUPPLIES LTD,,
Revenue,Community Wellbeing & Social Care,5105676977,09.01.2013,Housing - Admin,Stationery,0.37,BANNER BUSINESS SUPPLIES LTD,,
Revenue,Community Wellbeing & Social Care,5105676977,09.01.2013,Housing - Admin,Stationery,0.21,BANNER BUSINESS SUPPLIES LTD,,
Revenue,Community Wellbeing & Social Care,5105676977,09.01.2013,Housing - Admin,Stationery,26.15,BANNER BUSINESS SUPPLIES LTD,,
Revenue,Community Wellbeing & Social Care,5105682007,31.01.2013,Housing - Admin,Stationery,1.35,BANNER BUSINESS SUPPLIES LTD,,
Revenue,Community Wellbeing & Social Care,5105682007,31.01.2013,Housing - Admin,Stationery,36.99,BANNER BUSINESS SUPPLIES LTD,,
Revenue,Community Wellbeing & Social Care,5105682007,31.01.2013,Housing - Admin,Stationery,13.41,BANNER BUSINESS SUPPLIES LTD,,
Revenue,Community Wellbeing & Social Care,5105682007,31.01.2013,Housing - Admin,Stationery,6.02,BANNER BUSINESS SUPPLIES LTD,,
Revenue,Community Wellbeing & Social Care,5105677061,09.01.2013,Housing - Admin,Comp Software & Consumables,184.80,BANNER BUSINESS SUPPLIES LTD,,
Revenue,Community Wellbeing & Social Care,5105676977,09.01.2013,Housing - Admin,Comp Software & Consumables,12.80,BANNER BUSINESS SUPPLIES LTD,,
Revenue,Community Wellbeing & Social Care,5105682007,31.01.2013,Housing - Admin,Comp Software & Consumables,11.25,BANNER BUSINESS SUPPLIES LTD,,
Revenue,Community Wellbeing & Social Care,5105681008,30.01.2013,Downside C&L Centre,Property Svs - Building maintenance,11.87,BANNER BUSINESS SUPPLIES LTD,,
Revenue,Community Wellbeing & Social Care,5105677341,18.01.2013,Downside C&L Centre,Consumable Cleaning Materials,14.92,BANNER BUSINESS SUPPLIES LTD,,
Revenue,Community Wellbeing & Social Care,5105677341,18.01.2013,Downside C&L Centre,Consumable Cleaning Materials,26.81,BANNER BUSINESS SUPPLIES LTD,,
Revenue,Community Wellbeing & Social Care,5105677218,23.01.2013,Downside C&L Centre,Consumable Cleaning Materials,10.58,BANNER BUSINESS SUPPLIES LTD,,
Revenue,Community Wellbeing & Social Care,5105677218,23.01.2013,Downside C&L Centre,Consumable Cleaning Materials,12.84,BANNER BUSINESS SUPPLIES LTD,,
Revenue,Community Wellbeing & Social Care,5105677218,23.01.2013,Downside C&L Centre,Stationery,1.27,BANNER BUSINESS SUPPLIES LTD,,
Revenue,Community Wellbeing & Social Care,5105677218,23.01.2013,Downside C&L Centre,Stationery,2.00,BANNER BUSINESS SUPPLIES LTD,,
Revenue,Community Wellbeing & Social Care,5105681008,30.01.2013,Downside C&L Centre,Professional Services,19.80,BANNER BUSINESS SUPPLIES LTD,,
Revenue,Community Wellbeing & Social Care,5105677106,09.01.2013,Directorate,Stationery,6.44,BANNER BUSINESS SUPPLIES LTD,,
Revenue,Community Wellbeing & Social Care,5105678543,16.01.2013,Directorate,Stationery,0.51,BANNER BUSINESS SUPPLIES LTD,,
Revenue,Community Wellbeing & Social Care,5105678543,16.01.2013,Directorate,Stationery,0.95,BANNER BUSINESS SUPPLIES LTD,,
Revenue,Community Wellbeing & Social Care,5105678543,16.01.2013,Directorate,Stationery,1.50,BANNER BUSINESS SUPPLIES LTD,,
Revenue,Community Wellbeing & Social Care,5105678543,16.01.2013,Directorate,Stationery,4.60,BANNER BUSINESS SUPPLIES LTD,,
Revenue,Community Wellbeing & Social Care,5105678543,16.01.2013,Directorate,Stationery,10.88,BANNER BUSINESS SUPPLIES LTD,,
Revenue,Community Wellbeing & Social Care,5105678543,16.01.2013,Directorate,Stationery,6.02,BANNER BUSINESS SUPPLIES LTD,,
Revenue,Community Wellbeing & Social Care,5105677147,09.01.2013,Integrated Community Equipment Service,Stationery,88.40,BANNER BUSINESS SUPPLIES LTD,,
Revenue,Community Wellbeing & Social Care,5105676874,09.01.2013,17 Fairlee Road,Consumable Cleaning Materials,20.73,BANNER BUSINESS SUPPLIES LTD,,
Revenue,Community Wellbeing & Social Care,5105676874,09.01.2013,17 Fairlee Road,Consumable Cleaning Materials,26.28,BANNER BUSINESS SUPPLIES LTD,,
Revenue,Community Wellbeing & Social Care,5105676998,09.01.2013,17 Fairlee Road,Furniture and Fittings,13.06,BANNER BUSINESS SUPPLIES LTD,,
Revenue,Community Wellbeing & Social Care,5105676874,09.01.2013,17 Fairlee Road,Computer Purchase & Rental,4.46,BANNER BUSINESS SUPPLIES LTD,,
Revenue,Community Wellbeing & Social Care,5105676998,09.01.2013,17 Fairlee Road,Stationery,5.12,BANNER BUSINESS SUPPLIES LTD,,
Revenue,Community Wellbeing & Social Care,5105676874,09.01.2013,17 Fairlee Road,Stationery,5.48,BANNER BUSINESS SUPPLIES LTD,,
Revenue,Community Wellbeing & Social Care,5105676874,09.01.2013,17 Fairlee Road,Stationery,4.95,BANNER BUSINESS SUPPLIES LTD,,
Revenue,Community Wellbeing & Social Care,5105676874,09.01.2013,17 Fairlee Road,Stationery,4.00,BANNER BUSINESS SUPPLIES LTD,,
Revenue,Community Wellbeing & Social Care,5105676874,09.01.2013,17 Fairlee Road,Stationery,38.67,BANNER BUSINESS SUPPLIES LTD,,
Revenue,Community Wellbeing & Social Care,5105676874,09.01.2013,17 Fairlee Road,Stationery,0.69,BANNER BUSINESS SUPPLIES LTD,,
Revenue,Community Wellbeing & Social Care,5105676874,09.01.2013,17 Fairlee Road,Stationery,10.88,BANNER BUSINESS SUPPLIES LTD,,
Revenue,Community Wellbeing & Social Care,5105679918,23.01.2013,17 Fairlee Road,Stationery,1.40,BANNER BUSINESS SUPPLIES LTD,,
Revenue,Community Wellbeing & Social Care,5105679918,23.01.2013,17 Fairlee Road,Stationery,5.88,BANNER BUSINESS SUPPLIES LTD,,
Revenue,Community Wellbeing & Social Care,5105679918,23.01.2013,17 Fairlee Road,Stationery,5.55,BANNER BUSINESS SUPPLIES LTD,,
Revenue,Community Wellbeing & Social Care,5105679918,23.01.2013,17 Fairlee Road,Stationery,1.90,BANNER BUSINESS SUPPLIES LTD,,
Revenue,Community Wellbeing & Social Care,5105679918,23.01.2013,17 Fairlee Road,Stationery,51.56,BANNER BUSINESS SUPPLIES LTD,,
Revenue,Community Wellbeing & Social Care,5105679918,23.01.2013,17 Fairlee Road,Stationery,0.70,BANNER BUSINESS SUPPLIES LTD,,
Revenue,Community Wellbeing & Social Care,5105679918,23.01.2013,17 Fairlee Road,Stationery,26.94,BANNER BUSINESS SUPPLIES LTD,,
Revenue,Community Wellbeing & Social Care,5105676998,09.01.2013,17 Fairlee Road,Comp Software & Consumables,103.75,BANNER BUSINESS SUPPLIES LTD,,
Revenue,Community Wellbeing & Social Care,5105679917,23.01.2013,17 Fairlee Road,Comp Software & Consumables,139.37,BANNER BUSINESS SUPPLIES LTD,,
Revenue,Community Wellbeing & Social Care,5105677057,09.01.2013,Medina Village,Stationery,43.60,BANNER BUSINESS SUPPLIES LTD,,
Revenue,Community Wellbeing & Social Care,5105677057,09.01.2013,Medina Village,Stationery,7.63,BANNER BUSINESS SUPPLIES LTD,,
Revenue,Community Wellbeing & Social Care,5105677057,09.01.2013,Medina Village,Stationery,20.52,BANNER BUSINESS SUPPLIES LTD,,
Revenue,Community Wellbeing & Social Care,5105677057,09.01.2013,Medina Village,Stationery,26.70,BANNER BUSINESS SUPPLIES LTD,,
Revenue,Community Wellbeing & Social Care,5105677057,09.01.2013,Medina Village,Stationery,3.76,BANNER BUSINESS SUPPLIES LTD,,
Revenue,Community Wellbeing & Social Care,5105677057,09.01.2013,Medina Village,Stationery,22.42,BANNER BUSINESS SUPPLIES LTD,,
Revenue,Community Wellbeing & Social Care,5105678127,16.01.2013,Wightcare,Stationery,13.41,BANNER BUSINESS SUPPLIES LTD,,
Revenue,Community Wellbeing & Social Care,5105678127,16.01.2013,Wightcare,Stationery,13.41,BANNER BUSINESS SUPPLIES LTD,,
Revenue,Community Wellbeing & Social Care,5105679911,23.01.2013,Wightcare,Stationery,1.64,BANNER BUSINESS SUPPLIES LTD,,
Revenue,Community Wellbeing & Social Care,5105676775,09.01.2013,Sandown Office ASC,Stationery,43.60,BANNER BUSINESS SUPPLIES LTD,,
Revenue,Community Wellbeing & Social Care,5105676775,09.01.2013,Sandown Office ASC,Stationery,12.88,BANNER BUSINESS SUPPLIES LTD,,
Revenue,Community Wellbeing & Social Care,5105676775,09.01.2013,Sandown Office ASC,Stationery,9.20,BANNER BUSINESS SUPPLIES LTD,,
Revenue,Community Wellbeing & Social Care,5105677113,09.01.2013,Adelaide Resource Centre,Stationery,2.10,BANNER BUSINESS SUPPLIES LTD,,
Revenue,Community Wellbeing & Social Care,5105677113,09.01.2013,Adelaide Resource Centre,Stationery,51.56,BANNER BUSINESS SUPPLIES LTD,,
Revenue,Community Wellbeing & Social Care,5105677113,09.01.2013,Adelaide Resource Centre,Stationery,0.18,BANNER BUSINESS SUPPLIES LTD,,
Revenue,Community Wellbeing & Social Care,5105677113,09.01.2013,Adelaide Resource Centre,Stationery,1.02,BANNER BUSINESS SUPPLIES LTD,,
Revenue,Community Wellbeing & Social Care,5105677113,09.01.2013,Adelaide Resource Centre,Stationery,0.75,BANNER BUSINESS SUPPLIES LTD,,
Revenue,Community Wellbeing & Social Care,5105677113,09.01.2013,Adelaide Resource Centre,Stationery,1.28,BANNER BUSINESS SUPPLIES LTD,,
Revenue,Community Wellbeing & Social Care,5105677113,09.01.2013,Adelaide Resource Centre,Stationery,1.28,BANNER BUSINESS SUPPLIES LTD,,
Revenue,Community Wellbeing & Social Care,5105677113,09.01.2013,Adelaide Resource Centre,Stationery,2.48,BANNER BUSINESS SUPPLIES LTD,,
Revenue,Community Wellbeing & Social Care,5105677113,09.01.2013,Adelaide Resource Centre,Stationery,2.48,BANNER BUSINESS SUPPLIES LTD,,
Revenue,Community Wellbeing & Social Care,5105677113,09.01.2013,Adelaide Resource Centre,Stationery,2.48,BANNER BUSINESS SUPPLIES LTD,,
Revenue,Community Wellbeing & Social Care,5105677113,09.01.2013,Adelaide Resource Centre,Stationery,2.13,BANNER BUSINESS SUPPLIES LTD,,
Revenue,Community Wellbeing & Social Care,5105677113,09.01.2013,Adelaide Resource Centre,Stationery,6.34,BANNER BUSINESS SUPPLIES LTD,,
Revenue,Community Wellbeing & Social Care,5105677113,09.01.2013,Adelaide Resource Centre,Stationery,6.34,BANNER BUSINESS SUPPLIES LTD,,
Revenue,Community Wellbeing & Social Care,5105677113,09.01.2013,Adelaide Resource Centre,Stationery,6.34,BANNER BUSINESS SUPPLIES LTD,,
Revenue,Community Wellbeing & Social Care,5105677113,09.01.2013,Adelaide Resource Centre,Stationery,6.34,BANNER BUSINESS SUPPLIES LTD,,
Revenue,Community Wellbeing & Social Care,5105677113,09.01.2013,Adelaide Resource Centre,Stationery,6.34,BANNER BUSINESS SUPPLIES LTD,,
Revenue,Community Wellbeing & Social Care,5105677113,09.01.2013,Adelaide Resource Centre,Stationery,7.18,BANNER BUSINESS SUPPLIES LTD,,
Revenue,Community Wellbeing & Social Care,5105677113,09.01.2013,Adelaide Resource Centre,Stationery,7.18,BANNER BUSINESS SUPPLIES LTD,,
Revenue,Community Wellbeing & Social Care,5105677113,09.01.2013,Adelaide Resource Centre,Stationery,12.92,BANNER BUSINESS SUPPLIES LTD,,
Revenue,Community Wellbeing & Social Care,5105677113,09.01.2013,Adelaide Resource Centre,Stationery,5.58,BANNER BUSINESS SUPPLIES LTD,,
Revenue,Community Wellbeing & Social Care,5105677113,09.01.2013,Adelaide Resource Centre,Stationery,5.43,BANNER BUSINESS SUPPLIES LTD,,
Revenue,Community Wellbeing & Social Care,5105677113,09.01.2013,Adelaide Resource Centre,Stationery,3.84,BANNER BUSINESS SUPPLIES LTD,,
Revenue,Community Wellbeing & Social Care,5105677113,09.01.2013,Adelaide Resource Centre,Stationery,4.15,BANNER BUSINESS SUPPLIES LTD,,
Revenue,Community Wellbeing & Social Care,5105677113,09.01.2013,Adelaide Resource Centre,Stationery,0.72,BANNER BUSINESS SUPPLIES LTD,,
Revenue,Community Wellbeing & Social Care,5105677113,09.01.2013,Adelaide Resource Centre,Stationery,0.64,BANNER BUSINESS SUPPLIES LTD,,
Revenue,Community Wellbeing & Social Care,5105676944,09.01.2013,Gouldings Resource Centre,Stationery,0.73,BANNER BUSINESS SUPPLIES LTD,,
Revenue,Community Wellbeing & Social Care,5105676944,09.01.2013,Gouldings Resource Centre,Stationery,2.39,BANNER BUSINESS SUPPLIES LTD,,
Revenue,Community Wellbeing & Social Care,5105676944,09.01.2013,Gouldings Resource Centre,Stationery,1.90,BANNER BUSINESS SUPPLIES LTD,,
Revenue,Community Wellbeing & Social Care,5105676944,09.01.2013,Gouldings Resource Centre,Stationery,61.65,BANNER BUSINESS SUPPLIES LTD,,
Revenue,Community Wellbeing & Social Care,5105676944,09.01.2013,Gouldings Resource Centre,Stationery,2.18,BANNER BUSINESS SUPPLIES LTD,,
Revenue,Community Wellbeing & Social Care,5105676944,09.01.2013,Gouldings Resource Centre,Stationery,1.00,BANNER BUSINESS SUPPLIES LTD,,
Revenue,Community Wellbeing & Social Care,5105676944,09.01.2013,Gouldings Resource Centre,Stationery,1.36,BANNER BUSINESS SUPPLIES LTD,,
Revenue,Community Wellbeing & Social Care,5105676944,09.01.2013,Gouldings Resource Centre,Stationery,9.25,BANNER BUSINESS SUPPLIES LTD,,
Revenue,Community Wellbeing & Social Care,5105676944,09.01.2013,Gouldings Resource Centre,Stationery,15.80,BANNER BUSINESS SUPPLIES LTD,,
Revenue,Community Wellbeing & Social Care,5105676944,09.01.2013,Gouldings Resource Centre,Comp Software & Consumables,99.47,BANNER BUSINESS SUPPLIES LTD,,
Revenue,Community Wellbeing & Social Care,5105679923,23.01.2013,No-Barriers,Property Svs - Building maintenance,13.50,BANNER BUSINESS SUPPLIES LTD,,
Revenue,Community Wellbeing & Social Care,5105678137,16.01.2013,Westminster House,Stationery,15.19,BANNER BUSINESS SUPPLIES LTD,,
Revenue,Community Wellbeing & Social Care,5105678137,16.01.2013,Westminster House,Stationery,6.40,BANNER BUSINESS SUPPLIES LTD,,
Revenue,Community Wellbeing & Social Care,5105678137,16.01.2013,Westminster House,Stationery,3.50,BANNER BUSINESS SUPPLIES LTD,,
Revenue,Community Wellbeing & Social Care,5105677060,09.01.2013,Operations Support,Stationery,10.24,BANNER BUSINESS SUPPLIES LTD,,
Revenue,Community Wellbeing & Social Care,5105677060,09.01.2013,Operations Support,Stationery,123.30,BANNER BUSINESS SUPPLIES LTD,,
Revenue,Community Wellbeing & Social Care,5105677060,09.01.2013,Operations Support,Stationery,1.64,BANNER BUSINESS SUPPLIES LTD,,
Revenue,Community Wellbeing & Social Care,5105679923,23.01.2013,Operations Support,Stationery,0.38,BANNER BUSINESS SUPPLIES LTD,,
Revenue,Community Wellbeing & Social Care,5105679923,23.01.2013,Operations Support,Stationery,0.51,BANNER BUSINESS SUPPLIES LTD,,
Revenue,Community Wellbeing & Social Care,5105679923,23.01.2013,Operations Support,Stationery,0.51,BANNER BUSINESS SUPPLIES LTD,,
Revenue,Community Wellbeing & Social Care,5105679923,23.01.2013,Operations Support,Stationery,4.34,BANNER BUSINESS SUPPLIES LTD,,
Revenue,Community Wellbeing & Social Care,5105679923,23.01.2013,Operations Support,Stationery,13.41,BANNER BUSINESS SUPPLIES LTD,,
Revenue,Community Wellbeing & Social Care,5105679923,23.01.2013,Operations Support,Stationery,13.41,BANNER BUSINESS SUPPLIES LTD,,
Revenue,Community Wellbeing & Social Care,5105679923,23.01.2013,Operations Support,Stationery,2.74,BANNER BUSINESS SUPPLIES LTD,,
Revenue,Economy & Environment,5105678508,23.01.2013,Leisure Management & Admin,Stationery,12.68,BANNER BUSINESS SUPPLIES LTD,,
Revenue,Economy & Environment,5105678508,23.01.2013,Leisure Management & Admin,Stationery,25.36,BANNER BUSINESS SUPPLIES LTD,,
Revenue,Economy & Environment,5105678508,23.01.2013,Leisure Management & Admin,Stationery,14.46,BANNER BUSINESS SUPPLIES LTD,,
Revenue,Economy & Environment,5105678508,23.01.2013,Leisure Management & Admin,Stationery,25.44,BANNER BUSINESS SUPPLIES LTD,,
Revenue,Economy & Environment,5105678508,23.01.2013,Leisure Management & Admin,Stationery,24.54,BANNER BUSINESS SUPPLIES LTD,,
Revenue,Economy & Environment,5105678508,23.01.2013,Leisure Management & Admin,Stationery,1.92,BANNER BUSINESS SUPPLIES LTD,,
Revenue,Community Wellbeing & Social Care,5105677470,11.01.2013,Public Library Central,Stationery,12.33,BANNER BUSINESS SUPPLIES LTD,,
Revenue,Community Wellbeing & Social Care,5105677470,11.01.2013,Public Library Central,Stationery,0.85,BANNER BUSINESS SUPPLIES LTD,,
Revenue,Community Wellbeing & Social Care,5105677470,11.01.2013,Public Library Central,Stationery,4.56,BANNER BUSINESS SUPPLIES LTD,,
Revenue,Community Wellbeing & Social Care,5105677470,11.01.2013,Public Library Central,Stationery,0.34,BANNER BUSINESS SUPPLIES LTD,,
Revenue,Community Wellbeing & Social Care,5105677470,11.01.2013,Public Library Central,Stationery,28.80,BANNER BUSINESS SUPPLIES LTD,,
Revenue,"Chief Executive, Schools & Learning",5105676937,09.01.2013,WFD Westridge Centre,Stationery,109.65,BANNER BUSINESS SUPPLIES LTD,,
Revenue,"Chief Executive, Schools & Learning",5105676937,09.01.2013,WFD Westridge Centre,Stationery,8.20,BANNER BUSINESS SUPPLIES LTD,,
Revenue,"Chief Executive, Schools & Learning",5105679503,18.01.2013,WFD Westridge Centre,Stationery,4.92,BANNER BUSINESS SUPPLIES LTD,,
Revenue,"Chief Executive, Schools & Learning",5105679503,18.01.2013,WFD Westridge Centre,Stationery,10.08,BANNER BUSINESS SUPPLIES LTD,,
Revenue,"Chief Executive, Schools & Learning",5105682241,31.01.2013,WFD Westridge Centre,Stationery,109.65,BANNER BUSINESS SUPPLIES LTD,,
Revenue,"Chief Executive, Schools & Learning",5105682241,31.01.2013,WFD Westridge Centre,Stationery,14.68,BANNER BUSINESS SUPPLIES LTD,,
Revenue,"Chief Executive, Schools & Learning",5105682241,31.01.2013,WFD Westridge Centre,Stationery,16.20,BANNER BUSINESS SUPPLIES LTD,,
Revenue,Economy & Environment,5105679924,23.01.2013,Sports Develop - Admin,Stationery,26.21,BANNER BUSINESS SUPPLIES LTD,,
Revenue,Economy & Environment,5105679924,23.01.2013,Sports Develop - Admin,Stationery,22.57,BANNER BUSINESS SUPPLIES LTD,,
Revenue,Economy & Environment,5105679924,23.01.2013,Sports Develop - Admin,Stationery,15.38,BANNER BUSINESS SUPPLIES LTD,,
Revenue,Community Wellbeing & Social Care,5105676755,04.01.2013,Archives,Consumable Cleaning Materials,34.24,BANNER BUSINESS SUPPLIES LTD,,
Revenue,Community Wellbeing & Social Care,5105676755,04.01.2013,Archives,Stationery,4.10,BANNER BUSINESS SUPPLIES LTD,,
Revenue,Community Wellbeing & Social Care,5105678154,16.01.2013,Museums & Collection,Marketing Costs,27.90,BANNER BUSINESS SUPPLIES LTD,,
Revenue,Community Wellbeing & Social Care,5105682238,31.01.2013,Dinosaur Isle Museum,Stationery,5.94,BANNER BUSINESS SUPPLIES LTD,,
Revenue,Community Wellbeing & Social Care,5105682238,31.01.2013,Dinosaur Isle Museum,Comp Software & Consumables,16.74,BANNER BUSINESS SUPPLIES LTD,,
Revenue,Community Wellbeing & Social Care,5105682011,31.01.2013,Ventnor Botanic Gardens,Stationery,0.84,BANNER BUSINESS SUPPLIES LTD,,
Revenue,Community Wellbeing & Social Care,5105682011,31.01.2013,Archaeology,Stationery,12.98,BANNER BUSINESS SUPPLIES LTD,,
Revenue,Community Wellbeing & Social Care,5105682011,31.01.2013,Archaeology,Stationery,62.05,BANNER BUSINESS SUPPLIES LTD,,
Revenue,Community Wellbeing & Social Care,5105682011,31.01.2013,Archaeology,Stationery,33.14,BANNER BUSINESS SUPPLIES LTD,,
Revenue,"Chief Executive, Schools & Learning",5105682241,31.01.2013,Family Learning,General Materials,32.58,BANNER BUSINESS SUPPLIES LTD,,
Revenue,"Chief Executive, Schools & Learning",5105682241,31.01.2013,Family Learning,General Materials,32.58,BANNER BUSINESS SUPPLIES LTD,,
Revenue,"Chief Executive, Schools & Learning",5105679503,18.01.2013,Family Learning,General Materials,7.34,BANNER BUSINESS SUPPLIES LTD,,
Revenue,"Chief Executive, Schools & Learning",5105679503,18.01.2013,Family Learning,General Materials,3.28,BANNER BUSINESS SUPPLIES LTD,,
Revenue,"Chief Executive, Schools & Learning",5105679503,18.01.2013,Family Learning,General Materials,18.69,BANNER BUSINESS SUPPLIES LTD,,
Revenue,"Chief Executive, Schools & Learning",5105679503,18.01.2013,Family Learning,General Materials,6.48,BANNER BUSINESS SUPPLIES LTD,,
Revenue,"Chief Executive, Schools & Learning",5105676937,09.01.2013,Personal/Comm.Dev Learning,General Materials,2.13,BANNER BUSINESS SUPPLIES LTD,,
Revenue,Economy & Environment,5105679913,23.01.2013,The Heights,Stationery,7.74,BANNER BUSINESS SUPPLIES LTD,,
Revenue,Economy & Environment,5105679913,23.01.2013,The Heights,Stationery,7.74,BANNER BUSINESS SUPPLIES LTD,,
Revenue,Economy & Environment,5105679913,23.01.2013,The Heights,Stationery,1.00,BANNER BUSINESS SUPPLIES LTD,,
Revenue,Economy & Environment,5105679913,23.01.2013,The Heights,Stationery,0.34,BANNER BUSINESS SUPPLIES LTD,,
Revenue,Economy & Environment,5105679913,23.01.2013,The Heights,Stationery,0.92,BANNER BUSINESS SUPPLIES LTD,,
Revenue,Economy & Environment,5105679913,23.01.2013,The Heights,Stationery,0.44,BANNER BUSINESS SUPPLIES LTD,,
Revenue,Economy & Environment,5105679913,23.01.2013,The Heights,Stationery,1.09,BANNER BUSINESS SUPPLIES LTD,,
Revenue,Economy & Environment,5105679913,23.01.2013,The Heights,Stationery,1.45,BANNER BUSINESS SUPPLIES LTD,,
Revenue,Economy & Environment,5105680900,30.01.2013,The Heights,Stationery,49.32,BANNER BUSINESS SUPPLIES LTD,,
Revenue,Economy & Environment,5105680900,30.01.2013,The Heights,Stationery,0.06,BANNER BUSINESS SUPPLIES LTD,,
Revenue,Economy & Environment,5105680900,30.01.2013,The Heights,Stationery,0.84,BANNER BUSINESS SUPPLIES LTD,,
Revenue,Economy & Environment,5105680900,30.01.2013,The Heights,Stationery,6.21,BANNER BUSINESS SUPPLIES LTD,,
Revenue,Economy & Environment,5105680900,30.01.2013,The Heights,Stationery,1.64,BANNER BUSINESS SUPPLIES LTD,,
Revenue,Economy & Environment,5105680900,30.01.2013,The Heights,Stationery,1.12,BANNER BUSINESS SUPPLIES LTD,,
Revenue,Economy & Environment,5105680900,30.01.2013,The Heights,Stationery,13.70,BANNER BUSINESS SUPPLIES LTD,,
Revenue,Economy & Environment,5105682009,31.01.2013,The Heights,Stationery,1.56,BANNER BUSINESS SUPPLIES LTD,,
Revenue,Economy & Environment,5105682009,31.01.2013,The Heights,Stationery,1.56,BANNER BUSINESS SUPPLIES LTD,,
Revenue,Economy & Environment,5105682009,31.01.2013,The Heights,Stationery,1.56,BANNER BUSINESS SUPPLIES LTD,,
Revenue,Economy & Environment,5105682009,31.01.2013,The Heights,Stationery,1.56,BANNER BUSINESS SUPPLIES LTD,,
Revenue,Economy & Environment,5105682009,31.01.2013,The Heights,Stationery,1.56,BANNER BUSINESS SUPPLIES LTD,,
Revenue,Economy & Environment,5105682009,31.01.2013,The Heights,Stationery,29.31,BANNER BUSINESS SUPPLIES LTD,,
Revenue,Economy & Environment,5105682009,31.01.2013,The Heights,Stationery,1.62,BANNER BUSINESS SUPPLIES LTD,,
Revenue,Economy & Environment,5105682009,31.01.2013,The Heights,Stationery,1.00,BANNER BUSINESS SUPPLIES LTD,,
Revenue,Economy & Environment,5105682009,31.01.2013,The Heights,Stationery,1.13,BANNER BUSINESS SUPPLIES LTD,,
Revenue,Economy & Environment,5105682009,31.01.2013,The Heights,Stationery,1.64,BANNER BUSINESS SUPPLIES LTD,,
Revenue,Economy & Environment,5105682009,31.01.2013,The Heights,Stationery,5.35,BANNER BUSINESS SUPPLIES LTD,,
Revenue,Economy & Environment,5105679913,23.01.2013,The Heights,Comp Software & Consumables,12.98,BANNER BUSINESS SUPPLIES LTD,,
Revenue,Economy & Environment,5105679913,23.01.2013,The Heights,Comp Software & Consumables,1.76,BANNER BUSINESS SUPPLIES LTD,,
Revenue,Economy & Environment,5105679913,23.01.2013,The Heights,Comp Software & Consumables,1.22,BANNER BUSINESS SUPPLIES LTD,,
Revenue,Economy & Environment,5105676875,09.01.2013,Medina Leisure Centre,Stationery,0.74,BANNER BUSINESS SUPPLIES LTD,,
Revenue,Economy & Environment,5105676875,09.01.2013,Medina Leisure Centre,Stationery,2.46,BANNER BUSINESS SUPPLIES LTD,,
Revenue,Economy & Environment,5105676875,09.01.2013,Medina Leisure Centre,Stationery,34.56,BANNER BUSINESS SUPPLIES LTD,,
Revenue,Economy & Environment,5105676875,09.01.2013,Medina Leisure Centre,Stationery,26.22,BANNER BUSINESS SUPPLIES LTD,,
Revenue,Economy & Environment,5105676875,09.01.2013,Medina Leisure Centre,Stationery,2.72,BANNER BUSINESS SUPPLIES LTD,,
Revenue,Economy & Environment,5105679914,23.01.2013,Medina Leisure Centre,Stationery,9.31,BANNER BUSINESS SUPPLIES LTD,,
Revenue,Economy & Environment,5105679914,23.01.2013,Medina Leisure Centre,Stationery,0.68,BANNER BUSINESS SUPPLIES LTD,,
Revenue,Economy & Environment,5105679914,23.01.2013,Medina Leisure Centre,Stationery,24.66,BANNER BUSINESS SUPPLIES LTD,,
Revenue,Economy & Environment,5105679914,23.01.2013,Medina Leisure Centre,Stationery,1.20,BANNER BUSINESS SUPPLIES LTD,,
Revenue,Economy & Environment,5105679914,23.01.2013,Medina Leisure Centre,Stationery,2.46,BANNER BUSINESS SUPPLIES LTD,,
Revenue,Economy & Environment,5105679914,23.01.2013,Medina Leisure Centre,Stationery,23.04,BANNER BUSINESS SUPPLIES LTD,,
Revenue,Economy & Environment,5105679914,23.01.2013,Medina Leisure Centre,Stationery,7.34,BANNER BUSINESS SUPPLIES LTD,,
Revenue,Economy & Environment,5105679914,23.01.2013,Medina Leisure Centre,Stationery,7.34,BANNER BUSINESS SUPPLIES LTD,,
Revenue,Economy & Environment,5105679914,23.01.2013,Medina Leisure Centre,Stationery,5.05,BANNER BUSINESS SUPPLIES LTD,,
Revenue,Economy & Environment,5105679913,23.01.2013,Westridge Squash Courts,Stationery,0.60,BANNER BUSINESS SUPPLIES LTD,,
Revenue,Community Wellbeing & Social Care,5105680841,25.01.2013,Local Safeguarding Childrens Board,Stationery,2.41,BANNER BUSINESS SUPPLIES LTD,,
Revenue,Community Wellbeing & Social Care,5105680841,25.01.2013,Local Safeguarding Childrens Board,Stationery,5.19,BANNER BUSINESS SUPPLIES LTD,,
Revenue,Community Wellbeing & Social Care,5105680841,25.01.2013,Local Safeguarding Childrens Board,Stationery,2.41,BANNER BUSINESS SUPPLIES LTD,,
Revenue,Community Wellbeing & Social Care,5105680841,25.01.2013,Local Safeguarding Childrens Board,Stationery,2.41,BANNER BUSINESS SUPPLIES LTD,,
Revenue,Community Wellbeing & Social Care,5105680841,25.01.2013,Local Safeguarding Childrens Board,Stationery,2.41,BANNER BUSINESS SUPPLIES LTD,,
Revenue,Community Wellbeing & Social Care,5105680841,25.01.2013,Local Safeguarding Childrens Board,Stationery,2.41,BANNER BUSINESS SUPPLIES LTD,,
Revenue,Community Wellbeing & Social Care,5105680086,23.01.2013,Local Safeguarding Childrens Board,Comp Software & Consumables,129.15,BANNER BUSINESS SUPPLIES LTD,,
Revenue,Community Wellbeing & Social Care,5105680086,23.01.2013,Local Safeguarding Childrens Board,Comp Software & Consumables,118.02,BANNER BUSINESS SUPPLIES LTD,,
Revenue,Community Wellbeing & Social Care,5105680086,23.01.2013,Local Safeguarding Childrens Board,Comp Software & Consumables,118.02,BANNER BUSINESS SUPPLIES LTD,,
Revenue,"Chief Executive, Schools & Learning",5105682234,31.01.2013,SSEYCCG - Development Work,Stationery,40.29,BANNER BUSINESS SUPPLIES LTD,,
Revenue,"Chief Executive, Schools & Learning",5105682234,31.01.2013,SSEYCCG - Development Work,Stationery,53.70,BANNER BUSINESS SUPPLIES LTD,,
Revenue,"Chief Executive, Schools & Learning",5105682234,31.01.2013,SSEYCCG - Development Work,Stationery,8.66,BANNER BUSINESS SUPPLIES LTD,,
Revenue,"Chief Executive, Schools & Learning",5105682234,31.01.2013,SSEYCCG - Development Work,Stationery,9.18,BANNER BUSINESS SUPPLIES LTD,,
Revenue,"Chief Executive, Schools & Learning",5105682234,31.01.2013,SSEYCCG - Development Work,Stationery,23.73,BANNER BUSINESS SUPPLIES LTD,,
Revenue,"Chief Executive, Schools & Learning",5105682013,31.01.2013,School Music Service,Stationery,103.18,BANNER BUSINESS SUPPLIES LTD,,
Revenue,"Chief Executive, Schools & Learning",5105677086,09.01.2013,Tuition Centres,Stationery,61.65,BANNER BUSINESS SUPPLIES LTD,,
Revenue,"Chief Executive, Schools & Learning",5105677086,09.01.2013,Tuition Centres,Stationery,2.50,BANNER BUSINESS SUPPLIES LTD,,
Revenue,"Chief Executive, Schools & Learning",5105677086,09.01.2013,Tuition Centres,Stationery,8.48,BANNER BUSINESS SUPPLIES LTD,,
Revenue,"Chief Executive, Schools & Learning",5105679912,23.01.2013,Tuition Centres,Stationery,22.28,BANNER BUSINESS SUPPLIES LTD,,
Revenue,"Chief Executive, Schools & Learning",5105679912,23.01.2013,Tuition Centres,Stationery,32.32,BANNER BUSINESS SUPPLIES LTD,,
Revenue,"Chief Executive, Schools & Learning",5105680839,25.01.2013,Tuition Centres,Stationery,18.00,BANNER BUSINESS SUPPLIES LTD,,
Revenue,"Chief Executive, Schools & Learning",5105680839,25.01.2013,Tuition Centres,Stationery,21.60,BANNER BUSINESS SUPPLIES LTD,,
Revenue,"Chief Executive, Schools & Learning",5105680839,25.01.2013,Tuition Centres,Stationery,4.05,BANNER BUSINESS SUPPLIES LTD,,
Revenue,"Chief Executive, Schools & Learning",5105680839,25.01.2013,Tuition Centres,Stationery,8.20,BANNER BUSINESS SUPPLIES LTD,,
Revenue,"Chief Executive, Schools & Learning",5105680839,25.01.2013,Tuition Centres,Stationery,2.45,BANNER BUSINESS SUPPLIES LTD,,
Revenue,"Chief Executive, Schools & Learning",5105680839,25.01.2013,Tuition Centres,Stationery,28.51,BANNER BUSINESS SUPPLIES LTD,,
Revenue,"Chief Executive, Schools & Learning",5105680839,25.01.2013,Tuition Centres,Stationery,13.82,BANNER BUSINESS SUPPLIES LTD,,
Revenue,"Chief Executive, Schools & Learning",5105677105,09.01.2013,Tuition Centres,Comp Software & Consumables,31.30,BANNER BUSINESS SUPPLIES LTD,,
Revenue,"Chief Executive, Schools & Learning",5105677105,09.01.2013,Tuition Centres,Comp Software & Consumables,29.53,BANNER BUSINESS SUPPLIES LTD,,
Revenue,"Chief Executive, Schools & Learning",5105677105,09.01.2013,Tuition Centres,Comp Software & Consumables,24.16,BANNER BUSINESS SUPPLIES LTD,,
Revenue,"Chief Executive, Schools & Learning",5105677105,09.01.2013,Tuition Centres,Comp Software & Consumables,24.16,BANNER BUSINESS SUPPLIES LTD,,
Revenue,"Chief Executive, Schools & Learning",5105677105,09.01.2013,Tuition Centres,Comp Software & Consumables,51.44,BANNER BUSINESS SUPPLIES LTD,,
Revenue,"Chief Executive, Schools & Learning",5105679912,23.01.2013,Tuition Centres,Comp Software & Consumables,100.47,BANNER BUSINESS SUPPLIES LTD,,
Revenue,"Chief Executive, Schools & Learning",5105679912,23.01.2013,Tuition Centres,Comp Software & Consumables,112.05,BANNER BUSINESS SUPPLIES LTD,,
Revenue,"Chief Executive, Schools & Learning",5105679912,23.01.2013,Tuition Centres,Comp Software & Consumables,112.05,BANNER BUSINESS SUPPLIES LTD,,
Revenue,"Chief Executive, Schools & Learning",5105679912,23.01.2013,Tuition Centres,Comp Software & Consumables,112.05,BANNER BUSINESS SUPPLIES LTD,,
Revenue,"Chief Executive, Schools & Learning",5105682234,31.01.2013,EY Unit Regulation,Stationery,49.26,BANNER BUSINESS SUPPLIES LTD,,
Revenue,"Chief Executive, Schools & Learning",5105680901,30.01.2013,Educ Welfare Service,Stationery,13.51,BANNER BUSINESS SUPPLIES LTD,,
Revenue,"Chief Executive, Schools & Learning",5105680901,30.01.2013,Educ Welfare Service,Stationery,1.26,BANNER BUSINESS SUPPLIES LTD,,
Revenue,"Chief Executive, Schools & Learning",5105680901,30.01.2013,Educ Welfare Service,Stationery,0.50,BANNER BUSINESS SUPPLIES LTD,,
Revenue,"Chief Executive, Schools & Learning",5105680901,30.01.2013,Educ Welfare Service,Stationery,1.45,BANNER BUSINESS SUPPLIES LTD,,
Revenue,"Chief Executive, Schools & Learning",5105680901,30.01.2013,Educ Welfare Service,Stationery,3.28,BANNER BUSINESS SUPPLIES LTD,,
Revenue,"Chief Executive, Schools & Learning",5105680901,30.01.2013,Educ Welfare Service,Stationery,50.32,BANNER BUSINESS SUPPLIES LTD,,
Revenue,"Chief Executive, Schools & Learning",5105680901,30.01.2013,Educ Welfare Service,Stationery,56.22,BANNER BUSINESS SUPPLIES LTD,,
Revenue,"Chief Executive, Schools & Learning",5105680901,30.01.2013,Educ Welfare Service,Stationery,87.88,BANNER BUSINESS SUPPLIES LTD,,
Revenue,Community Wellbeing & Social Care,5105679612,23.01.2013,Beaulieu Outreach Services,Stationery,41.90,BANNER BUSINESS SUPPLIES LTD,,
Revenue,Community Wellbeing & Social Care,5105682240,31.01.2013,Youth Offending Team,Office Equipment,104.35,BANNER BUSINESS SUPPLIES LTD,,
Revenue,Community Wellbeing & Social Care,5105679922,23.01.2013,Youth Offending Team,Stationery,123.30,BANNER BUSINESS SUPPLIES LTD,,
Revenue,Community Wellbeing & Social Care,5105679922,23.01.2013,Youth Offending Team,Stationery,3.51,BANNER BUSINESS SUPPLIES LTD,,
Revenue,Community Wellbeing & Social Care,5105679922,23.01.2013,Youth Offending Team,Stationery,22.84,BANNER BUSINESS SUPPLIES LTD,,
Revenue,Community Wellbeing & Social Care,5105680006,23.01.2013,Contact Team,Stationery,0.82,BANNER BUSINESS SUPPLIES LTD,,
Revenue,Community Wellbeing & Social Care,5105680006,23.01.2013,Contact Team,Stationery,69.66,BANNER BUSINESS SUPPLIES LTD,,
Revenue,Community Wellbeing & Social Care,5105680006,23.01.2013,Contact Team,Stationery,46.65,BANNER BUSINESS SUPPLIES LTD,,
Revenue,Community Wellbeing & Social Care,5105680006,23.01.2013,Contact Team,Stationery,0.74,BANNER BUSINESS SUPPLIES LTD,,
Revenue,Community Wellbeing & Social Care,5105680006,23.01.2013,Contact Team,Stationery,14.76,BANNER BUSINESS SUPPLIES LTD,,
Revenue,Community Wellbeing & Social Care,5105680006,23.01.2013,Contact Team,Comp Software & Consumables,5.28,BANNER BUSINESS SUPPLIES LTD,,
Revenue,Community Wellbeing & Social Care,5105676753,04.01.2013,Strengthening Families,Stationery,49.32,BANNER BUSINESS SUPPLIES LTD,,
Revenue,Community Wellbeing & Social Care,5105678124,16.01.2013,Youth- Central Admin,Stationery,3.22,BANNER BUSINESS SUPPLIES LTD,,
Revenue,Community Wellbeing & Social Care,5105678124,16.01.2013,Youth- Central Admin,Stationery,0.25,BANNER BUSINESS SUPPLIES LTD,,
Revenue,Community Wellbeing & Social Care,5105678124,16.01.2013,Youth- Central Admin,Stationery,16.77,BANNER BUSINESS SUPPLIES LTD,,
Revenue,Community Wellbeing & Social Care,5105679230,23.01.2013,Youth- Central Admin,Stationery,51.22,BANNER BUSINESS SUPPLIES LTD,,
Revenue,Community Wellbeing & Social Care,5105679230,23.01.2013,Youth- Central Admin,Comp Software & Consumables,10.98,BANNER BUSINESS SUPPLIES LTD,,
Revenue,Community Wellbeing & Social Care,5105678124,16.01.2013,Central & West Provision,General Materials,14.02,BANNER BUSINESS SUPPLIES LTD,,
Revenue,Community Wellbeing & Social Care,5105678124,16.01.2013,Central & West Provision,General Materials,18.69,BANNER BUSINESS SUPPLIES LTD,,
Revenue,"Chief Executive, Schools & Learning",5105677740,11.01.2013,"Speech, Language and Communication",Stationery,0.76,BANNER BUSINESS SUPPLIES LTD,,
Revenue,"Chief Executive, Schools & Learning",5105677740,11.01.2013,"Speech, Language and Communication",Stationery,0.66,BANNER BUSINESS SUPPLIES LTD,,
Revenue,"Chief Executive, Schools & Learning",5105677740,11.01.2013,"Speech, Language and Communication",Stationery,14.40,BANNER BUSINESS SUPPLIES LTD,,
Revenue,"Chief Executive, Schools & Learning",5105677740,11.01.2013,"Speech, Language and Communication",Stationery,73.89,BANNER BUSINESS SUPPLIES LTD,,
Revenue,"Chief Executive, Schools & Learning",5105677740,11.01.2013,"Speech, Language and Communication",Stationery,54.82,BANNER BUSINESS SUPPLIES LTD,,
Revenue,"Chief Executive, Schools & Learning",5105677740,11.01.2013,"Speech, Language and Communication",Stationery,69.66,BANNER BUSINESS SUPPLIES LTD,,
Revenue,"Chief Executive, Schools & Learning",5105677740,11.01.2013,"Speech, Language and Communication",Stationery,41.34,BANNER BUSINESS SUPPLIES LTD,,
Revenue,"Chief Executive, Schools & Learning",5105677740,11.01.2013,"Speech, Language and Communication",Stationery,83.10,BANNER BUSINESS SUPPLIES LTD,,
Revenue,"Chief Executive, Schools & Learning",5105679925,23.01.2013,Curriculum Language& ASD Support (CLASS),Stationery,143.66,BANNER BUSINESS SUPPLIES LTD,,
Revenue,"Chief Executive, Schools & Learning",5105679925,23.01.2013,Curriculum Language& ASD Support (CLASS),Stationery,56.66,BANNER BUSINESS SUPPLIES LTD,,
Revenue,"Chief Executive, Schools & Learning",5105680088,23.01.2013,Specialist Service Business Admin,General Materials,30.93,BANNER BUSINESS SUPPLIES LTD,,
Revenue,"Chief Executive, Schools & Learning",5105680902,30.01.2013,Visually Impaired Service,Property Svs - Building maintenance,8.45,BANNER BUSINESS SUPPLIES LTD,,
Revenue,"Chief Executive, Schools & Learning",5105677143,09.01.2013,Visually Impaired Service,Stationery,71.24,BANNER BUSINESS SUPPLIES LTD,,
Revenue,"Chief Executive, Schools & Learning",5105677143,09.01.2013,Visually Impaired Service,Stationery,0.25,BANNER BUSINESS SUPPLIES LTD,,
Revenue,"Chief Executive, Schools & Learning",5105677143,09.01.2013,Visually Impaired Service,Stationery,1.80,BANNER BUSINESS SUPPLIES LTD,,
Revenue,"Chief Executive, Schools & Learning",5105677143,09.01.2013,Visually Impaired Service,Stationery,10.68,BANNER BUSINESS SUPPLIES LTD,,
Revenue,"Chief Executive, Schools & Learning",5105677143,09.01.2013,Visually Impaired Service,Stationery,3.07,BANNER BUSINESS SUPPLIES LTD,,
Revenue,"Chief Executive, Schools & Learning",5105677143,09.01.2013,Visually Impaired Service,Stationery,24.63,BANNER BUSINESS SUPPLIES LTD,,
Revenue,"Chief Executive, Schools & Learning",5105677143,09.01.2013,Visually Impaired Service,Stationery,10.12,BANNER BUSINESS SUPPLIES LTD,,
Revenue,"Chief Executive, Schools & Learning",5105677143,09.01.2013,Visually Impaired Service,Stationery,10.12,BANNER BUSINESS SUPPLIES LTD,,
Revenue,"Chief Executive, Schools & Learning",5105677143,09.01.2013,Visually Impaired Service,Stationery,10.12,BANNER BUSINESS SUPPLIES LTD,,
Revenue,"Chief Executive, Schools & Learning",5105677143,09.01.2013,Visually Impaired Service,Stationery,10.12,BANNER BUSINESS SUPPLIES LTD,,
Revenue,"Chief Executive, Schools & Learning",5105677143,09.01.2013,Visually Impaired Service,Stationery,9.35,BANNER BUSINESS SUPPLIES LTD,,
Revenue,"Chief Executive, Schools & Learning",5105677143,09.01.2013,Visually Impaired Service,Stationery,8.39,BANNER BUSINESS SUPPLIES LTD,,
Revenue,"Chief Executive, Schools & Learning",5105680902,30.01.2013,Visually Impaired Service,Stationery,5.94,BANNER BUSINESS SUPPLIES LTD,,
Revenue,"Chief Executive, Schools & Learning",5105680902,30.01.2013,Visually Impaired Service,Comp Software & Consumables,6.83,BANNER BUSINESS SUPPLIES LTD,,
Revenue,"Chief Executive, Schools & Learning",5105680902,30.01.2013,Visually Impaired Service,Comp Software & Consumables,2.19,BANNER BUSINESS SUPPLIES LTD,,
Revenue,"Chief Executive, Schools & Learning",5105680902,30.01.2013,Visually Impaired Service,Comp Software & Consumables,2.34,BANNER BUSINESS SUPPLIES LTD,,
Revenue,"Chief Executive, Schools & Learning",5105680902,30.01.2013,Visually Impaired Service,Comp Software & Consumables,1.17,BANNER BUSINESS SUPPLIES LTD,,
Revenue,"Chief Executive, Schools & Learning",5105676753,04.01.2013,Statutory Assessment,Stationery,5.48,BANNER BUSINESS SUPPLIES LTD,,
Revenue,"Chief Executive, Schools & Learning",5105676753,04.01.2013,Statutory Assessment,Stationery,6.58,BANNER BUSINESS SUPPLIES LTD,,
Revenue,Community Wellbeing & Social Care,5105676774,09.01.2013,Beaulieu-Community Home,Stationery,35.76,BANNER BUSINESS SUPPLIES LTD,,
Revenue,Community Wellbeing & Social Care,5105677058,09.01.2013,Beaulieu-Community Home,Stationery,24.66,BANNER BUSINESS SUPPLIES LTD,,
Revenue,Community Wellbeing & Social Care,5105679228,23.01.2013,Beaulieu-Community Home,Stationery,9.60,BANNER BUSINESS SUPPLIES LTD,,
Revenue,Community Wellbeing & Social Care,5105679228,23.01.2013,Beaulieu-Community Home,Stationery,0.73,BANNER BUSINESS SUPPLIES LTD,,
Revenue,Community Wellbeing & Social Care,5105679228,23.01.2013,Beaulieu-Community Home,Stationery,24.99,BANNER BUSINESS SUPPLIES LTD,,
Revenue,Community Wellbeing & Social Care,5105679228,23.01.2013,Beaulieu-Community Home,Stationery,5.60,BANNER BUSINESS SUPPLIES LTD,,
Revenue,Community Wellbeing & Social Care,5105679228,23.01.2013,Beaulieu-Community Home,Stationery,4.00,BANNER BUSINESS SUPPLIES LTD,,
Revenue,Community Wellbeing & Social Care,5105679228,23.01.2013,Beaulieu-Community Home,Stationery,0.22,BANNER BUSINESS SUPPLIES LTD,,
Revenue,Community Wellbeing & Social Care,5105679610,23.01.2013,Beaulieu-Community Home,Stationery,8.70,BANNER BUSINESS SUPPLIES LTD,,
Revenue,Community Wellbeing & Social Care,5105679610,23.01.2013,Beaulieu-Community Home,Stationery,71.83,BANNER BUSINESS SUPPLIES LTD,,
Revenue,Community Wellbeing & Social Care,5105679610,23.01.2013,Beaulieu-Community Home,Stationery,41.90,BANNER BUSINESS SUPPLIES LTD,,
Revenue,Community Wellbeing & Social Care,5105680842,25.01.2013,Beaulieu-Community Home,Stationery,2.20,BANNER BUSINESS SUPPLIES LTD,,
Revenue,Community Wellbeing & Social Care,5105680842,25.01.2013,Beaulieu-Community Home,Stationery,27.15,BANNER BUSINESS SUPPLIES LTD,,
Revenue,Community Wellbeing & Social Care,5105680842,25.01.2013,Beaulieu-Community Home,Stationery,27.15,BANNER BUSINESS SUPPLIES LTD,,
Revenue,Community Wellbeing & Social Care,5105680842,25.01.2013,Beaulieu-Community Home,Stationery,1.90,BANNER BUSINESS SUPPLIES LTD,,
Revenue,Community Wellbeing & Social Care,5105680842,25.01.2013,Beaulieu-Community Home,Stationery,5.30,BANNER BUSINESS SUPPLIES LTD,,
Revenue,Community Wellbeing & Social Care,5105680842,25.01.2013,Beaulieu-Community Home,Stationery,21.40,BANNER BUSINESS SUPPLIES LTD,,
Revenue,"Chief Executive, Schools & Learning",5105682008,31.01.2013,WFD Schools,Stationery,49.32,BANNER BUSINESS SUPPLIES LTD,,
Revenue,"Chief Executive, Schools & Learning",5105682008,31.01.2013,WFD Schools,Stationery,16.20,BANNER BUSINESS SUPPLIES LTD,,
Revenue,"Chief Executive, Schools & Learning",5105676873,09.01.2013,Thompson House Admin,General Materials,257.80,BANNER BUSINESS SUPPLIES LTD,,
Revenue,"Chief Executive, Schools & Learning",5105676873,09.01.2013,Thompson House Admin,General Materials,24.99,BANNER BUSINESS SUPPLIES LTD,,
Revenue,"Chief Executive, Schools & Learning",5105676753,04.01.2013,Admissions/Student,Stationery,5.12,BANNER BUSINESS SUPPLIES LTD,,
Revenue,"Chief Executive, Schools & Learning",5105680468,25.01.2013,Schools Reorganisation,Comp Software & Consumables,122.88,BANNER BUSINESS SUPPLIES LTD,,
Revenue,Community Wellbeing & Social Care,5105677342,18.01.2013,Oak House-Assessment,Printing Costs,25.17,BANNER BUSINESS SUPPLIES LTD,,
Revenue,Community Wellbeing & Social Care,5105677342,18.01.2013,Oak House-Assessment,Printing Costs,2.46,BANNER BUSINESS SUPPLIES LTD,,
Revenue,Community Wellbeing & Social Care,5105677342,18.01.2013,Oak House-Assessment,Printing Costs,11.55,BANNER BUSINESS SUPPLIES LTD,,
Revenue,Community Wellbeing & Social Care,5105677342,18.01.2013,Oak House-Assessment,Printing Costs,69.06,BANNER BUSINESS SUPPLIES LTD,,
Revenue,Community Wellbeing & Social Care,5105677342,18.01.2013,Oak House-Assessment,Printing Costs,198.94,BANNER BUSINESS SUPPLIES LTD,,
Revenue,Community Wellbeing & Social Care,5105677064,11.01.2013,St James Centre,Stationery,1.41,BANNER BUSINESS SUPPLIES LTD,,
Revenue,Community Wellbeing & Social Care,5105677064,11.01.2013,St James Centre,Stationery,2.99,BANNER BUSINESS SUPPLIES LTD,,
Revenue,Community Wellbeing & Social Care,5105677064,11.01.2013,St James Centre,Stationery,45.57,BANNER BUSINESS SUPPLIES LTD,,
Revenue,Community Wellbeing & Social Care,5105677064,11.01.2013,St James Centre,Stationery,0.10,BANNER BUSINESS SUPPLIES LTD,,
Revenue,Community Wellbeing & Social Care,5105677064,11.01.2013,St James Centre,Stationery,2.93,BANNER BUSINESS SUPPLIES LTD,,
Revenue,Community Wellbeing & Social Care,5105677064,11.01.2013,St James Centre,Stationery,6.40,BANNER BUSINESS SUPPLIES LTD,,
Revenue,Community Wellbeing & Social Care,5105677064,11.01.2013,St James Centre,Stationery,4.00,BANNER BUSINESS SUPPLIES LTD,,
Revenue,Community Wellbeing & Social Care,5105677064,11.01.2013,St James Centre,Stationery,1.09,BANNER BUSINESS SUPPLIES LTD,,
Revenue,Community Wellbeing & Social Care,5105677064,11.01.2013,St James Centre,Stationery,1.45,BANNER BUSINESS SUPPLIES LTD,,
Revenue,Community Wellbeing & Social Care,5105677007,09.01.2013,St James Centre,Stationery,123.30,BANNER BUSINESS SUPPLIES LTD,,
Revenue,Community Wellbeing & Social Care,5105677174,09.01.2013,St James Centre,Stationery,182.28,BANNER BUSINESS SUPPLIES LTD,,
Revenue,Community Wellbeing & Social Care,5105679909,23.01.2013,Childrens Service Centre,Stationery,35.61,BANNER BUSINESS SUPPLIES LTD,,
Revenue,Community Wellbeing & Social Care,5105679909,23.01.2013,Childrens Service Centre,Stationery,69.13,BANNER BUSINESS SUPPLIES LTD,,
Revenue,Community Wellbeing & Social Care,5105679909,23.01.2013,Childrens Service Centre,Stationery,54.84,BANNER BUSINESS SUPPLIES LTD,,
Revenue,Community Wellbeing & Social Care,5105679909,23.01.2013,Childrens Service Centre,Stationery,53.04,BANNER BUSINESS SUPPLIES LTD,,
Revenue,Community Wellbeing & Social Care,5105679909,23.01.2013,Childrens Service Centre,Stationery,39.52,BANNER BUSINESS SUPPLIES LTD,,
Revenue,Community Wellbeing & Social Care,5105680090,23.01.2013,Childrens Service Centre,Stationery,100.91,BANNER BUSINESS SUPPLIES LTD,,
Revenue,Community Wellbeing & Social Care,5105680090,23.01.2013,Childrens Service Centre,Stationery,93.95,BANNER BUSINESS SUPPLIES LTD,,
Revenue,Community Wellbeing & Social Care,5105680090,23.01.2013,Childrens Service Centre,Stationery,84.90,BANNER BUSINESS SUPPLIES LTD,,
Revenue,Community Wellbeing & Social Care,5105681007,30.01.2013,Childrens Service Centre,Stationery,132.64,BANNER BUSINESS SUPPLIES LTD,,
Revenue,Community Wellbeing & Social Care,5105681007,30.01.2013,Childrens Service Centre,Stationery,123.30,BANNER BUSINESS SUPPLIES LTD,,
Revenue,Community Wellbeing & Social Care,5105681007,30.01.2013,Childrens Service Centre,Stationery,0.76,BANNER BUSINESS SUPPLIES LTD,,
Revenue,Community Wellbeing & Social Care,5105681007,30.01.2013,Childrens Service Centre,Stationery,1.52,BANNER BUSINESS SUPPLIES LTD,,
Revenue,Community Wellbeing & Social Care,5105681007,30.01.2013,Childrens Service Centre,Stationery,11.35,BANNER BUSINESS SUPPLIES LTD,,
Revenue,Community Wellbeing & Social Care,5105681007,30.01.2013,Childrens Service Centre,Stationery,281.96,BANNER BUSINESS SUPPLIES LTD,,
Revenue,Community Wellbeing & Social Care,5105681007,30.01.2013,Childrens Service Centre,Stationery,10.02,BANNER BUSINESS SUPPLIES LTD,,
Revenue,Community Wellbeing & Social Care,5105681007,30.01.2013,Childrens Service Centre,Stationery,16.20,BANNER BUSINESS SUPPLIES LTD,,
Revenue,Community Wellbeing & Social Care,5105681007,30.01.2013,Childrens Service Centre,Stationery,7.64,BANNER BUSINESS SUPPLIES LTD,,
Revenue,Community Wellbeing & Social Care,5105681007,30.01.2013,Childrens Service Centre,Stationery,71.83,BANNER BUSINESS SUPPLIES LTD,,
Revenue,Community Wellbeing & Social Care,5105681007,30.01.2013,Childrens Service Centre,Stationery,12.80,BANNER BUSINESS SUPPLIES LTD,,
Revenue,Community Wellbeing & Social Care,5105681007,30.01.2013,Childrens Service Centre,Stationery,61.79,BANNER BUSINESS SUPPLIES LTD,,
Revenue,Community Wellbeing & Social Care,5105682005,31.01.2013,Childrens Service Centre,Stationery,2.56,BANNER BUSINESS SUPPLIES LTD,,
Revenue,Community Wellbeing & Social Care,5105682005,31.01.2013,Childrens Service Centre,Stationery,1.32,BANNER BUSINESS SUPPLIES LTD,,
Revenue,Community Wellbeing & Social Care,5105682005,31.01.2013,Childrens Service Centre,Stationery,6.68,BANNER BUSINESS SUPPLIES LTD,,
Revenue,Community Wellbeing & Social Care,5105682005,31.01.2013,Childrens Service Centre,Stationery,3.12,BANNER BUSINESS SUPPLIES LTD,,
Revenue,Community Wellbeing & Social Care,5105682005,31.01.2013,Childrens Service Centre,Stationery,69.13,BANNER BUSINESS SUPPLIES LTD,,
Revenue,Community Wellbeing & Social Care,5105682005,31.01.2013,Childrens Service Centre,Stationery,201.82,BANNER BUSINESS SUPPLIES LTD,,
Revenue,Community Wellbeing & Social Care,5105682005,31.01.2013,Childrens Service Centre,Stationery,106.08,BANNER BUSINESS SUPPLIES LTD,,
Revenue,Community Wellbeing & Social Care,5105682005,31.01.2013,Childrens Service Centre,Professional Services,0.76,BANNER BUSINESS SUPPLIES LTD,,
Revenue,Community Wellbeing & Social Care,5105682005,31.01.2013,Childrens Service Centre,Professional Services,7.12,BANNER BUSINESS SUPPLIES LTD,,
Revenue,Community Wellbeing & Social Care,5105678543,16.01.2013,Complaints Officer,Comp Software & Consumables,24.25,BANNER BUSINESS SUPPLIES LTD,,
Revenue,Community Wellbeing & Social Care,5105678543,16.01.2013,Complaints Officer,Comp Software & Consumables,20.03,BANNER BUSINESS SUPPLIES LTD,,
Revenue,"Chief Executive, Schools & Learning",5105676753,04.01.2013,Business Support Team,Stationery,3.22,BANNER BUSINESS SUPPLIES LTD,,
Revenue,"Chief Executive, Schools & Learning",5105676753,04.01.2013,Business Support Team,Stationery,2.10,BANNER BUSINESS SUPPLIES LTD,,
Revenue,"Chief Executive, Schools & Learning",5105676753,04.01.2013,Business Support Team,Stationery,24.66,BANNER BUSINESS SUPPLIES LTD,,
Revenue,"Chief Executive, Schools & Learning",5105677106,09.01.2013,Business Support Team,Stationery,22.40,BANNER BUSINESS SUPPLIES LTD,,
Revenue,"Chief Executive, Schools & Learning",5105677106,09.01.2013,Business Support Team,Stationery,24.66,BANNER BUSINESS SUPPLIES LTD,,
Revenue,"Chief Executive, Schools & Learning",5105678510,16.01.2013,Education Participation,Stationery,14.64,BANNER BUSINESS SUPPLIES LTD,,
Revenue,"Chief Executive, Schools & Learning",5105678510,16.01.2013,Education Participation,Stationery,73.98,BANNER BUSINESS SUPPLIES LTD,,
Revenue,Economy & Environment,5105676753,04.01.2013,Director of Environment & Neighbourhoods,Stationery,4.60,BANNER BUSINESS SUPPLIES LTD,,
Revenue,Economy & Environment,5105679549,23.01.2013,Highways PFI Project,Consumable Cleaning Materials,5.97,BANNER BUSINESS SUPPLIES LTD,,
Revenue,Economy & Environment,5105679549,23.01.2013,Highways PFI Project,Stationery,49.64,BANNER BUSINESS SUPPLIES LTD,,
Revenue,Economy & Environment,5105679611,28.01.2013,HM Inspection,Stationery,73.98,BANNER BUSINESS SUPPLIES LTD,,
Revenue,Economy & Environment,5105681052,28.01.2013,HM Inspection,Stationery,-73.98,BANNER BUSINESS SUPPLIES LTD,,
Revenue,Economy & Environment,5105680095,23.01.2013,ROW Strategy,Computer Purchase & Rental,16.02,BANNER BUSINESS SUPPLIES LTD,,
Revenue,Economy & Environment,5105676794,09.01.2013,ROW Strategy,Stationery,46.91,BANNER BUSINESS SUPPLIES LTD,,
Revenue,Economy & Environment,5105680095,23.01.2013,ROW Strategy,Stationery,48.80,BANNER BUSINESS SUPPLIES LTD,,
Revenue,Economy & Environment,5105679611,28.01.2013,Enterprise House Running Costs,Stationery,5.55,BANNER BUSINESS SUPPLIES LTD,,
Revenue,Economy & Environment,5105679611,28.01.2013,Enterprise House Running Costs,Stationery,4.95,BANNER BUSINESS SUPPLIES LTD,,
Revenue,Economy & Environment,5105679611,28.01.2013,Enterprise House Running Costs,Stationery,0.44,BANNER BUSINESS SUPPLIES LTD,,
Revenue,Economy & Environment,5105681052,28.01.2013,Enterprise House Running Costs,Stationery,-5.55,BANNER BUSINESS SUPPLIES LTD,,
Revenue,Economy & Environment,5105681053,30.01.2013,Enterprise House Running Costs,Stationery,5.55,BANNER BUSINESS SUPPLIES LTD,,
Revenue,Economy & Environment,5105681053,30.01.2013,Enterprise House Running Costs,Stationery,4.95,BANNER BUSINESS SUPPLIES LTD,,
Revenue,Economy & Environment,5105681052,28.01.2013,Enterprise House Running Costs,Stationery,-4.95,BANNER BUSINESS SUPPLIES LTD,,
Revenue,Economy & Environment,5105681053,30.01.2013,Enterprise House Running Costs,Stationery,73.98,BANNER BUSINESS SUPPLIES LTD,,
Revenue,Economy & Environment,5105681053,30.01.2013,Enterprise House Running Costs,Stationery,0.44,BANNER BUSINESS SUPPLIES LTD,,
Revenue,Economy & Environment,5105681052,28.01.2013,Enterprise House Running Costs,Stationery,-0.44,BANNER BUSINESS SUPPLIES LTD,,
Revenue,Economy & Environment,5105676753,04.01.2013,Waste contracts,Stationery,3.22,BANNER BUSINESS SUPPLIES LTD,,
Revenue,Economy & Environment,5105678543,16.01.2013,Recycling initiative,Stationery,7.32,BANNER BUSINESS SUPPLIES LTD,,
Revenue,Economy & Environment,5105682232,31.01.2013,Coast Protection,Stationery,12.24,BANNER BUSINESS SUPPLIES LTD,,
Revenue,Economy & Environment,5105677139,23.01.2013,Coastal Management,Comp Software & Consumables,27.42,BANNER BUSINESS SUPPLIES LTD,,
Revenue,Economy & Environment,5105677139,23.01.2013,Coastal Management,Comp Software & Consumables,27.42,BANNER BUSINESS SUPPLIES LTD,,
Revenue,Economy & Environment,5105677139,23.01.2013,Coastal Management,Comp Software & Consumables,27.42,BANNER BUSINESS SUPPLIES LTD,,
Revenue,Economy & Environment,5105677146,09.01.2013,Coastal Management,Comp Software & Consumables,27.29,BANNER BUSINESS SUPPLIES LTD,,
Revenue,Economy & Environment,5105682232,31.01.2013,Salisbury Gardens Ventnor,Consumable Cleaning Materials,29.31,BANNER BUSINESS SUPPLIES LTD,,
Revenue,Economy & Environment,5105677132,09.01.2013,Business Support,Stationery,267.92,BANNER BUSINESS SUPPLIES LTD,,
Revenue,Economy & Environment,5105677132,09.01.2013,Business Support,Stationery,20.94,BANNER BUSINESS SUPPLIES LTD,,
Revenue,Economy & Environment,5105677059,09.01.2013,Business Support,Stationery,14.12,BANNER BUSINESS SUPPLIES LTD,,
Revenue,Economy & Environment,5105677132,09.01.2013,Business Support,Stationery,6.40,BANNER BUSINESS SUPPLIES LTD,,
Revenue,Economy & Environment,5105677132,09.01.2013,Business Support,Stationery,15.45,BANNER BUSINESS SUPPLIES LTD,,
Revenue,Economy & Environment,5105677132,09.01.2013,Business Support,Stationery,23.35,BANNER BUSINESS SUPPLIES LTD,,
Revenue,Economy & Environment,5105677132,09.01.2013,Business Support,Stationery,5.14,BANNER BUSINESS SUPPLIES LTD,,
Revenue,Economy & Environment,5105677132,09.01.2013,Business Support,Stationery,1.90,BANNER BUSINESS SUPPLIES LTD,,
Revenue,Economy & Environment,5105677132,09.01.2013,Business Support,Stationery,51.56,BANNER BUSINESS SUPPLIES LTD,,
Revenue,Economy & Environment,5105677059,09.01.2013,Business Support,Stationery,0.73,BANNER BUSINESS SUPPLIES LTD,,
Revenue,Economy & Environment,5105677059,09.01.2013,Business Support,Stationery,1.70,BANNER BUSINESS SUPPLIES LTD,,
Revenue,Economy & Environment,5105677059,09.01.2013,Business Support,Stationery,51.56,BANNER BUSINESS SUPPLIES LTD,,
Revenue,Economy & Environment,5105677059,09.01.2013,Business Support,Stationery,0.84,BANNER BUSINESS SUPPLIES LTD,,
Revenue,Economy & Environment,5105677059,09.01.2013,Business Support,Stationery,1.32,BANNER BUSINESS SUPPLIES LTD,,
Revenue,Economy & Environment,5105677059,09.01.2013,Business Support,Stationery,0.84,BANNER BUSINESS SUPPLIES LTD,,
Revenue,Economy & Environment,5105677059,09.01.2013,Business Support,Stationery,9.49,BANNER BUSINESS SUPPLIES LTD,,
Revenue,Economy & Environment,5105677059,09.01.2013,Business Support,Stationery,56.44,BANNER BUSINESS SUPPLIES LTD,,
Revenue,Economy & Environment,5105677059,09.01.2013,Business Support,Stationery,9.60,BANNER BUSINESS SUPPLIES LTD,,
Revenue,Economy & Environment,5105677111,09.01.2013,Business Support,Stationery,26.11,BANNER BUSINESS SUPPLIES LTD,,
Revenue,Economy & Environment,5105677111,09.01.2013,Business Support,Stationery,11.66,BANNER BUSINESS SUPPLIES LTD,,
Revenue,Economy & Environment,5105679231,23.01.2013,Business Support,Stationery,5.83,BANNER BUSINESS SUPPLIES LTD,,
Revenue,Economy & Environment,5105679231,23.01.2013,Business Support,Stationery,15.33,BANNER BUSINESS SUPPLIES LTD,,
Revenue,Economy & Environment,5105679231,23.01.2013,Business Support,Stationery,1.32,BANNER BUSINESS SUPPLIES LTD,,
Revenue,Economy & Environment,5105679231,23.01.2013,Business Support,Stationery,13.41,BANNER BUSINESS SUPPLIES LTD,,
Revenue,Economy & Environment,5105679272,18.01.2013,Business Support,Stationery,53.73,BANNER BUSINESS SUPPLIES LTD,,
Revenue,Economy & Environment,5105679272,18.01.2013,Business Support,Stationery,53.73,BANNER BUSINESS SUPPLIES LTD,,
Revenue,Economy & Environment,5105682239,31.01.2013,Business Support,Stationery,3.22,BANNER BUSINESS SUPPLIES LTD,,
Revenue,Economy & Environment,5105682239,31.01.2013,Business Support,Stationery,32.13,BANNER BUSINESS SUPPLIES LTD,,
Revenue,Economy & Environment,5105682239,31.01.2013,Business Support,Stationery,1.50,BANNER BUSINESS SUPPLIES LTD,,
Revenue,Economy & Environment,5105682239,31.01.2013,Business Support,Stationery,0.26,BANNER BUSINESS SUPPLIES LTD,,
Revenue,Economy & Environment,5105682239,31.01.2013,Business Support,Stationery,0.28,BANNER BUSINESS SUPPLIES LTD,,
Revenue,Economy & Environment,5105682239,31.01.2013,Business Support,Stationery,2.48,BANNER BUSINESS SUPPLIES LTD,,
Revenue,Economy & Environment,5105682239,31.01.2013,Business Support,Stationery,27.99,BANNER BUSINESS SUPPLIES LTD,,
Revenue,Economy & Environment,5105682239,31.01.2013,Business Support,Stationery,13.41,BANNER BUSINESS SUPPLIES LTD,,
Revenue,Economy & Environment,5105682239,31.01.2013,Business Support,Stationery,40.45,BANNER BUSINESS SUPPLIES LTD,,
Revenue,Economy & Environment,5105679915,23.01.2013,Business Support,Stationery,139.32,BANNER BUSINESS SUPPLIES LTD,,
Revenue,Economy & Environment,5105679915,23.01.2013,Business Support,Stationery,208.98,BANNER BUSINESS SUPPLIES LTD,,
Revenue,Economy & Environment,5105679915,23.01.2013,Business Support,Stationery,71.97,BANNER BUSINESS SUPPLIES LTD,,
Revenue,Economy & Environment,5105681016,30.01.2013,Business Support,Stationery,46.70,BANNER BUSINESS SUPPLIES LTD,,
Revenue,Economy & Environment,5105681016,30.01.2013,Business Support,Stationery,51.56,BANNER BUSINESS SUPPLIES LTD,,
Revenue,Economy & Environment,5105681016,30.01.2013,Business Support,Stationery,69.66,BANNER BUSINESS SUPPLIES LTD,,
Revenue,Economy & Environment,5105680810,25.01.2013,Business Support,Stationery,25.78,BANNER BUSINESS SUPPLIES LTD,,
Revenue,Economy & Environment,5105680810,25.01.2013,Business Support,Stationery,4.16,BANNER BUSINESS SUPPLIES LTD,,
Revenue,Economy & Environment,5105680810,25.01.2013,Business Support,Stationery,2.08,BANNER BUSINESS SUPPLIES LTD,,
Revenue,Economy & Environment,5105680810,25.01.2013,Business Support,Stationery,2.08,BANNER BUSINESS SUPPLIES LTD,,
Revenue,Economy & Environment,5105680810,25.01.2013,Business Support,Stationery,245.85,BANNER BUSINESS SUPPLIES LTD,,
Revenue,Economy & Environment,5105677132,09.01.2013,Business Support,Comp Software & Consumables,22.50,BANNER BUSINESS SUPPLIES LTD,,
Revenue,Economy & Environment,5105679231,23.01.2013,Business Support,Comp Software & Consumables,2.44,BANNER BUSINESS SUPPLIES LTD,,
Revenue,Economy & Environment,5105682239,31.01.2013,Business Support,Comp Software & Consumables,43.02,BANNER BUSINESS SUPPLIES LTD,,
Revenue,Economy & Environment,5105681016,30.01.2013,Business Support,Comp Software & Consumables,14.20,BANNER BUSINESS SUPPLIES LTD,,
Revenue,Economy & Environment,5105679915,23.01.2013,Building Control,Stationery,2.48,BANNER BUSINESS SUPPLIES LTD,,
Revenue,Economy & Environment,5105679915,23.01.2013,Building Control,Stationery,417.96,BANNER BUSINESS SUPPLIES LTD,,
Revenue,Economy & Environment,5105679915,23.01.2013,Building Control,Stationery,45.38,BANNER BUSINESS SUPPLIES LTD,,
Revenue,Community Wellbeing & Social Care,5105682002,31.01.2013,CSOs,Maintenance of Operational Equipment,8.86,BANNER BUSINESS SUPPLIES LTD,,
Revenue,Community Wellbeing & Social Care,5105682002,31.01.2013,CSS Management,Stationery,30.98,BANNER BUSINESS SUPPLIES LTD,,
Revenue,Economy & Environment,5105678149,16.01.2013,Regulatory Management Admin,Stationery,39.89,BANNER BUSINESS SUPPLIES LTD,,
Revenue,Economy & Environment,5105676945,09.01.2013,Licensing Services,Stationery,1.41,BANNER BUSINESS SUPPLIES LTD,,
Revenue,Economy & Environment,5105676945,09.01.2013,Licensing Services,Stationery,3.81,BANNER BUSINESS SUPPLIES LTD,,
Revenue,Economy & Environment,5105676945,09.01.2013,Licensing Services,Stationery,0.58,BANNER BUSINESS SUPPLIES LTD,,
Revenue,Economy & Environment,5105676945,09.01.2013,Licensing Services,Stationery,7.88,BANNER BUSINESS SUPPLIES LTD,,
Revenue,Economy & Environment,5105676945,09.01.2013,Licensing Services,Stationery,64.45,BANNER BUSINESS SUPPLIES LTD,,
Revenue,Economy & Environment,5105678157,16.01.2013,Licensing Services,Stationery,39.89,BANNER BUSINESS SUPPLIES LTD,,
Revenue,Economy & Environment,5105680008,23.01.2013,Licensing Services,Stationery,4.00,BANNER BUSINESS SUPPLIES LTD,,
Revenue,Economy & Environment,5105680008,23.01.2013,Licensing Services,Stationery,38.67,BANNER BUSINESS SUPPLIES LTD,,
Revenue,Economy & Environment,5105680008,23.01.2013,Licensing Services,Stationery,0.60,BANNER BUSINESS SUPPLIES LTD,,
Revenue,Economy & Environment,5105680008,23.01.2013,Licensing Services,Stationery,0.47,BANNER BUSINESS SUPPLIES LTD,,
Revenue,Economy & Environment,5105680008,23.01.2013,Licensing Services,Stationery,5.66,BANNER BUSINESS SUPPLIES LTD,,
Revenue,Economy & Environment,5105680008,23.01.2013,Licensing Services,Stationery,2.56,BANNER BUSINESS SUPPLIES LTD,,
Revenue,Economy & Environment,5105680008,23.01.2013,Licensing Services,Stationery,2.80,BANNER BUSINESS SUPPLIES LTD,,
Revenue,Resources,5105677106,09.01.2013,Coroner,Stationery,44.80,BANNER BUSINESS SUPPLIES LTD,,
Revenue,Resources,5105680468,25.01.2013,Coroner,Stationery,1.71,BANNER BUSINESS SUPPLIES LTD,,
Revenue,Resources,5105677106,09.01.2013,Coroner,Comp Software & Consumables,24.16,BANNER BUSINESS SUPPLIES LTD,,
Revenue,Resources,5105677106,09.01.2013,Coroner,Comp Software & Consumables,51.44,BANNER BUSINESS SUPPLIES LTD,,
Revenue,Resources,5105680468,25.01.2013,Coroner,Comp Software & Consumables,237.90,BANNER BUSINESS SUPPLIES LTD,,
Revenue,Economy & Environment,5105677343,18.01.2013,Medina Theatre,Operational Equipment,49.00,BARTLETTS SERVICE STATION,,
Revenue,"Chief Executive, Schools & Learning",5105681870,30.01.2013,Schools Reorganisation,Vehicle Hire External,730.71,BARTLETTS SERVICE STATION,,
Revenue,Economy & Environment,5105682242,31.01.2013,Highways PFI Project,Vehicle Maintenance Costs,60.00,BARTLETTS SERVICE STATION,,
Revenue,Economy & Environment,5105677114,09.01.2013,Highways PFI Project,Vehicle Hire External,407.14,BARTLETTS SERVICE STATION,,
Revenue,Economy & Environment,5105679666,23.01.2013,Highways PFI Project,Vehicle Hire External,420.17,BARTLETTS SERVICE STATION,,
Revenue,Economy & Environment,5105679663,23.01.2013,Abandoned Vehicles,Payment to Private Contractors,250.00,BARTLETTS SERVICE STATION,,
Revenue,Economy & Environment,5105679613,23.01.2013,Diversity & Workforce,Operational Equipment,100.00,BARTLETTS SERVICE STATION,,
Revenue,Economy & Environment,5105680080,23.01.2013,Diversity & Workforce,Operational Equipment,60.00,BARTLETTS SERVICE STATION,,
Revenue,Resources,5105680689,25.01.2013,Staff Benefits,Payment to Private Contractors,11.67,BARTON PRIMARY SCH & EARLY YEARS,,
Revenue,Resources,5105680687,25.01.2013,Staff Benefits,Payment to Private Contractors,100.00,BARTON PRIMARY SCH & EARLY YEARS,,
Revenue,Resources,5105680688,25.01.2013,Staff Benefits,Payment to Private Contractors,50.00,BARTON PRIMARY SCH & EARLY YEARS,,
Revenue,Resources,5105680691,25.01.2013,Staff Benefits,Payment to Private Contractors,70.00,BARTON PRIMARY SCH & EARLY YEARS,,
Revenue,Resources,5105680690,25.01.2013,Staff Benefits,Payment to Private Contractors,140.00,BARTON PRIMARY SCH & EARLY YEARS,,
Revenue,Economy & Environment,5105678219,16.01.2013,IOW Walking Festival,Advertising & Publicity,540.00,BAUER CONSUMER MEDIA LTD,,
Revenue,Community Wellbeing & Social Care,5105675865,02.01.2013,EF Nursing Mainland,Charges from Independent Providers,"2,257.92",BEAUMONT LODGE LTD,,
Revenue,Community Wellbeing & Social Care,5105681340,30.01.2013,EF Nursing Mainland,Charges from Independent Providers,"2,257.92",BEAUMONT LODGE LTD,,
Revenue,Resources,5105677159,09.01.2013,Elections,Building & Room Rent,80.00,BEMBRIDGE METHODIST CHURCH,,
Revenue,Economy & Environment,5105677994,11.01.2013,Off-Street Parking Operations,Operational Equipment,14.00,BEMROSE BOOTH,,
Revenue,Economy & Environment,5105677994,11.01.2013,Off-Street Parking Operations,Operational Equipment,792.00,BEMROSE BOOTH,,
Revenue,Community Wellbeing & Social Care,5105679896,23.01.2013,Homelessness,Accomm Costs - B&B,385.00,BERTRAM LODGE,,
Revenue,Community Wellbeing & Social Care,5105679908,23.01.2013,Homelessness,Accomm Costs - B&B,385.00,BERTRAM LODGE,,
Revenue,Community Wellbeing & Social Care,5105679898,23.01.2013,Homelessness,Accomm Costs - B&B,385.00,BERTRAM LODGE,,
Revenue,Community Wellbeing & Social Care,5105679902,23.01.2013,Homelessness,Accomm Costs - B&B,385.00,BERTRAM LODGE,,
Revenue,Community Wellbeing & Social Care,5105679907,23.01.2013,Homelessness,Accomm Costs - B&B,385.00,BERTRAM LODGE,,
Revenue,Community Wellbeing & Social Care,5105679905,23.01.2013,Homelessness,Accomm Costs - B&B,385.00,BERTRAM LODGE,,
Revenue,Community Wellbeing & Social Care,5105679894,23.01.2013,Homelessness,Accomm Costs - B&B,770.00,BERTRAM LODGE,,
Revenue,Community Wellbeing & Social Care,5105679900,23.01.2013,Homelessness,Accomm Costs - B&B,770.00,BERTRAM LODGE,,
Revenue,Community Wellbeing & Social Care,5105680009,23.01.2013,Homelessness,Accomm Costs - B&B,385.00,BERTRAM LODGE,,
Revenue,Community Wellbeing & Social Care,5105680066,23.01.2013,Homelessness,Accomm Costs - B&B,385.00,BERTRAM LODGE,,
Revenue,Community Wellbeing & Social Care,5105680143,23.01.2013,Homelessness,Accomm Costs - B&B,385.00,BERTRAM LODGE,,
Revenue,Community Wellbeing & Social Care,5105680145,23.01.2013,Homelessness,Accomm Costs - B&B,385.00,BERTRAM LODGE,,
Revenue,Community Wellbeing & Social Care,5105680929,30.01.2013,Homelessness,Accomm Costs - B&B,385.00,BERTRAM LODGE,,
Revenue,Community Wellbeing & Social Care,5105681010,30.01.2013,Homelessness,Accomm Costs - B&B,385.00,BERTRAM LODGE,,
Revenue,Community Wellbeing & Social Care,5105677775,11.01.2013,Ryde Library,Property Svs - Building maintenance,109.00,BESAM LTD,,
Revenue,Economy & Environment,5105676985,09.01.2013,Medina Theatre,Property Svs - Planned maintenance,381.00,BESAM LTD,,
Revenue,Resources,5105680975,30.01.2013,Help Centres SSC,Sundry Office Expenses,28.78,BETA PAK,,
Revenue,Resources,5105680975,30.01.2013,Help Centres SSC,Sundry Office Expenses,42.81,BETA PAK,,
Revenue,Community Wellbeing & Social Care,5105677345,09.01.2013,Wightcare,Operational Equipment,135.99,BETA PAK,,
Revenue,Community Wellbeing & Social Care,5105677743,11.01.2013,Wightcare,Operational Equipment,135.99,BETA PAK,,
Revenue,Community Wellbeing & Social Care,5105677265,09.01.2013,Homecare Reablement,Operational Equipment,181.32,BETA PAK,,
Revenue,Community Wellbeing & Social Care,5105677265,09.01.2013,Homecare Reablement,Operational Equipment,45.33,BETA PAK,,
Revenue,Community Wellbeing & Social Care,5105677265,09.01.2013,Homecare Reablement,Operational Equipment,35.24,BETA PAK,,
Revenue,Community Wellbeing & Social Care,5105677346,09.01.2013,Adelaide Resource Centre,Consumable Cleaning Materials,63.49,BETA PAK,,
Revenue,Community Wellbeing & Social Care,5105676716,04.01.2013,Adelaide Resource Centre,Consumable Cleaning Materials,19.60,BETA PAK,,
Revenue,Community Wellbeing & Social Care,5105679942,23.01.2013,Adelaide Resource Centre,Consumable Cleaning Materials,2.79,BETA PAK,,
Revenue,Community Wellbeing & Social Care,5105679927,23.01.2013,Adelaide Resource Centre,Consumable Cleaning Materials,69.47,BETA PAK,,
Revenue,Community Wellbeing & Social Care,5105679928,23.01.2013,Adelaide Resource Centre,Consumable Cleaning Materials,12.04,BETA PAK,,
Revenue,Community Wellbeing & Social Care,5105678013,16.01.2013,Adelaide Resource Centre,Consumable Cleaning Materials,644.52,BETA PAK,,
Revenue,Community Wellbeing & Social Care,5105677406,09.01.2013,Gouldings Resource Centre,Consumable Cleaning Materials,12.30,BETA PAK,,
Revenue,Community Wellbeing & Social Care,5105677140,23.01.2013,Gouldings Resource Centre,Consumable Cleaning Materials,964.61,BETA PAK,,
Revenue,Community Wellbeing & Social Care,5105676876,09.01.2013,Gouldings Resource Centre,Consumable Cleaning Materials,2.46,BETA PAK,,
Revenue,Community Wellbeing & Social Care,5105670199,11.01.2013,Gouldings Resource Centre,Consumable Cleaning Materials,45.10,BETA PAK,,
Revenue,Community Wellbeing & Social Care,5105680997,30.01.2013,Gouldings Resource Centre,Consumable Cleaning Materials,714.46,BETA PAK,,
Revenue,Community Wellbeing & Social Care,5105679926,23.01.2013,Gouldings Resource Centre,Consumable Cleaning Materials,28.58,BETA PAK,,
Revenue,Community Wellbeing & Social Care,5105676877,09.01.2013,Westminster House,Consumable Cleaning Materials,26.00,BETA PAK,,
Revenue,Community Wellbeing & Social Care,5105676997,09.01.2013,Westminster House,General Materials,68.76,BETA PAK,,
Revenue,Community Wellbeing & Social Care,5105677347,09.01.2013,Westminster House,General Materials,15.28,BETA PAK,,
Revenue,Community Wellbeing & Social Care,5105680010,23.01.2013,Westminster House,General Materials,114.17,BETA PAK,,
Revenue,Community Wellbeing & Social Care,5105677348,09.01.2013,Westminster House,Clothing & Laundry,61.56,BETA PAK,,
Revenue,Community Wellbeing & Social Care,5105681021,30.01.2013,Westminster House,Clothing & Laundry,82.08,BETA PAK,,
Revenue,Economy & Environment,5105677107,09.01.2013,Medina Leisure Centre,Catering Purchases,41.03,BETA PAK,,
Revenue,Economy & Environment,5105679590,23.01.2013,Medina Cafe Stock,Order Settlement,52.85,BETA PAK,,
Revenue,Economy & Environment,5105679590,23.01.2013,Medina Cafe Stock,Order Settlement,162.62,BETA PAK,,
Revenue,Community Wellbeing & Social Care,5105678378,16.01.2013,EF Homecare,Charges from Independent Providers,560.00,BETTER AT HOME IOW LTD,,
Revenue,Community Wellbeing & Social Care,5105678379,16.01.2013,EF Homecare,Charges from Independent Providers,"2,044.00",BETTER AT HOME IOW LTD,,
Revenue,Community Wellbeing & Social Care,5105678380,16.01.2013,EF Homecare,Charges from Independent Providers,980.00,BETTER AT HOME IOW LTD,,
Revenue,Community Wellbeing & Social Care,5105678381,16.01.2013,EF Homecare,Charges from Independent Providers,"2,205.00",BETTER AT HOME IOW LTD,,
Revenue,Community Wellbeing & Social Care,5105678392,16.01.2013,EF Homecare,Charges from Independent Providers,728.00,BETTER AT HOME IOW LTD,,
Revenue,Community Wellbeing & Social Care,5105678393,16.01.2013,EF Homecare,Charges from Independent Providers,357.00,BETTER AT HOME IOW LTD,,
Revenue,Community Wellbeing & Social Care,5105678393,16.01.2013,EF Homecare,Charges from Independent Providers,84.00,BETTER AT HOME IOW LTD,,
Revenue,Community Wellbeing & Social Care,5105678394,16.01.2013,EF Homecare,Charges from Independent Providers,679.00,BETTER AT HOME IOW LTD,,
Revenue,Community Wellbeing & Social Care,5105678395,16.01.2013,EF Homecare,Charges from Independent Providers,283.50,BETTER AT HOME IOW LTD,,
Revenue,Community Wellbeing & Social Care,5105678396,16.01.2013,EF Homecare,Charges from Independent Providers,185.50,BETTER AT HOME IOW LTD,,
Revenue,Community Wellbeing & Social Care,5105678397,16.01.2013,EF Homecare,Charges from Independent Providers,938.00,BETTER AT HOME IOW LTD,,
Revenue,Community Wellbeing & Social Care,5105678398,16.01.2013,EF Homecare,Charges from Independent Providers,490.00,BETTER AT HOME IOW LTD,,
Revenue,Community Wellbeing & Social Care,5105678399,16.01.2013,EF Homecare,Charges from Independent Providers,231.00,BETTER AT HOME IOW LTD,,
Revenue,Community Wellbeing & Social Care,5105678400,16.01.2013,EF Homecare,Charges from Independent Providers,14.00,BETTER AT HOME IOW LTD,,
Revenue,Community Wellbeing & Social Care,5105678401,16.01.2013,EF Homecare,Charges from Independent Providers,392.00,BETTER AT HOME IOW LTD,,
Revenue,Community Wellbeing & Social Care,5105678403,16.01.2013,EF Homecare,Charges from Independent Providers,49.00,BETTER AT HOME IOW LTD,,
Revenue,Community Wellbeing & Social Care,5105678404,16.01.2013,EF Homecare,Charges from Independent Providers,"1,155.00",BETTER AT HOME IOW LTD,,
Revenue,Community Wellbeing & Social Care,5105678410,16.01.2013,EF Homecare,Charges from Independent Providers,490.00,BETTER AT HOME IOW LTD,,
Revenue,Community Wellbeing & Social Care,5105678411,16.01.2013,EF Homecare,Charges from Independent Providers,448.00,BETTER AT HOME IOW LTD,,
Revenue,Community Wellbeing & Social Care,5105678412,16.01.2013,EF Homecare,Charges from Independent Providers,231.00,BETTER AT HOME IOW LTD,,
Revenue,Community Wellbeing & Social Care,5105678413,16.01.2013,EF Homecare,Charges from Independent Providers,315.00,BETTER AT HOME IOW LTD,,
Revenue,Community Wellbeing & Social Care,5105678382,16.01.2013,EF Homecare,Charges from Independent Providers,826.00,BETTER AT HOME IOW LTD,,
Revenue,Community Wellbeing & Social Care,5105678383,16.01.2013,EF Homecare,Charges from Independent Providers,238.00,BETTER AT HOME IOW LTD,,
Revenue,Community Wellbeing & Social Care,5105678384,16.01.2013,EF Homecare,Charges from Independent Providers,98.00,BETTER AT HOME IOW LTD,,
Revenue,Community Wellbeing & Social Care,5105678385,16.01.2013,EF Homecare,Charges from Independent Providers,182.00,BETTER AT HOME IOW LTD,,
Revenue,Community Wellbeing & Social Care,5105678386,16.01.2013,EF Homecare,Charges from Independent Providers,49.00,BETTER AT HOME IOW LTD,,
Revenue,Community Wellbeing & Social Care,5105678387,16.01.2013,EF Homecare,Charges from Independent Providers,612.50,BETTER AT HOME IOW LTD,,
Revenue,Community Wellbeing & Social Care,5105678388,16.01.2013,EF Homecare,Charges from Independent Providers,245.00,BETTER AT HOME IOW LTD,,
Revenue,Community Wellbeing & Social Care,5105678389,16.01.2013,EF Homecare,Charges from Independent Providers,"1,813.00",BETTER AT HOME IOW LTD,,
Revenue,Community Wellbeing & Social Care,5105678390,16.01.2013,EF Homecare,Charges from Independent Providers,378.00,BETTER AT HOME IOW LTD,,
Revenue,Community Wellbeing & Social Care,5105678391,16.01.2013,EF Homecare,Charges from Independent Providers,385.00,BETTER AT HOME IOW LTD,,
Revenue,Community Wellbeing & Social Care,5105678405,16.01.2013,EF Homecare,Charges from Independent Providers,392.00,BETTER AT HOME IOW LTD,,
Revenue,Community Wellbeing & Social Care,5105678406,16.01.2013,EF Homecare,Charges from Independent Providers,231.00,BETTER AT HOME IOW LTD,,
Revenue,Community Wellbeing & Social Care,5105678407,16.01.2013,EF Homecare,Charges from Independent Providers,490.00,BETTER AT HOME IOW LTD,,
Revenue,Community Wellbeing & Social Care,5105678408,16.01.2013,EF Homecare,Charges from Independent Providers,399.00,BETTER AT HOME IOW LTD,,
Revenue,Community Wellbeing & Social Care,5105678409,16.01.2013,EF Homecare,Charges from Independent Providers,462.00,BETTER AT HOME IOW LTD,,
Revenue,Community Wellbeing & Social Care,5105679147,18.01.2013,EF Homecare,Charges from Independent Providers,231.00,BETTER AT HOME IOW LTD,,
Revenue,Community Wellbeing & Social Care,5105679150,18.01.2013,EF Homecare,Charges from Independent Providers,385.00,BETTER AT HOME IOW LTD,,
Revenue,Community Wellbeing & Social Care,5105679148,18.01.2013,EF Homecare,Charges from Independent Providers,735.00,BETTER AT HOME IOW LTD,,
Revenue,Community Wellbeing & Social Care,5105679149,18.01.2013,EF Homecare,Charges from Independent Providers,736.00,BETTER AT HOME IOW LTD,,
Revenue,Community Wellbeing & Social Care,5105679998,23.01.2013,EF Homecare,Charges from Independent Providers,353.50,BETTER AT HOME IOW LTD,,
Revenue,Community Wellbeing & Social Care,5105679999,23.01.2013,EF Homecare,Charges from Independent Providers,56.00,BETTER AT HOME IOW LTD,,
Revenue,Community Wellbeing & Social Care,5105678414,16.01.2013,MH Homecare,Charges from Independent Providers,357.00,BETTER AT HOME IOW LTD,,
Revenue,Community Wellbeing & Social Care,5105678402,16.01.2013,PD Managed Accounts,Charges from Independent Providers,112.00,BETTER AT HOME IOW LTD,,
Revenue,Economy & Environment,5105680812,25.01.2013,Highways PFI Project,Training,"1,175.00",BEVAN YOUNG ASSOCIATES,,
Revenue,Economy & Environment,5105680811,25.01.2013,Waste Strategy,Training,"1,175.00",BEVAN YOUNG ASSOCIATES,,
Revenue,Resources,5105679567,30.01.2013,Operational Support,Refuse Collection Disposal & Recycling,82.00,BIFFA WASTE SERVICES LTD,,
Revenue,Resources,5105679573,30.01.2013,Operational Support,Refuse Collection Disposal & Recycling,45.50,BIFFA WASTE SERVICES LTD,,
Revenue,Resources,5105672813,09.01.2013,Shared Services Manager,Cleaning Contracts,52.30,BIFFA WASTE SERVICES LTD,,
Revenue,Resources,5105679249,23.01.2013,Shared Services Manager,Cleaning Contracts,36.50,BIFFA WASTE SERVICES LTD,,
Revenue,Resources,5105679255,23.01.2013,Shared Services Manager,Cleaning Contracts,3.50,BIFFA WASTE SERVICES LTD,,
Revenue,Resources,5105679562,23.01.2013,"Bugle House,Newport",Refuse Collection Disposal & Recycling,152.00,BIFFA WASTE SERVICES LTD,,
Revenue,Community Wellbeing & Social Care,5105679244,23.01.2013,Integrated Community Equipment Service,Refuse Collection Disposal & Recycling,59.60,BIFFA WASTE SERVICES LTD,,
Revenue,Community Wellbeing & Social Care,5105676324,02.01.2013,Public Library Central,Refuse Collection Disposal & Recycling,37.72,BIFFA WASTE SERVICES LTD,,
Revenue,Community Wellbeing & Social Care,5105679605,23.01.2013,Public Library Central,Refuse Collection Disposal & Recycling,47.15,BIFFA WASTE SERVICES LTD,,
Revenue,Community Wellbeing & Social Care,5105679608,23.01.2013,Public Library Central,Refuse Collection Disposal & Recycling,303.47,BIFFA WASTE SERVICES LTD,,
Revenue,"Chief Executive, Schools & Learning",5105679639,23.01.2013,WFD Westridge Centre,Office Equipment,33.00,BIFFA WASTE SERVICES LTD,,
Revenue,"Chief Executive, Schools & Learning",5105679639,23.01.2013,WFD Westridge Centre,Office Equipment,3.50,BIFFA WASTE SERVICES LTD,,
Revenue,Community Wellbeing & Social Care,5105679249,23.01.2013,Cothey Bottom Store,Cleaning Contracts,18.25,BIFFA WASTE SERVICES LTD,,
Revenue,Community Wellbeing & Social Care,5105672813,09.01.2013,Cothey Bottom Store,Cleaning Contracts,26.15,BIFFA WASTE SERVICES LTD,,
Revenue,Community Wellbeing & Social Care,5105673402,02.01.2013,Dinosaur Isle Museum,Refuse Collection Disposal & Recycling,10.35,BIFFA WASTE SERVICES LTD,,
Revenue,Community Wellbeing & Social Care,5105679240,18.01.2013,Dinosaur Isle Museum,Refuse Collection Disposal & Recycling,3.50,BIFFA WASTE SERVICES LTD,,
Revenue,Community Wellbeing & Social Care,5105679955,23.01.2013,Dinosaur Isle Museum,Refuse Collection Disposal & Recycling,3.50,BIFFA WASTE SERVICES LTD,,
Revenue,Community Wellbeing & Social Care,5105679886,23.01.2013,Ventnor Botanic Gardens,Payment to Private Contractors,268.50,BIFFA WASTE SERVICES LTD,,
Revenue,Community Wellbeing & Social Care,5105679887,23.01.2013,Ventnor Botanic Gardens,Payment to Private Contractors,-268.50,BIFFA WASTE SERVICES LTD,,
Revenue,Economy & Environment,5105679602,23.01.2013,The Heights,Payment to Private Contractors,42.35,BIFFA WASTE SERVICES LTD,,
Revenue,Economy & Environment,5105679601,23.01.2013,The Heights,Payment to Private Contractors,326.55,BIFFA WASTE SERVICES LTD,,
Revenue,Economy & Environment,5105673413,04.01.2013,The Heights,Payment to Private Contractors,33.88,BIFFA WASTE SERVICES LTD,,
Revenue,Economy & Environment,5105679246,23.01.2013,Medina Leisure Centre,Payment to Private Contractors,311.00,BIFFA WASTE SERVICES LTD,,
Revenue,Economy & Environment,5105679559,23.01.2013,Medina Leisure Centre,Payment to Private Contractors,10.05,BIFFA WASTE SERVICES LTD,,
Revenue,Economy & Environment,5105672813,09.01.2013,Westridge Squash Courts,Cleaning Contracts,26.15,BIFFA WASTE SERVICES LTD,,
Revenue,Economy & Environment,5105679249,23.01.2013,Westridge Squash Courts,Cleaning Contracts,18.25,BIFFA WASTE SERVICES LTD,,
Revenue,Economy & Environment,5105679245,23.01.2013,Ryde Harbour,Payment to Private Contractors,25.90,BIFFA WASTE SERVICES LTD,,
Revenue,Economy & Environment,5105679242,23.01.2013,Ryde Harbour,Payment to Private Contractors,76.50,BIFFA WASTE SERVICES LTD,,
Revenue,Economy & Environment,5105679253,18.01.2013,Seaclose Amusements,Refuse Collection Disposal & Recycling,12.61,BIFFA WASTE SERVICES LTD,,
Revenue,Community Wellbeing & Social Care,5105679251,25.01.2013,Contact Team,Cleaning Contracts,30.45,BIFFA WASTE SERVICES LTD,,
Revenue,Community Wellbeing & Social Care,5105673411,16.01.2013,Contact Team,Refuse Collection Disposal & Recycling,24.36,BIFFA WASTE SERVICES LTD,,
Revenue,Community Wellbeing & Social Care,5105674216,02.01.2013,Beaulieu-Community Home,Refuse Collection Disposal & Recycling,13.52,BIFFA WASTE SERVICES LTD,,
Revenue,Community Wellbeing & Social Care,5105674217,02.01.2013,Beaulieu-Community Home,Refuse Collection Disposal & Recycling,68.80,BIFFA WASTE SERVICES LTD,,
Revenue,Community Wellbeing & Social Care,5105674218,02.01.2013,Beaulieu-Community Home,Refuse Collection Disposal & Recycling,13.52,BIFFA WASTE SERVICES LTD,,
Revenue,Community Wellbeing & Social Care,5105674220,02.01.2013,Beaulieu-Community Home,Refuse Collection Disposal & Recycling,68.80,BIFFA WASTE SERVICES LTD,,
Revenue,"Chief Executive, Schools & Learning",5105679252,23.01.2013,Thompson House Admin,Refuse Collection Disposal & Recycling,172.00,BIFFA WASTE SERVICES LTD,,
Revenue,"Chief Executive, Schools & Learning",5105679551,25.01.2013,Education Participation,Cleaning Contracts,47.15,BIFFA WASTE SERVICES LTD,,
Revenue,"Chief Executive, Schools & Learning",5105679552,25.01.2013,Education Participation,Cleaning Contracts,47.15,BIFFA WASTE SERVICES LTD,,
Revenue,Economy & Environment,5105679603,23.01.2013,Ferry Management,Professional Services,91.50,BIFFA WASTE SERVICES LTD,,
Revenue,Economy & Environment,5105679553,23.01.2013,Enterprise House Running Costs,Refuse Collection Disposal & Recycling,168.50,BIFFA WASTE SERVICES LTD,,
Revenue,Economy & Environment,5105679254,23.01.2013,Fort Victoria,Refuse Collection Disposal & Recycling,86.00,BIFFA WASTE SERVICES LTD,,
Revenue,Economy & Environment,5105679259,18.01.2013,Coastal Visitors Centre,Refuse Collection Disposal & Recycling,47.15,BIFFA WASTE SERVICES LTD,,
Revenue,Economy & Environment,5105679561,30.01.2013,Newport Harbour Account,Refuse Collection Disposal & Recycling,179.50,BIFFA WASTE SERVICES LTD,,
Revenue,Economy & Environment,5105679825,23.01.2013,Operations,Refuse Collection Disposal & Recycling,320.20,BIFFA WASTE SERVICES LTD,,
Revenue,Economy & Environment,5105679826,23.01.2013,Operations,Refuse Collection Disposal & Recycling,442.33,BIFFA WASTE SERVICES LTD,,
Revenue,Economy & Environment,5105679258,23.01.2013,Business Support,Professional Services,122.50,BIFFA WASTE SERVICES LTD,,
Revenue,Economy & Environment,5105679599,23.01.2013,Regulatory Management Admin,Refuse Collection Disposal & Recycling,73.90,BIFFA WASTE SERVICES LTD,,
Revenue,Economy & Environment,5105679257,23.01.2013,Crematorium,Professional Services,69.50,BIFFA WASTE SERVICES LTD,,
Revenue,Economy & Environment,5105673425,02.01.2013,Crematorium,Professional Services,68.80,BIFFA WASTE SERVICES LTD,,
Revenue,Community Wellbeing & Social Care,5105677433,11.01.2013,Agency Placements,Paymts to Voly and Other Associations,"13,507.14",BIG BRIGHT HOLIDAYS,,
Revenue,Community Wellbeing & Social Care,5105677745,11.01.2013,Agency Placements,Paymts to Voly and Other Associations,"13,507.14",BIG BRIGHT HOLIDAYS,,
Revenue,Community Wellbeing & Social Care,5105677989,11.01.2013,Agency Placements,Paymts to Voly and Other Associations,"14,814.28",BIG BRIGHT HOLIDAYS,,
Revenue,Community Wellbeing & Social Care,5105677157,09.01.2013,Beaulieu Outreach Services,Clothing & Laundry,435.60,BIG WIGHT T-SHIRT CO,,
Revenue,Resources,5105677268,25.01.2013,Elections,Building & Room Rent,150.00,BINSTEAD METHODIST CHURCH,,
Revenue,Community Wellbeing & Social Care,5105681977,30.01.2013,Support for LAC,Support Children,190.00,BISHOP STOPFORD SCHOOL,,
Revenue,Economy & Environment,5105682227,31.01.2013,Recycling initiative,Printing Costs,"20,007.50",BISHOPS PRINTERS LTD,,
Revenue,Economy & Environment,5105682228,31.01.2013,Recycling initiative,Printing Costs,"20,007.50",BISHOPS PRINTERS LTD,,
Revenue,Economy & Environment,5105682230,31.01.2013,Recycling initiative,Printing Costs,"-20,007.50",BISHOPS PRINTERS LTD,,
Revenue,Economy & Environment,5105677744,11.01.2013,Recycling initiative,Payment to Private Contractors,"3,241.00",BISHOPS PRINTERS LTD,,
Revenue,Economy & Environment,5105679954,23.01.2013,Recycling initiative,Payment to Private Contractors,"3,241.00",BISHOPS PRINTERS LTD,,
Revenue,Resources,5105680011,23.01.2013,Litigation Costs,Legal Fees - Other Parties,700.00,BLAKE LAPTHORN,,
Revenue,Resources,5105680879,25.01.2013,Litigation Costs,Legal Fees - Other Parties,"1,000.00",BLAKE LAPTHORN,,
Revenue,Community Wellbeing & Social Care,5105676719,04.01.2013,Fostering - Other Agencies,Paymts to Voly and Other Associations,528.56,BLUE SKY FOSTERING LTD,,
Revenue,Community Wellbeing & Social Care,5105677130,23.01.2013,Agency Placements,Paymts to Voly and Other Associations,"4,096.34",BLUE SKY FOSTERING LTD,,
Revenue,Community Wellbeing & Social Care,5105676588,04.01.2013,Agency Placements,Paymts to Voly and Other Associations,"4,096.34",BLUE SKY FOSTERING LTD,,
Revenue,Community Wellbeing & Social Care,5105676589,04.01.2013,Agency Placements,Paymts to Voly and Other Associations,"3,964.20",BLUE SKY FOSTERING LTD,,
Revenue,Community Wellbeing & Social Care,5105676715,04.01.2013,Supp for LAC CYADS,Professional Services,792.84,BLUE SKY FOSTERING LTD,,
Revenue,Community Wellbeing & Social Care,5105676718,04.01.2013,Supp for LAC CYADS,Professional Services,"1,057.12",BLUE SKY FOSTERING LTD,,
Revenue,Community Wellbeing & Social Care,5105680093,23.01.2013,Beaulieu-Community Home,Med Fees & Staff Welfare,31.55,BOC LTD,,
Revenue,Community Wellbeing & Social Care,5105676721,04.01.2013,Beaulieu-Community Home,Med Fees & Staff Welfare,107.79,BOC LTD,,
Revenue,Economy & Environment,5105679668,23.01.2013,Ferry Operation,Vehicle Maintenance Costs,22.05,BOC LTD,,
Revenue,Community Wellbeing & Social Care,5105676189,02.01.2013,EF Residential Care,Charges from Independent Providers,"1,818.88",BONDCARE NILERACE LIMITED,,
Revenue,Community Wellbeing & Social Care,5105681610,30.01.2013,EF Residential Care,Charges from Independent Providers,"1,818.88",BONDCARE NILERACE LIMITED,,
Revenue,"Chief Executive, Schools & Learning",5105680813,25.01.2013,SEN Inter-Auth Recoupment,Bought in Professional Svs - Curriculum,"14,536.00",BOURNEMOUTH BOROUGH COUNCIL,,
Revenue,Community Wellbeing & Social Care,5105677269,25.01.2013,Public Library Central,Comp Software & Consumables,475.00,BPH DATA LTD,,
Revenue,Economy & Environment,5105676770,04.01.2013,Heights Cafe Stock,Catering Purchases,94.92,BRAKE BROS LTD,,
Revenue,Economy & Environment,5105677168,09.01.2013,Heights Cafe Stock,Catering Purchases,66.25,BRAKE BROS LTD,,
Revenue,Economy & Environment,5105678526,16.01.2013,Heights Cafe Stock,Catering Purchases,86.64,BRAKE BROS LTD,,
Revenue,Economy & Environment,5105680979,30.01.2013,Heights Cafe Stock,Order Settlement,71.27,BRAKE BROS LTD,,
Revenue,Community Wellbeing & Social Care,5105674608,02.01.2013,Homelessness,Accomm Costs - Lease,746.81,BRAMBLE LETTINGS,,
Revenue,Community Wellbeing & Social Care,5105674609,02.01.2013,Homelessness,Accomm Costs - Lease,746.81,BRAMBLE LETTINGS,,
Revenue,Community Wellbeing & Social Care,5105674610,02.01.2013,Homelessness,Accomm Costs - Lease,746.81,BRAMBLE LETTINGS,,
Revenue,Community Wellbeing & Social Care,5105674611,02.01.2013,Homelessness,Accomm Costs - Lease,746.81,BRAMBLE LETTINGS,,
Revenue,Community Wellbeing & Social Care,5105674612,02.01.2013,Homelessness,Accomm Costs - Lease,746.81,BRAMBLE LETTINGS,,
Revenue,Community Wellbeing & Social Care,5105674613,02.01.2013,Homelessness,Accomm Costs - Lease,588.38,BRAMBLE LETTINGS,,
Revenue,Community Wellbeing & Social Care,5105674614,02.01.2013,Homelessness,Accomm Costs - Lease,588.38,BRAMBLE LETTINGS,,
Revenue,Community Wellbeing & Social Care,5105674615,02.01.2013,Homelessness,Accomm Costs - Lease,588.38,BRAMBLE LETTINGS,,
Revenue,Community Wellbeing & Social Care,5105674616,02.01.2013,Homelessness,Accomm Costs - Lease,588.38,BRAMBLE LETTINGS,,
Revenue,Community Wellbeing & Social Care,5105674617,02.01.2013,Homelessness,Accomm Costs - Lease,588.38,BRAMBLE LETTINGS,,
Revenue,Community Wellbeing & Social Care,5105674618,02.01.2013,Homelessness,Accomm Costs - Lease,746.81,BRAMBLE LETTINGS,,
Revenue,Community Wellbeing & Social Care,5105674619,02.01.2013,Homelessness,Accomm Costs - Lease,588.38,BRAMBLE LETTINGS,,
Revenue,Community Wellbeing & Social Care,5105674620,02.01.2013,Homelessness,Accomm Costs - Lease,746.81,BRAMBLE LETTINGS,,
Revenue,Community Wellbeing & Social Care,5105674621,02.01.2013,Homelessness,Accomm Costs - Lease,769.43,BRAMBLE LETTINGS,,
Revenue,Community Wellbeing & Social Care,5105674622,02.01.2013,Homelessness,Accomm Costs - Lease,746.81,BRAMBLE LETTINGS,,
Revenue,Community Wellbeing & Social Care,5105674623,02.01.2013,Homelessness,Accomm Costs - Lease,746.81,BRAMBLE LETTINGS,,
Revenue,Community Wellbeing & Social Care,5105674624,02.01.2013,Homelessness,Accomm Costs - Lease,746.81,BRAMBLE LETTINGS,,
Revenue,Community Wellbeing & Social Care,5105674625,02.01.2013,Homelessness,Accomm Costs - Lease,746.81,BRAMBLE LETTINGS,,
Revenue,Community Wellbeing & Social Care,5105674626,02.01.2013,Homelessness,Accomm Costs - Lease,746.81,BRAMBLE LETTINGS,,
Revenue,Community Wellbeing & Social Care,5105674627,02.01.2013,Homelessness,Accomm Costs - Lease,746.81,BRAMBLE LETTINGS,,
Revenue,Community Wellbeing & Social Care,5105674628,02.01.2013,Homelessness,Accomm Costs - Lease,746.81,BRAMBLE LETTINGS,,
Revenue,Community Wellbeing & Social Care,5105674629,02.01.2013,Homelessness,Accomm Costs - Lease,746.81,BRAMBLE LETTINGS,,
Revenue,Community Wellbeing & Social Care,5105677804,11.01.2013,Homelessness,Accomm Costs - Lease,"2,593.50",BRAMBLE LETTINGS,,
Revenue,Resources,5105680772,25.01.2013,Staff Benefits,Payment to Private Contractors,116.67,BRAMBLES AFTER SCHOOL CLUB,,
Revenue,Resources,5105680773,25.01.2013,Staff Benefits,Payment to Private Contractors,45.00,BRAMBLES AFTER SCHOOL CLUB,,
Revenue,Community Wellbeing & Social Care,5105677746,16.01.2013,Adoption,Professional Subscriptions,100.00,BREATHE INTERNET LTD,,
Revenue,Community Wellbeing & Social Care,5105681011,30.01.2013,Adoption,Professional Subscriptions,20.00,BREATHE INTERNET LTD,,
Revenue,Economy & Environment,5105679614,25.01.2013,The Heights,Maintenance of Operational Equipment,"3,582.84",BRENNTAG UK LTD,,
Revenue,Economy & Environment,5105679953,23.01.2013,Medina Leisure Centre,Consumable Cleaning Materials,"1,416.00",BRENNTAG UK LTD,,
Revenue,Economy & Environment,5105679953,23.01.2013,Medina Leisure Centre,Consumable Cleaning Materials,42.84,BRENNTAG UK LTD,,
Revenue,Community Wellbeing & Social Care,5105675070,02.01.2013,EF Residential Care,Charges from Independent Providers,"1,998.08",BRIGHSTONE CARE LTD,,
Revenue,Community Wellbeing & Social Care,5105675074,02.01.2013,EF Residential Care,Charges from Independent Providers,"1,622.60",BRIGHSTONE CARE LTD,,
Revenue,Community Wellbeing & Social Care,5105675066,02.01.2013,EF Residential Care,Charges from Independent Providers,"1,998.08",BRIGHSTONE CARE LTD,,
Revenue,Community Wellbeing & Social Care,5105675067,02.01.2013,EF Residential Care,Charges from Independent Providers,"1,998.08",BRIGHSTONE CARE LTD,,
Revenue,Community Wellbeing & Social Care,5105675068,02.01.2013,EF Residential Care,Charges from Independent Providers,"1,998.08",BRIGHSTONE CARE LTD,,
Revenue,Community Wellbeing & Social Care,5105675069,02.01.2013,EF Residential Care,Charges from Independent Providers,"1,622.60",BRIGHSTONE CARE LTD,,
Revenue,Community Wellbeing & Social Care,5105680426,25.01.2013,EF Residential Care,Charges from Independent Providers,563.22,BRIGHSTONE CARE LTD,,
Revenue,Community Wellbeing & Social Care,5105681108,30.01.2013,EF Residential Care,Charges from Independent Providers,"1,998.08",BRIGHSTONE CARE LTD,,
Revenue,Community Wellbeing & Social Care,5105681108,30.01.2013,EF Residential Care,Charges from Independent Providers,"1,998.08",BRIGHSTONE CARE LTD,,
Revenue,Community Wellbeing & Social Care,5105681108,30.01.2013,EF Residential Care,Charges from Independent Providers,"1,998.08",BRIGHSTONE CARE LTD,,
Revenue,Community Wellbeing & Social Care,5105681108,30.01.2013,EF Residential Care,Charges from Independent Providers,"1,622.60",BRIGHSTONE CARE LTD,,
Revenue,Community Wellbeing & Social Care,5105681873,30.01.2013,EF Residential Care,Charges from Independent Providers,"3,245.20",BRIGHSTONE CARE LTD,,
Revenue,Community Wellbeing & Social Care,5105682201,31.01.2013,EF Residential Care,Charges from Independent Providers,563.22,BRIGHSTONE CARE LTD,,
Revenue,Community Wellbeing & Social Care,5105675075,02.01.2013,EMI Residential Care,Charges from Independent Providers,"1,699.88",BRIGHSTONE CARE LTD,,
Revenue,Community Wellbeing & Social Care,5105675076,02.01.2013,EMI Residential Care,Charges from Independent Providers,"1,998.08",BRIGHSTONE CARE LTD,,
Revenue,Community Wellbeing & Social Care,5105675077,02.01.2013,EMI Residential Care,Charges from Independent Providers,"1,699.88",BRIGHSTONE CARE LTD,,
Revenue,Community Wellbeing & Social Care,5105675073,02.01.2013,EMI Residential Care,Charges from Independent Providers,"1,699.88",BRIGHSTONE CARE LTD,,
Revenue,Community Wellbeing & Social Care,5105678110,16.01.2013,EMI Residential Care,Charges from Independent Providers,616.86,BRIGHSTONE CARE LTD,,
Revenue,Community Wellbeing & Social Care,5105681108,30.01.2013,EMI Residential Care,Charges from Independent Providers,"1,699.88",BRIGHSTONE CARE LTD,,
Revenue,Community Wellbeing & Social Care,5105681834,30.01.2013,EMI Residential Care,Charges from Independent Providers,122.36,BRIGHSTONE CARE LTD,,
Revenue,Community Wellbeing & Social Care,5105681108,30.01.2013,EMI Residential Care,Charges from Independent Providers,"1,699.88",BRIGHSTONE CARE LTD,,
Revenue,Community Wellbeing & Social Care,5105681108,30.01.2013,EMI Residential Care,Charges from Independent Providers,"1,998.08",BRIGHSTONE CARE LTD,,
Revenue,Community Wellbeing & Social Care,5105675071,02.01.2013,REDACTED PERSONAL DATA,Order Settlement,657.72,BRIGHSTONE CARE LTD,,
Revenue,Community Wellbeing & Social Care,5105675072,02.01.2013,REDACTED PERSONAL DATA,Order Settlement,"1,699.88",BRIGHSTONE CARE LTD,,
Revenue,Community Wellbeing & Social Care,5105681108,30.01.2013,REDACTED PERSONAL DATA,Order Settlement,657.72,BRIGHSTONE CARE LTD,,
Revenue,Community Wellbeing & Social Care,5105681108,30.01.2013,REDACTED PERSONAL DATA,Order Settlement,"1,699.88",BRIGHSTONE CARE LTD,,
Revenue,"Chief Executive, Schools & Learning",5105679948,23.01.2013,Grounds Maintenance - Delegated,Grounds Maintenance,"6,171.78",BRIGHSTONE LANDSCAPING LTD,,
Revenue,"Chief Executive, Schools & Learning",5105679943,23.01.2013,Grounds Maintenance - Delegated,Grounds Maintenance,"1,495.84",BRIGHSTONE LANDSCAPING LTD,,
Revenue,"Chief Executive, Schools & Learning",5105679937,23.01.2013,Grounds Maintenance - Delegated,Grounds Maintenance,"2,393.16",BRIGHSTONE LANDSCAPING LTD,,
Capital,"Chief Executive, Schools & Learning",5105679501,18.01.2013,Schools Reorganisation,Capital Contractor Payments,576.60,BRIGHSTONE LANDSCAPING LTD,,
Revenue,Economy & Environment,5105676986,09.01.2013,Beach Cleaning,Payment to Private Contractors,135.00,BRIGHSTONE LANDSCAPING LTD,,
Revenue,Economy & Environment,5105676986,09.01.2013,Beach Cleaning,Payment to Private Contractors,300.00,BRIGHSTONE LANDSCAPING LTD,,
Revenue,Economy & Environment,5105676784,09.01.2013,Beach Cleaning,Payment to Private Contractors,85.00,BRIGHSTONE LANDSCAPING LTD,,
Revenue,Economy & Environment,5105678834,18.01.2013,Beach Cleaning,Payment to Private Contractors,"3,150.00",BRIGHSTONE LANDSCAPING LTD,,
Revenue,Economy & Environment,5105678504,16.01.2013,Beach Cleaning,Payment to Private Contractors,540.00,BRIGHSTONE LANDSCAPING LTD,,
Revenue,Economy & Environment,5105680495,25.01.2013,Beach Cleaning,Payment to Private Contractors,295.00,BRIGHSTONE LANDSCAPING LTD,,
Revenue,Economy & Environment,5105680495,25.01.2013,Beach Cleaning,Payment to Private Contractors,250.00,BRIGHSTONE LANDSCAPING LTD,,
Revenue,Economy & Environment,5105680495,25.01.2013,Beach Cleaning,Payment to Private Contractors,285.00,BRIGHSTONE LANDSCAPING LTD,,
Revenue,Economy & Environment,5105680495,25.01.2013,Beach Cleaning,Payment to Private Contractors,340.00,BRIGHSTONE LANDSCAPING LTD,,
Revenue,Economy & Environment,5105680495,25.01.2013,Beach Cleaning,Payment to Private Contractors,75.00,BRIGHSTONE LANDSCAPING LTD,,
Revenue,Economy & Environment,5105680495,25.01.2013,Beach Cleaning,Payment to Private Contractors,520.00,BRIGHSTONE LANDSCAPING LTD,,
Revenue,Economy & Environment,5105680495,25.01.2013,Beach Cleaning,Payment to Private Contractors,350.00,BRIGHSTONE LANDSCAPING LTD,,
Revenue,Economy & Environment,5105679574,23.01.2013,Beach Cleaning,Beach Cleansng Contract,"4,015.06",BRIGHSTONE LANDSCAPING LTD,,
Revenue,Economy & Environment,5105677445,11.01.2013,Beach Cleaning,Beach Cleansng Contract,"4,015.06",BRIGHSTONE LANDSCAPING LTD,,
Revenue,Resources,5105680692,25.01.2013,Staff Benefits,Payment to Private Contractors,24.37,BRIGHSTONE PLAYGROUP,,
Revenue,Resources,5105676767,04.01.2013,Elections,Stationery,100.00,BRIGHSTONE & DISTRICT HORTICULTURAL SOC,,
Revenue,"Chief Executive, Schools & Learning",5105678448,16.01.2013,Personal/Comm.Dev Learning,General Materials,750.00,BRITISH COMPUTER SOCIETY,,
Revenue,Community Wellbeing & Social Care,5105678039,11.01.2013,Westminster House,Professional Subscriptions,160.00,BRITISH INST OF LEARNING DISABILITIES,,
Revenue,Community Wellbeing & Social Care,5105674808,02.01.2013,EF Residential Care,Charges from Independent Providers,"1,622.60",BROADHURST RESIDENTIAL HOME,,
Revenue,Community Wellbeing & Social Care,5105674799,02.01.2013,EF Residential Care,Charges from Independent Providers,"1,818.60",BROADHURST RESIDENTIAL HOME,,
Revenue,Community Wellbeing & Social Care,5105674800,02.01.2013,EF Residential Care,Charges from Independent Providers,"1,622.60",BROADHURST RESIDENTIAL HOME,,
Revenue,Community Wellbeing & Social Care,5105674801,02.01.2013,EF Residential Care,Charges from Independent Providers,"1,318.52",BROADHURST RESIDENTIAL HOME,,
Revenue,Community Wellbeing & Social Care,5105681081,30.01.2013,EF Residential Care,Charges from Independent Providers,"1,622.60",BROADHURST RESIDENTIAL HOME,,
Revenue,Community Wellbeing & Social Care,5105681081,30.01.2013,EF Residential Care,Charges from Independent Providers,"1,318.52",BROADHURST RESIDENTIAL HOME,,
Revenue,Community Wellbeing & Social Care,5105681081,30.01.2013,EF Residential Care,Charges from Independent Providers,"1,622.60",BROADHURST RESIDENTIAL HOME,,
Revenue,Community Wellbeing & Social Care,5105681081,30.01.2013,EF Residential Care,Charges from Independent Providers,"1,818.60",BROADHURST RESIDENTIAL HOME,,
Revenue,Community Wellbeing & Social Care,5105674810,02.01.2013,EMI Residential Care,Charges from Independent Providers,"1,699.88",BROADHURST RESIDENTIAL HOME,,
Revenue,Community Wellbeing & Social Care,5105674811,02.01.2013,EMI Residential Care,Charges from Independent Providers,"1,998.08",BROADHURST RESIDENTIAL HOME,,
Revenue,Community Wellbeing & Social Care,5105674812,02.01.2013,EMI Residential Care,Charges from Independent Providers,"1,699.88",BROADHURST RESIDENTIAL HOME,,
Revenue,Community Wellbeing & Social Care,5105674804,02.01.2013,EMI Residential Care,Charges from Independent Providers,"1,699.88",BROADHURST RESIDENTIAL HOME,,
Revenue,Community Wellbeing & Social Care,5105674806,02.01.2013,EMI Residential Care,Charges from Independent Providers,"1,699.88",BROADHURST RESIDENTIAL HOME,,
Revenue,Community Wellbeing & Social Care,5105674807,02.01.2013,EMI Residential Care,Charges from Independent Providers,"1,998.08",BROADHURST RESIDENTIAL HOME,,
Revenue,Community Wellbeing & Social Care,5105674809,02.01.2013,EMI Residential Care,Charges from Independent Providers,"1,998.08",BROADHURST RESIDENTIAL HOME,,
Revenue,Community Wellbeing & Social Care,5105676850,09.01.2013,EMI Residential Care,Charges from Independent Providers,762.45,BROADHURST RESIDENTIAL HOME,,
Revenue,Community Wellbeing & Social Care,5105676851,09.01.2013,EMI Residential Care,Charges from Independent Providers,364.26,BROADHURST RESIDENTIAL HOME,,
Revenue,Community Wellbeing & Social Care,5105681081,30.01.2013,EMI Residential Care,Charges from Independent Providers,"1,699.88",BROADHURST RESIDENTIAL HOME,,
Revenue,Community Wellbeing & Social Care,5105681081,30.01.2013,EMI Residential Care,Charges from Independent Providers,"1,699.88",BROADHURST RESIDENTIAL HOME,,
Revenue,Community Wellbeing & Social Care,5105681081,30.01.2013,EMI Residential Care,Charges from Independent Providers,"1,998.08",BROADHURST RESIDENTIAL HOME,,
Revenue,Community Wellbeing & Social Care,5105681081,30.01.2013,EMI Residential Care,Charges from Independent Providers,"1,699.88",BROADHURST RESIDENTIAL HOME,,
Revenue,Community Wellbeing & Social Care,5105680939,30.01.2013,EMI Residential Care,Charges from Independent Providers,"7,992.32",BROADHURST RESIDENTIAL HOME,,
Revenue,Community Wellbeing & Social Care,5105681081,30.01.2013,EMI Residential Care,Charges from Independent Providers,"1,998.08",BROADHURST RESIDENTIAL HOME,,
Revenue,Community Wellbeing & Social Care,5105681081,30.01.2013,EMI Residential Care,Charges from Independent Providers,"1,699.88",BROADHURST RESIDENTIAL HOME,,
Revenue,Community Wellbeing & Social Care,5105681081,30.01.2013,EMI Residential Care,Charges from Independent Providers,"1,998.08",BROADHURST RESIDENTIAL HOME,,
Revenue,Community Wellbeing & Social Care,5105674802,02.01.2013,REDACTED PERSONAL DATA,Order Settlement,155.12,BROADHURST RESIDENTIAL HOME,,
Revenue,Community Wellbeing & Social Care,5105674803,02.01.2013,REDACTED PERSONAL DATA,Order Settlement,"1,998.08",BROADHURST RESIDENTIAL HOME,,
Revenue,Community Wellbeing & Social Care,5105674805,02.01.2013,REDACTED PERSONAL DATA,Order Settlement,"1,998.08",BROADHURST RESIDENTIAL HOME,,
Revenue,Community Wellbeing & Social Care,5105681081,30.01.2013,REDACTED PERSONAL DATA,Order Settlement,"1,998.08",BROADHURST RESIDENTIAL HOME,,
Revenue,Economy & Environment,5105676771,09.01.2013,The Hills Killer,Hire of General Equipment,500.00,BROADLEA  PRIMARY SCHOOL,,
Revenue,Community Wellbeing & Social Care,5105677243,11.01.2013,OA Residential Care,Charges from Independent Providers,206.81,BROADREACH HOUSE,,
Revenue,Community Wellbeing & Social Care,5105677349,09.01.2013,OA Residential Care,Charges from Independent Providers,965.10,BROADREACH HOUSE,,
Revenue,Community Wellbeing & Social Care,5105679940,23.01.2013,OA Residential Care,Charges from Independent Providers,758.32,BROADREACH HOUSE,,
Revenue,Community Wellbeing & Social Care,5105679940,23.01.2013,DAT Adults,Charges from Independent Providers,333.82,BROADREACH HOUSE,,
Revenue,Community Wellbeing & Social Care,5105677243,11.01.2013,DAT Adults,Charges from Independent Providers,346.05,BROADREACH HOUSE,,
Revenue,Community Wellbeing & Social Care,5105677349,09.01.2013,DAT Adults,Charges from Independent Providers,"1,614.90",BROADREACH HOUSE,,
Revenue,Economy & Environment,5105677117,16.01.2013,Transport Fleet Admin,Vehicle Fuel Costs,203.21,BROADWAY GARAGE,,
Revenue,Economy & Environment,5105679667,23.01.2013,Transport Fleet Admin,Vehicle Fuel Costs,248.12,BROADWAY GARAGE,,
Revenue,Resources,5105680004,23.01.2013,Council Tax Benefit,Agency staff,770.00,BROOKSON SOLUTIONS LTD,,
Revenue,Resources,5105676609,09.01.2013,Council Tax Benefit,Agency staff,770.00,BROOKSON SOLUTIONS LTD,,
Revenue,Resources,5105676611,09.01.2013,Council Tax Benefit,Agency staff,770.00,BROOKSON SOLUTIONS LTD,,
Revenue,Resources,5105677972,11.01.2013,Council Tax Benefit,Agency staff,770.00,BROOKSON SOLUTIONS LTD,,
Revenue,Resources,5105680451,25.01.2013,Council Tax Benefit,Agency staff,770.00,BROOKSON SOLUTIONS LTD,,
Revenue,Community Wellbeing & Social Care,5105680814,25.01.2013,Adelaide Resource Centre,Fixed Telephones,629.30,BT FINANCE,,
Revenue,Community Wellbeing & Social Care,5105676947,09.01.2013,Gouldings Resource Centre,Fixed Telephones,743.18,BT FINANCE,,
Revenue,Economy & Environment,5105681951,30.01.2013,Public Transport,Payment to Private Contractors,"5,835.00",BUCKINGHAMSHIRE COUNTY COUNCIL,,
Revenue,Community Wellbeing & Social Care,5105675449,02.01.2013,EF Residential Care,Charges from Independent Providers,"1,998.08",BUCKLAND CARE,,
Revenue,Community Wellbeing & Social Care,5105675450,02.01.2013,EF Residential Care,Charges from Independent Providers,"1,622.60",BUCKLAND CARE,,
Revenue,Community Wellbeing & Social Care,5105675451,02.01.2013,EF Residential Care,Charges from Independent Providers,"1,998.08",BUCKLAND CARE,,
Revenue,Community Wellbeing & Social Care,5105675453,02.01.2013,EF Residential Care,Charges from Independent Providers,"1,998.08",BUCKLAND CARE,,
Revenue,Community Wellbeing & Social Care,5105675454,02.01.2013,EF Residential Care,Charges from Independent Providers,"1,622.60",BUCKLAND CARE,,
Revenue,Community Wellbeing & Social Care,5105675456,02.01.2013,EF Residential Care,Charges from Independent Providers,"1,998.08",BUCKLAND CARE,,
Revenue,Community Wellbeing & Social Care,5105675458,02.01.2013,EF Residential Care,Charges from Independent Providers,"1,998.08",BUCKLAND CARE,,
Revenue,Community Wellbeing & Social Care,5105675459,02.01.2013,EF Residential Care,Charges from Independent Providers,"1,622.60",BUCKLAND CARE,,
Revenue,Community Wellbeing & Social Care,5105679993,23.01.2013,EF Residential Care,Charges from Independent Providers,"2,491.85",BUCKLAND CARE,,
Revenue,Community Wellbeing & Social Care,5105680679,25.01.2013,EF Residential Care,Charges from Independent Providers,"1,912.35",BUCKLAND CARE,,
Revenue,Community Wellbeing & Social Care,5105680680,25.01.2013,EF Residential Care,Charges from Independent Providers,"1,680.55",BUCKLAND CARE,,
Revenue,Community Wellbeing & Social Care,5105681133,30.01.2013,EF Residential Care,Charges from Independent Providers,"1,998.08",BUCKLAND CARE,,
Revenue,Community Wellbeing & Social Care,5105681133,30.01.2013,EF Residential Care,Charges from Independent Providers,"1,622.60",BUCKLAND CARE,,
Revenue,Community Wellbeing & Social Care,5105681133,30.01.2013,EF Residential Care,Charges from Independent Providers,"1,998.08",BUCKLAND CARE,,
Revenue,Community Wellbeing & Social Care,5105681133,30.01.2013,EF Residential Care,Charges from Independent Providers,"1,998.08",BUCKLAND CARE,,
Revenue,Community Wellbeing & Social Care,5105681133,30.01.2013,EF Residential Care,Charges from Independent Providers,"1,622.60",BUCKLAND CARE,,
Revenue,Community Wellbeing & Social Care,5105681133,30.01.2013,EF Residential Care,Charges from Independent Providers,"1,998.08",BUCKLAND CARE,,
Revenue,Community Wellbeing & Social Care,5105681133,30.01.2013,EF Residential Care,Charges from Independent Providers,"1,622.60",BUCKLAND CARE,,
Revenue,Community Wellbeing & Social Care,5105681133,30.01.2013,EF Residential Care,Charges from Independent Providers,"1,998.08",BUCKLAND CARE,,
Revenue,Community Wellbeing & Social Care,5105682208,31.01.2013,EF Residential Care,Charges from Independent Providers,"3,245.20",BUCKLAND CARE,,
Revenue,Community Wellbeing & Social Care,5105675452,02.01.2013,EMI Residential Care,Charges from Independent Providers,"1,998.08",BUCKLAND CARE,,
Revenue,Community Wellbeing & Social Care,5105675455,02.01.2013,EMI Residential Care,Charges from Independent Providers,"1,699.88",BUCKLAND CARE,,
Revenue,Community Wellbeing & Social Care,5105675457,02.01.2013,EMI Residential Care,Charges from Independent Providers,"1,699.88",BUCKLAND CARE,,
Revenue,Community Wellbeing & Social Care,5105675460,02.01.2013,EMI Residential Care,Charges from Independent Providers,"1,699.88",BUCKLAND CARE,,
Revenue,Community Wellbeing & Social Care,5105681133,30.01.2013,EMI Residential Care,Charges from Independent Providers,"1,998.08",BUCKLAND CARE,,
Revenue,Community Wellbeing & Social Care,5105681133,30.01.2013,EMI Residential Care,Charges from Independent Providers,"1,699.88",BUCKLAND CARE,,
Revenue,Community Wellbeing & Social Care,5105681133,30.01.2013,EMI Residential Care,Charges from Independent Providers,"1,699.88",BUCKLAND CARE,,
Revenue,Community Wellbeing & Social Care,5105681133,30.01.2013,EMI Residential Care,Charges from Independent Providers,"1,699.88",BUCKLAND CARE,,
Revenue,Community Wellbeing & Social Care,5105675185,02.01.2013,EF Nursing Island,Charges from Independent Providers,"2,667.84",BUCKLAND CARE LTD,,
Revenue,Community Wellbeing & Social Care,5105675191,02.01.2013,EF Nursing Island,Charges from Independent Providers,"2,667.84",BUCKLAND CARE LTD,,
Revenue,Community Wellbeing & Social Care,5105675186,02.01.2013,EF Nursing Island,Charges from Independent Providers,"2,667.84",BUCKLAND CARE LTD,,
Revenue,Community Wellbeing & Social Care,5105675192,02.01.2013,EF Nursing Island,Charges from Independent Providers,"2,667.84",BUCKLAND CARE LTD,,
Revenue,Community Wellbeing & Social Care,5105675193,02.01.2013,EF Nursing Island,Charges from Independent Providers,"2,667.84",BUCKLAND CARE LTD,,
Revenue,Community Wellbeing & Social Care,5105675194,02.01.2013,EF Nursing Island,Charges from Independent Providers,"2,667.84",BUCKLAND CARE LTD,,
Revenue,Community Wellbeing & Social Care,5105675198,02.01.2013,EF Nursing Island,Charges from Independent Providers,"2,667.84",BUCKLAND CARE LTD,,
Revenue,Community Wellbeing & Social Care,5105675200,02.01.2013,EF Nursing Island,Charges from Independent Providers,"2,667.84",BUCKLAND CARE LTD,,
Revenue,Community Wellbeing & Social Care,5105675201,02.01.2013,EF Nursing Island,Charges from Independent Providers,"2,667.84",BUCKLAND CARE LTD,,
Revenue,Community Wellbeing & Social Care,5105676370,04.01.2013,EF Nursing Island,Charges from Independent Providers,"2,667.84",BUCKLAND CARE LTD,,
Revenue,Community Wellbeing & Social Care,5105676685,04.01.2013,EF Nursing Island,Charges from Independent Providers,"1,429.20",BUCKLAND CARE LTD,,
Revenue,Community Wellbeing & Social Care,5105677009,09.01.2013,EF Nursing Island,Charges from Independent Providers,"2,667.84",BUCKLAND CARE LTD,,
Revenue,Community Wellbeing & Social Care,5105677789,11.01.2013,EF Nursing Island,Charges from Independent Providers,"16,007.04",BUCKLAND CARE LTD,,
Revenue,Community Wellbeing & Social Care,5105681115,30.01.2013,EF Nursing Island,Charges from Independent Providers,"2,667.84",BUCKLAND CARE LTD,,
Revenue,Community Wellbeing & Social Care,5105681115,30.01.2013,EF Nursing Island,Charges from Independent Providers,"2,667.84",BUCKLAND CARE LTD,,
Revenue,Community Wellbeing & Social Care,5105681115,30.01.2013,EF Nursing Island,Charges from Independent Providers,"2,667.84",BUCKLAND CARE LTD,,
Revenue,Community Wellbeing & Social Care,5105681115,30.01.2013,EF Nursing Island,Charges from Independent Providers,"2,667.84",BUCKLAND CARE LTD,,
